﻿Body,Body Name,Clearing Date,Document No,Amount in £,Vendor Name,Vendor No,Expense Area,G/L Account Text,G/L Acc No
http://statistics.data.gov.uk/doc/local-authority/00CC,BarnsleyMBC,16/11/2022,5100330416,"4,635.00",3DK SOLUTIONS LTD,516361,BH,Consultants Fees,424007
http://statistics.data.gov.uk/doc/local-authority/00CC,BarnsleyMBC,13/10/2022,5100328791,571.31,ABILITY HANDLING LTD,509490,BH,Plant hire,320002
http://statistics.data.gov.uk/doc/local-authority/00CC,BarnsleyMBC,11/11/2022,5100330210,571.31,ABILITY HANDLING LTD,509490,BH,Plant hire,320002
http://statistics.data.gov.uk/doc/local-authority/00CC,BarnsleyMBC,13/12/2022,5100331266,571.31,ABILITY HANDLING LTD,509490,BH,Plant hire,320002
http://statistics.data.gov.uk/doc/local-authority/00CC,BarnsleyMBC,17/11/2022,5100330547,"7,251.10",Absoft Limited,538052,BH,Consultants Fees,424007
http://statistics.data.gov.uk/doc/local-authority/00CC,BarnsleyMBC,13/12/2022,5100331277,"4,017.94",Absoft Limited,538052,BH,Consultants Fees,424007
http://statistics.data.gov.uk/doc/local-authority/00CC,BarnsleyMBC,18/10/2022,5100328916,"1,926.00",ACAS,500237,BH,Training Courses,112001
http://statistics.data.gov.uk/doc/local-authority/00CC,BarnsleyMBC,22/12/2022,5100331816,628.8,ADEL PROFESSIONAL LIMITED,540494,BH,Other Training Providers,506001
http://statistics.data.gov.uk/doc/local-authority/00CC,BarnsleyMBC,28/10/2022,5100329571,830.97,ADRIAN WELCH GLASS & GLAZING LTD,508511,BH,Direct - Building Items,403013
http://statistics.data.gov.uk/doc/local-authority/00CC,BarnsleyMBC,18/10/2022,5100329145,"1,200.00",AIRCENTRIC LIMITED,551118,BH,Direct - Building Items,403013
http://statistics.data.gov.uk/doc/local-authority/00CC,BarnsleyMBC,14/10/2022,5100328807,722.21,AKW MEDICARE LTD,526870,BH,Direct - Building Items,403013
http://statistics.data.gov.uk/doc/local-authority/00CC,BarnsleyMBC,14/11/2022,5100330291,557.47,AKW MEDICARE LTD,526870,BH,Direct - Building Items,403013
http://statistics.data.gov.uk/doc/local-authority/00CC,BarnsleyMBC,14/11/2022,5100330070,-513.79,AKW MEDICARE LTD,526870,BH,Direct - Building Items,403013
http://statistics.data.gov.uk/doc/local-authority/00CC,BarnsleyMBC,11/10/2022,5100328806,"1,652.23",ALGECO UK LIMITED,539651,BH,Plant hire,320002
http://statistics.data.gov.uk/doc/local-authority/00CC,BarnsleyMBC,17/11/2022,5100330491,"1,734.95",ALGECO UK LIMITED,539651,BH,Plant hire,320002
http://statistics.data.gov.uk/doc/local-authority/00CC,BarnsleyMBC,28/11/2022,5100330774,"1,734.95",ALGECO UK LIMITED,539651,BH,Plant hire,320002
http://statistics.data.gov.uk/doc/local-authority/00CC,BarnsleyMBC,05/10/2022,5100328568,"2,985.29",AMP Biomass Fuel Ltd TA AMP Clean E,535019,BH,Energy - Fuel Oil,210003
http://statistics.data.gov.uk/doc/local-authority/00CC,BarnsleyMBC,05/10/2022,5100328572,"2,208.77",AMP Biomass Fuel Ltd TA AMP Clean E,535019,BH,Energy - Fuel Oil,210003
http://statistics.data.gov.uk/doc/local-authority/00CC,BarnsleyMBC,05/10/2022,5100328574,"1,438.28",AMP Biomass Fuel Ltd TA AMP Clean E,535019,BH,Energy - Fuel Oil,210003
http://statistics.data.gov.uk/doc/local-authority/00CC,BarnsleyMBC,05/10/2022,5100328573,"3,477.08",AMP Biomass Fuel Ltd TA AMP Clean E,535019,BH,Energy - Fuel Oil,210003
http://statistics.data.gov.uk/doc/local-authority/00CC,BarnsleyMBC,05/10/2022,5100328575,"1,760.11",AMP Biomass Fuel Ltd TA AMP Clean E,535019,BH,Energy - Fuel Oil,210003
http://statistics.data.gov.uk/doc/local-authority/00CC,BarnsleyMBC,05/10/2022,5100328579,"1,233.80",AMP Biomass Fuel Ltd TA AMP Clean E,535019,BH,Energy - Fuel Oil,210003
http://statistics.data.gov.uk/doc/local-authority/00CC,BarnsleyMBC,06/10/2022,5100328576,"2,207.04",AMP Biomass Fuel Ltd TA AMP Clean E,535019,BH,Energy - Fuel Oil,210003
http://statistics.data.gov.uk/doc/local-authority/00CC,BarnsleyMBC,06/10/2022,5100328578,"3,649.64",AMP Biomass Fuel Ltd TA AMP Clean E,535019,BH,Energy - Fuel Oil,210003
http://statistics.data.gov.uk/doc/local-authority/00CC,BarnsleyMBC,06/10/2022,5100328570,"5,530.55",AMP Biomass Fuel Ltd TA AMP Clean E,535019,BH,Energy - Fuel Oil,210003
http://statistics.data.gov.uk/doc/local-authority/00CC,BarnsleyMBC,06/10/2022,5100328569,"2,993.92",AMP Biomass Fuel Ltd TA AMP Clean E,535019,BH,Energy - Fuel Oil,210003
http://statistics.data.gov.uk/doc/local-authority/00CC,BarnsleyMBC,06/10/2022,5100328577,"6,319.15",AMP Biomass Fuel Ltd TA AMP Clean E,535019,BH,Energy - Fuel Oil,210003
http://statistics.data.gov.uk/doc/local-authority/00CC,BarnsleyMBC,04/11/2022,5100329742,"3,278.64",AMP Biomass Fuel Ltd TA AMP Clean E,535019,BH,Energy - Fuel Oil,210003
http://statistics.data.gov.uk/doc/local-authority/00CC,BarnsleyMBC,04/11/2022,5100329743,"2,760.96",AMP Biomass Fuel Ltd TA AMP Clean E,535019,BH,Energy - Fuel Oil,210003
http://statistics.data.gov.uk/doc/local-authority/00CC,BarnsleyMBC,04/11/2022,5100329744,"6,123.30",AMP Biomass Fuel Ltd TA AMP Clean E,535019,BH,Energy - Fuel Oil,210003
http://statistics.data.gov.uk/doc/local-authority/00CC,BarnsleyMBC,04/11/2022,5100329740,"1,419.31",AMP Biomass Fuel Ltd TA AMP Clean E,535019,BH,Energy - Fuel Oil,210003
http://statistics.data.gov.uk/doc/local-authority/00CC,BarnsleyMBC,17/11/2022,5100330521,"3,934.37",AMP Biomass Fuel Ltd TA AMP Clean E,535019,BH,Energy - Fuel Oil,210003
http://statistics.data.gov.uk/doc/local-authority/00CC,BarnsleyMBC,23/12/2022,5100331852,698.87,AMP Biomass Fuel Ltd TA AMP Clean E,535019,BH,Energy - Fuel Oil,210003
http://statistics.data.gov.uk/doc/local-authority/00CC,BarnsleyMBC,23/12/2022,5100331855,"8,470.12",AMP Biomass Fuel Ltd TA AMP Clean E,535019,BH,Energy - Fuel Oil,210003
http://statistics.data.gov.uk/doc/local-authority/00CC,BarnsleyMBC,23/12/2022,5100331851,"3,692.78",AMP Biomass Fuel Ltd TA AMP Clean E,535019,BH,Energy - Fuel Oil,210003
http://statistics.data.gov.uk/doc/local-authority/00CC,BarnsleyMBC,23/12/2022,5100331854,"5,176.80",AMP Biomass Fuel Ltd TA AMP Clean E,535019,BH,Energy - Fuel Oil,210003
http://statistics.data.gov.uk/doc/local-authority/00CC,BarnsleyMBC,10/10/2022,5100328740,"6,690.60",APPLY SCAFFOLDING SERVICES LTD,551732,BH,Main contractor,506011
http://statistics.data.gov.uk/doc/local-authority/00CC,BarnsleyMBC,10/10/2022,5100328741,"24,702.18",APPLY SCAFFOLDING SERVICES LTD,551732,BH,Main contractor,506011
http://statistics.data.gov.uk/doc/local-authority/00CC,BarnsleyMBC,14/10/2022,5100329048,"13,707.25",APPLY SCAFFOLDING SERVICES LTD,551732,BH,Main contractor,506011
http://statistics.data.gov.uk/doc/local-authority/00CC,BarnsleyMBC,25/10/2022,5100329529,"31,315.73",APPLY SCAFFOLDING SERVICES LTD,551732,BH,Main contractor,506011
http://statistics.data.gov.uk/doc/local-authority/00CC,BarnsleyMBC,25/10/2022,5100329533,"9,785.16",APPLY SCAFFOLDING SERVICES LTD,551732,BH,Main contractor,506011
http://statistics.data.gov.uk/doc/local-authority/00CC,BarnsleyMBC,17/11/2022,5100330541,"8,557.92",APPLY SCAFFOLDING SERVICES LTD,551732,BH,Main contractor,506011
http://statistics.data.gov.uk/doc/local-authority/00CC,BarnsleyMBC,23/11/2022,5100330671,"12,380.52",APPLY SCAFFOLDING SERVICES LTD,551732,BH,Main contractor,506011
http://statistics.data.gov.uk/doc/local-authority/00CC,BarnsleyMBC,28/11/2022,5100330785,"8,787.24",APPLY SCAFFOLDING SERVICES LTD,551732,BH,Main contractor,506011
http://statistics.data.gov.uk/doc/local-authority/00CC,BarnsleyMBC,12/12/2022,5100331235,"27,146.98",APPLY SCAFFOLDING SERVICES LTD,551732,BH,Main contractor,506011
http://statistics.data.gov.uk/doc/local-authority/00CC,BarnsleyMBC,12/12/2022,5100331236,"27,018.25",APPLY SCAFFOLDING SERVICES LTD,551732,BH,Main contractor,506011
http://statistics.data.gov.uk/doc/local-authority/00CC,BarnsleyMBC,12/12/2022,5100331233,"17,143.56",APPLY SCAFFOLDING SERVICES LTD,551732,BH,Main contractor,506011
http://statistics.data.gov.uk/doc/local-authority/00CC,BarnsleyMBC,12/12/2022,5100331234,"17,116.40",APPLY SCAFFOLDING SERVICES LTD,551732,BH,Main contractor,506011
http://statistics.data.gov.uk/doc/local-authority/00CC,BarnsleyMBC,15/12/2022,5100331405,"11,618.46",APPLY SCAFFOLDING SERVICES LTD,551732,BH,Main contractor,506011
http://statistics.data.gov.uk/doc/local-authority/00CC,BarnsleyMBC,15/12/2022,5100331404,"2,603.16",APPLY SCAFFOLDING SERVICES LTD,551732,BH,Main contractor,506011
http://statistics.data.gov.uk/doc/local-authority/00CC,BarnsleyMBC,20/10/2022,5100329305,580.8,APSE,500222,BH,Training Courses,112001
http://statistics.data.gov.uk/doc/local-authority/00CC,BarnsleyMBC,20/10/2022,5100329303,580.8,APSE,500222,BH,Training Courses,112001
http://statistics.data.gov.uk/doc/local-authority/00CC,BarnsleyMBC,20/10/2022,5100329280,580.8,APSE,500222,BH,Conference Fees,112003
http://statistics.data.gov.uk/doc/local-authority/00CC,BarnsleyMBC,16/11/2022,5100330458,"8,236.70",ARCUS CONSULTING LLP,511642,BH,Main contractor,506011
http://statistics.data.gov.uk/doc/local-authority/00CC,BarnsleyMBC,22/11/2022,5100330608,"3,088.20",ARCUS CONSULTING LLP,511642,BH,Quantity Surveying & Building Regulation,424021
http://statistics.data.gov.uk/doc/local-authority/00CC,BarnsleyMBC,09/12/2022,5100331214,"20,213.99",ARCUS CONSULTING LLP,511642,BH,Main contractor,506011
http://statistics.data.gov.uk/doc/local-authority/00CC,BarnsleyMBC,20/10/2022,5100329092,"1,836.00",ARENA TRAINING CENTRE LTD,515355,BH,Training Courses,112001
http://statistics.data.gov.uk/doc/local-authority/00CC,BarnsleyMBC,29/11/2022,5100330703,984,ARENA TRAINING CENTRE LTD,515355,BH,Training Courses,112001
http://statistics.data.gov.uk/doc/local-authority/00CC,BarnsleyMBC,21/10/2022,5100329378,"5,199.74",Azesta Ltd,534805,BH,Training Courses,112001
http://statistics.data.gov.uk/doc/local-authority/00CC,BarnsleyMBC,25/10/2022,5100329469,"5,216.88",Azesta Ltd,534805,BH,Training Courses,112001
http://statistics.data.gov.uk/doc/local-authority/00CC,BarnsleyMBC,25/11/2022,5100330623,960,Azesta Ltd,534805,BH,Training Courses,112001
http://statistics.data.gov.uk/doc/local-authority/00CC,BarnsleyMBC,06/12/2022,5100330916,"1,871.28",Azesta Ltd,534805,BH,Training Courses,112001
http://statistics.data.gov.uk/doc/local-authority/00CC,BarnsleyMBC,05/10/2022,5100328407,"5,041.33",BAAS CONSTRUCTION LIMITED,552099,BH,Main contractor,506011
http://statistics.data.gov.uk/doc/local-authority/00CC,BarnsleyMBC,19/10/2022,5100328980,"3,360.00",BARNSLEY CHRONICLE LTD,500283,BH,Awards & Presentations,460021
http://statistics.data.gov.uk/doc/local-authority/00CC,BarnsleyMBC,14/10/2022,5100328760,"1,249.75",BARNSLEY HOSPITAL NHS TRUST,500520,BH,Employee Welfare - Medical Care,115001
http://statistics.data.gov.uk/doc/local-authority/00CC,BarnsleyMBC,14/11/2022,5100330060,"7,204.53",BARNSLEY HOSPITAL NHS TRUST,500520,BH,Employee Welfare - Medical Care,115001
http://statistics.data.gov.uk/doc/local-authority/00CC,BarnsleyMBC,16/12/2022,5100331220,"2,064.78",BARNSLEY HOSPITAL NHS TRUST,500520,BH,Employee Welfare - Medical Care,115001
http://statistics.data.gov.uk/doc/local-authority/00CC,BarnsleyMBC,21/10/2022,5100329298,"21,105.84",BARNSLEY NORSE LTD,524701,BH,Cleaning -  Buildings - External Provide,240001
http://statistics.data.gov.uk/doc/local-authority/00CC,BarnsleyMBC,18/11/2022,5100330460,"21,105.84",BARNSLEY NORSE LTD,524701,BH,Cleaning -  Buildings - External Provide,240001
http://statistics.data.gov.uk/doc/local-authority/00CC,BarnsleyMBC,18/11/2022,5100330584,"-21,105.84",BARNSLEY NORSE LTD,524701,BH,Cleaning -  Buildings - External Provide,240001
http://statistics.data.gov.uk/doc/local-authority/00CC,BarnsleyMBC,07/10/2022,5100328471,"8,499.99",BCB TRADING LTD,550198,BH,Training Courses,112001
http://statistics.data.gov.uk/doc/local-authority/00CC,BarnsleyMBC,15/11/2022,5100329858,"8,499.99",BCB TRADING LTD,550198,BH,Training Courses,112001
http://statistics.data.gov.uk/doc/local-authority/00CC,BarnsleyMBC,02/12/2022,5100330897,"8,499.99",BCB TRADING LTD,550198,BH,Training Courses,112001
http://statistics.data.gov.uk/doc/local-authority/00CC,BarnsleyMBC,23/12/2022,5100331783,"8,499.99",BCB TRADING LTD,550198,BH,Training Courses,112001
http://statistics.data.gov.uk/doc/local-authority/00CC,BarnsleyMBC,26/10/2022,5100329620,"3,059.64",BEAST BROADBAND LTD,539810,BH,ICT Services and Support,426014
http://statistics.data.gov.uk/doc/local-authority/00CC,BarnsleyMBC,02/11/2022,5100329847,"1,632.00",BIG PICTURE TRAINING AND LEARNING,540565,BH,Training Courses,112001
http://statistics.data.gov.uk/doc/local-authority/00CC,BarnsleyMBC,04/10/2022,5100328536,700.99,BMBC - INCOME A/C,510654,BH,Vehicle Hire,300006
http://statistics.data.gov.uk/doc/local-authority/00CC,BarnsleyMBC,04/10/2022,5100328533,841.66,BMBC - INCOME A/C,510654,BH,Vehicle Hire,300006
http://statistics.data.gov.uk/doc/local-authority/00CC,BarnsleyMBC,04/10/2022,5100328534,937.39,BMBC - INCOME A/C,510654,BH,Vehicle Hire,300006
http://statistics.data.gov.uk/doc/local-authority/00CC,BarnsleyMBC,04/10/2022,5100328535,669,BMBC - INCOME A/C,510654,BH,Vehicle Hire,300006
http://statistics.data.gov.uk/doc/local-authority/00CC,BarnsleyMBC,11/10/2022,5100328808,"93,238.66",BMBC - INCOME A/C,510654,BH,Property Rents,211002
http://statistics.data.gov.uk/doc/local-authority/00CC,BarnsleyMBC,13/10/2022,5100328955,"12,183.54",BMBC - INCOME A/C,510654,BH,Telephones - Other,426003
http://statistics.data.gov.uk/doc/local-authority/00CC,BarnsleyMBC,13/10/2022,5100328956,"11,365.31",BMBC - INCOME A/C,510654,BH,Telephones - Other,426003
http://statistics.data.gov.uk/doc/local-authority/00CC,BarnsleyMBC,13/10/2022,5100328978,"115,697.32",BMBC - INCOME A/C,510654,BH,Transport Leasing - Long term agreements,320001
http://statistics.data.gov.uk/doc/local-authority/00CC,BarnsleyMBC,13/10/2022,5100328979,"114,189.00",BMBC - INCOME A/C,510654,BH,Transport Leasing - Long term agreements,320001
http://statistics.data.gov.uk/doc/local-authority/00CC,BarnsleyMBC,14/10/2022,5100329020,"1,024.61",BMBC - INCOME A/C,510654,BH,Direct - Fuel & Gas,403017
http://statistics.data.gov.uk/doc/local-authority/00CC,BarnsleyMBC,17/10/2022,5100328954,725.93,BMBC - INCOME A/C,510654,BH,Stationery,422004
http://statistics.data.gov.uk/doc/local-authority/00CC,BarnsleyMBC,17/10/2022,5100329141,-725.93,BMBC - INCOME A/C,510654,BH,Stationery,422004
http://statistics.data.gov.uk/doc/local-authority/00CC,BarnsleyMBC,19/10/2022,5100329212,"5,162.93",BMBC - INCOME A/C,510654,BH,Energy - Electricity,210001
http://statistics.data.gov.uk/doc/local-authority/00CC,BarnsleyMBC,20/10/2022,5100329296,"17,448.64",BMBC - INCOME A/C,510654,BH,Direct - Building Items,403013
http://statistics.data.gov.uk/doc/local-authority/00CC,BarnsleyMBC,21/10/2022,5100329373,"48,000.00",BMBC - INCOME A/C,510654,BH,Computer Software -  Licenses,426010
http://statistics.data.gov.uk/doc/local-authority/00CC,BarnsleyMBC,02/11/2022,5100329853,"1,325.20",BMBC - INCOME A/C,510654,BH,Property Rents,211002
http://statistics.data.gov.uk/doc/local-authority/00CC,BarnsleyMBC,09/11/2022,5100330137,534,BMBC - INCOME A/C,510654,BH,Training Courses,112001
http://statistics.data.gov.uk/doc/local-authority/00CC,BarnsleyMBC,09/11/2022,5100330139,937.39,BMBC - INCOME A/C,510654,BH,Vehicle Hire,300006
http://statistics.data.gov.uk/doc/local-authority/00CC,BarnsleyMBC,09/11/2022,5100330138,"14,500.00",BMBC - INCOME A/C,510654,BH,Telephones - Other,426003
http://statistics.data.gov.uk/doc/local-authority/00CC,BarnsleyMBC,11/11/2022,5100330219,"19,227.90",BMBC - INCOME A/C,510654,BH,Transport Leasing - Long term agreements,320001
http://statistics.data.gov.uk/doc/local-authority/00CC,BarnsleyMBC,11/11/2022,5100330218,"5,355.62",BMBC - INCOME A/C,510654,BH,Transport Leasing - Long term agreements,320001
http://statistics.data.gov.uk/doc/local-authority/00CC,BarnsleyMBC,11/11/2022,5100330217,"7,282.99",BMBC - INCOME A/C,510654,BH,Transport Leasing - Long term agreements,320001
http://statistics.data.gov.uk/doc/local-authority/00CC,BarnsleyMBC,14/11/2022,5100330289,642.28,BMBC - INCOME A/C,510654,BH,Direct - Fuel & Gas,403017
http://statistics.data.gov.uk/doc/local-authority/00CC,BarnsleyMBC,15/11/2022,5100330359,650,BMBC - INCOME A/C,510654,BH,National Non Domestic Rates,212003
http://statistics.data.gov.uk/doc/local-authority/00CC,BarnsleyMBC,15/11/2022,5100330361,"1,325.20",BMBC - INCOME A/C,510654,BH,Property Rents,211002
http://statistics.data.gov.uk/doc/local-authority/00CC,BarnsleyMBC,15/11/2022,5100330358,"8,257.98",BMBC - INCOME A/C,510654,BH,Transport Leasing - Long term agreements,320001
http://statistics.data.gov.uk/doc/local-authority/00CC,BarnsleyMBC,15/11/2022,5100330360,"11,854.15",BMBC - INCOME A/C,510654,BH,Transport Leasing - Long term agreements,320001
http://statistics.data.gov.uk/doc/local-authority/00CC,BarnsleyMBC,22/11/2022,5100330627,650,BMBC - INCOME A/C,510654,BH,National Non Domestic Rates,212003
http://statistics.data.gov.uk/doc/local-authority/00CC,BarnsleyMBC,22/11/2022,5100330648,"1,325.20",BMBC - INCOME A/C,510654,BH,Property Rents,211002
http://statistics.data.gov.uk/doc/local-authority/00CC,BarnsleyMBC,29/11/2022,5100330860,552,BMBC - INCOME A/C,510654,BH,Main contractor,506011
http://statistics.data.gov.uk/doc/local-authority/00CC,BarnsleyMBC,29/11/2022,5100330859,"3,095.00",BMBC - INCOME A/C,510654,BH,Main contractor,506011
http://statistics.data.gov.uk/doc/local-authority/00CC,BarnsleyMBC,29/11/2022,5100330856,"1,301.69",BMBC - INCOME A/C,510654,BH,Computer Hardware - Purchase,426006
http://statistics.data.gov.uk/doc/local-authority/00CC,BarnsleyMBC,29/11/2022,5100330857,"1,301.66",BMBC - INCOME A/C,510654,BH,Computer Hardware - Purchase,426006
http://statistics.data.gov.uk/doc/local-authority/00CC,BarnsleyMBC,29/11/2022,5100330858,"3,890.09",BMBC - INCOME A/C,510654,BH,Computer Hardware - Purchase,426006
http://statistics.data.gov.uk/doc/local-authority/00CC,BarnsleyMBC,30/11/2022,5100330882,"27,874.04",BMBC - INCOME A/C,510654,BH,Computer Hardware - Purchase,426006
http://statistics.data.gov.uk/doc/local-authority/00CC,BarnsleyMBC,30/11/2022,5100330883,"16,173.60",BMBC - INCOME A/C,510654,BH,Computer Hardware - Purchase,426006
http://statistics.data.gov.uk/doc/local-authority/00CC,BarnsleyMBC,02/12/2022,5100331019,669,BMBC - INCOME A/C,510654,BH,Vehicle Hire,300006
http://statistics.data.gov.uk/doc/local-authority/00CC,BarnsleyMBC,02/12/2022,5100331017,937.39,BMBC - INCOME A/C,510654,BH,Vehicle Hire,300006
http://statistics.data.gov.uk/doc/local-authority/00CC,BarnsleyMBC,02/12/2022,5100331018,841.66,BMBC - INCOME A/C,510654,BH,Vehicle Hire,300006
http://statistics.data.gov.uk/doc/local-authority/00CC,BarnsleyMBC,02/12/2022,5100331020,700.99,BMBC - INCOME A/C,510654,BH,Vehicle Hire,300006
http://statistics.data.gov.uk/doc/local-authority/00CC,BarnsleyMBC,05/12/2022,5100331042,"740,142.00",BMBC - INCOME A/C,510654,BH,Miscellaneous Materials,402009
http://statistics.data.gov.uk/doc/local-authority/00CC,BarnsleyMBC,05/12/2022,5100331037,"8,797.15",BMBC - INCOME A/C,510654,BH,Computer Hardware - Purchase,426006
http://statistics.data.gov.uk/doc/local-authority/00CC,BarnsleyMBC,07/12/2022,5100330986,"1,325.20",BMBC - INCOME A/C,510654,BH,Property Rents,211002
http://statistics.data.gov.uk/doc/local-authority/00CC,BarnsleyMBC,07/12/2022,5100331105,"-1,325.20",BMBC - INCOME A/C,510654,BH,Property Rents,211002
http://statistics.data.gov.uk/doc/local-authority/00CC,BarnsleyMBC,14/12/2022,5100331333,"113,823.97",BMBC - INCOME A/C,510654,BH,Transport Leasing - Long term agreements,320001
http://statistics.data.gov.uk/doc/local-authority/00CC,BarnsleyMBC,19/12/2022,5100331581,669,BMBC - INCOME A/C,510654,BH,Vehicle Hire,300006
http://statistics.data.gov.uk/doc/local-authority/00CC,BarnsleyMBC,19/12/2022,5100331579,937.39,BMBC - INCOME A/C,510654,BH,Vehicle Hire,300006
http://statistics.data.gov.uk/doc/local-authority/00CC,BarnsleyMBC,19/12/2022,5100331580,841.66,BMBC - INCOME A/C,510654,BH,Vehicle Hire,300006
http://statistics.data.gov.uk/doc/local-authority/00CC,BarnsleyMBC,19/12/2022,5100331578,700.99,BMBC - INCOME A/C,510654,BH,Vehicle Hire,300006
http://statistics.data.gov.uk/doc/local-authority/00CC,BarnsleyMBC,20/12/2022,5100331610,"1,325.20",BMBC - INCOME A/C,510654,BH,Property Rents,211002
http://statistics.data.gov.uk/doc/local-authority/00CC,BarnsleyMBC,22/12/2022,5100331795,"2,750.00",BMBC - INCOME A/C,510654,BH,Training Courses,112001
http://statistics.data.gov.uk/doc/local-authority/00CC,BarnsleyMBC,06/10/2022,5100328510,688.2,BOS OFFICE SUPPLIES GROUP LTD,526135,BH,Printing - External Provider,422001
http://statistics.data.gov.uk/doc/local-authority/00CC,BarnsleyMBC,06/10/2022,5100328511,716.4,BOS OFFICE SUPPLIES GROUP LTD,526135,BH,Training Courses,112001
http://statistics.data.gov.uk/doc/local-authority/00CC,BarnsleyMBC,31/10/2022,5100329544,"3,476.57",BOS OFFICE SUPPLIES GROUP LTD,526135,BH,Furniture,404001
http://statistics.data.gov.uk/doc/local-authority/00CC,BarnsleyMBC,06/12/2022,5100331009,"2,100.00",BOS OFFICE SUPPLIES GROUP LTD,526135,BH,Printing - External Provider,422001
http://statistics.data.gov.uk/doc/local-authority/00CC,BarnsleyMBC,07/12/2022,5100330974,678,BOS OFFICE SUPPLIES GROUP LTD,526135,BH,Training Courses,112001
http://statistics.data.gov.uk/doc/local-authority/00CC,BarnsleyMBC,23/12/2022,5100331871,762,BOS OFFICE SUPPLIES GROUP LTD,526135,BH,Printing - External Provider,422001
http://statistics.data.gov.uk/doc/local-authority/00CC,BarnsleyMBC,08/11/2022,5100330059,"4,774.80",BRIAN TOTTY SIGNS & DESIGN LTD,510048,BH,Direct - General Materials,403011
http://statistics.data.gov.uk/doc/local-authority/00CC,BarnsleyMBC,07/12/2022,5100331043,568.8,BRIAN TOTTY SIGNS & DESIGN LTD,510048,BH,Direct - General Materials,403011
http://statistics.data.gov.uk/doc/local-authority/00CC,BarnsleyMBC,13/10/2022,5100328862,639,BUILDBASE LTD,512640,BH,,
http://statistics.data.gov.uk/doc/local-authority/00CC,BarnsleyMBC,06/10/2022,5200077049,715.81,BUSINESS STREAM,585193,BH,Water Rates,213001
http://statistics.data.gov.uk/doc/local-authority/00CC,BarnsleyMBC,06/10/2022,5200077042,772.08,BUSINESS STREAM,585193,BH,Water Rates,213001
http://statistics.data.gov.uk/doc/local-authority/00CC,BarnsleyMBC,06/10/2022,5200077040,531.14,BUSINESS STREAM,585193,BH,Water Rates,213001
http://statistics.data.gov.uk/doc/local-authority/00CC,BarnsleyMBC,06/10/2022,5200077107,"1,065.34",BUSINESS STREAM,585193,BH,Water Rates,213001
http://statistics.data.gov.uk/doc/local-authority/00CC,BarnsleyMBC,06/10/2022,5200077106,512.72,BUSINESS STREAM,585193,BH,Water Rates,213001
http://statistics.data.gov.uk/doc/local-authority/00CC,BarnsleyMBC,06/10/2022,5200077094,616.7,BUSINESS STREAM,585193,BH,Water Rates,213001
http://statistics.data.gov.uk/doc/local-authority/00CC,BarnsleyMBC,06/10/2022,5200077093,650.45,BUSINESS STREAM,585193,BH,Water Rates,213001
http://statistics.data.gov.uk/doc/local-authority/00CC,BarnsleyMBC,06/10/2022,5200077050,602.51,BUSINESS STREAM,585193,BH,Water Rates,213001
http://statistics.data.gov.uk/doc/local-authority/00CC,BarnsleyMBC,06/10/2022,5200077086,936.27,BUSINESS STREAM,585193,BH,Water Rates,213001
http://statistics.data.gov.uk/doc/local-authority/00CC,BarnsleyMBC,06/10/2022,5200077084,551.28,BUSINESS STREAM,585193,BH,Water Rates,213001
http://statistics.data.gov.uk/doc/local-authority/00CC,BarnsleyMBC,06/10/2022,5200077062,961.21,BUSINESS STREAM,585193,BH,Water Rates,213001
http://statistics.data.gov.uk/doc/local-authority/00CC,BarnsleyMBC,06/10/2022,5200077063,533.99,BUSINESS STREAM,585193,BH,Water Rates,213001
http://statistics.data.gov.uk/doc/local-authority/00CC,BarnsleyMBC,16/12/2022,5200078764,624.72,BUSINESS STREAM,585193,BH,Water Rates,213001
http://statistics.data.gov.uk/doc/local-authority/00CC,BarnsleyMBC,16/12/2022,5200078750,629.74,BUSINESS STREAM,585193,BH,Water Rates,213001
http://statistics.data.gov.uk/doc/local-authority/00CC,BarnsleyMBC,08/11/2022,5100330043,"1,042.86",CENTURION FIRE & SECURITY LTD,500651,BH,Security Hire,424009
http://statistics.data.gov.uk/doc/local-authority/00CC,BarnsleyMBC,19/10/2022,5100329164,942,CERTSURE LLP T/A,527595,BH,Direct - Building Items,403013
http://statistics.data.gov.uk/doc/local-authority/00CC,BarnsleyMBC,08/12/2022,1900026298,"10,000.00",Charis Grants Ltd,540662,BH,Unascertained Material Group,400008
http://statistics.data.gov.uk/doc/local-authority/00CC,BarnsleyMBC,25/10/2022,1900026143,"19,047.15",CHEVIN HOUSING ASSOCIATION LTD,501017,BH,Property Rents,211002
http://statistics.data.gov.uk/doc/local-authority/00CC,BarnsleyMBC,25/10/2022,1700006837,"-18,058.37",CHEVIN HOUSING ASSOCIATION LTD,501017,BH,Property Rents,211002
http://statistics.data.gov.uk/doc/local-authority/00CC,BarnsleyMBC,15/11/2022,1900026230,"17,616.18",CHEVIN HOUSING ASSOCIATION LTD,501017,BH,Property Rents,211002
http://statistics.data.gov.uk/doc/local-authority/00CC,BarnsleyMBC,08/12/2022,1900026299,"17,749.47",CHEVIN HOUSING ASSOCIATION LTD,501017,BH,Property Rents,211002
http://statistics.data.gov.uk/doc/local-authority/00CC,BarnsleyMBC,02/11/2022,5100329848,501.6,CHIPPINDALE PLANT LTD,502040,BH,Equipment - Hire,400002
http://statistics.data.gov.uk/doc/local-authority/00CC,BarnsleyMBC,09/12/2022,5100331170,501.6,CHIPPINDALE PLANT LTD,502040,BH,Equipment - Hire,400002
http://statistics.data.gov.uk/doc/local-authority/00CC,BarnsleyMBC,10/10/2022,5100328780,720,CHMAMBER OF COMMERCE (BARNSLEY &,508814,BH,Conference Fees,112003
http://statistics.data.gov.uk/doc/local-authority/00CC,BarnsleyMBC,02/11/2022,5100329784,"1,207.20",CHRIS CLARKE LYNDALE,550223,BH,Plant hire,320002
http://statistics.data.gov.uk/doc/local-authority/00CC,BarnsleyMBC,15/12/2022,5100331403,919.2,CHRIS CLARKE LYNDALE,550223,BH,Plant hire,320002
http://statistics.data.gov.uk/doc/local-authority/00CC,BarnsleyMBC,12/10/2022,5100328907,"3,233.58",CITIZENS ADVICE BUREAU,514939,BH,Professional fees,424006
http://statistics.data.gov.uk/doc/local-authority/00CC,BarnsleyMBC,13/10/2022,5100328929,"3,233.58",CITIZENS ADVICE BUREAU,514939,BH,Professional fees,424006
http://statistics.data.gov.uk/doc/local-authority/00CC,BarnsleyMBC,13/10/2022,5100328908,"3,233.58",CITIZENS ADVICE BUREAU,514939,BH,Professional fees,424006
http://statistics.data.gov.uk/doc/local-authority/00CC,BarnsleyMBC,13/10/2022,5100328951,"-3,233.58",CITIZENS ADVICE BUREAU,514939,BH,Professional fees,424006
http://statistics.data.gov.uk/doc/local-authority/00CC,BarnsleyMBC,08/11/2022,5100329815,"3,233.58",CITIZENS ADVICE BUREAU,514939,BH,Professional fees,424006
http://statistics.data.gov.uk/doc/local-authority/00CC,BarnsleyMBC,08/12/2022,5100331016,"3,233.58",CITIZENS ADVICE BUREAU,514939,BH,Professional fees,424006
http://statistics.data.gov.uk/doc/local-authority/00CC,BarnsleyMBC,25/10/2022,5100329530,"3,360.00",Citrus Training Ltd,539103,BH,Training Courses,112001
http://statistics.data.gov.uk/doc/local-authority/00CC,BarnsleyMBC,05/10/2022,5100328635,"6,778.51",CITY PLUMBING SUPPLIES,530034,BH,Direct - Building Items,403013
http://statistics.data.gov.uk/doc/local-authority/00CC,BarnsleyMBC,05/10/2022,5100328553,"18,692.76",CITY PLUMBING SUPPLIES,530034,BH,Direct - Building Items,403013
http://statistics.data.gov.uk/doc/local-authority/00CC,BarnsleyMBC,10/10/2022,5100328639,"1,275.30",CITY PLUMBING SUPPLIES,530034,BH,,
http://statistics.data.gov.uk/doc/local-authority/00CC,BarnsleyMBC,10/10/2022,5100328752,"10,687.55",CITY PLUMBING SUPPLIES,530034,BH,Direct - Building Items,403013
http://statistics.data.gov.uk/doc/local-authority/00CC,BarnsleyMBC,11/10/2022,5100328701,501.83,CITY PLUMBING SUPPLIES,530034,BH,Direct - Building Items,403013
http://statistics.data.gov.uk/doc/local-authority/00CC,BarnsleyMBC,11/10/2022,5100328689,"4,545.37",CITY PLUMBING SUPPLIES,530034,BH,Direct - Building Items,403013
http://statistics.data.gov.uk/doc/local-authority/00CC,BarnsleyMBC,12/10/2022,5100328761,891.24,CITY PLUMBING SUPPLIES,530034,BH,,
http://statistics.data.gov.uk/doc/local-authority/00CC,BarnsleyMBC,12/10/2022,5100328777,548.39,CITY PLUMBING SUPPLIES,530034,BH,,
http://statistics.data.gov.uk/doc/local-authority/00CC,BarnsleyMBC,14/10/2022,5100329014,"1,946.06",CITY PLUMBING SUPPLIES,530034,BH,,
http://statistics.data.gov.uk/doc/local-authority/00CC,BarnsleyMBC,14/10/2022,5100329017,542.02,CITY PLUMBING SUPPLIES,530034,BH,,
http://statistics.data.gov.uk/doc/local-authority/00CC,BarnsleyMBC,14/10/2022,5100329016,"1,728.49",CITY PLUMBING SUPPLIES,530034,BH,,
http://statistics.data.gov.uk/doc/local-authority/00CC,BarnsleyMBC,14/10/2022,5100329012,"1,495.18",CITY PLUMBING SUPPLIES,530034,BH,,
http://statistics.data.gov.uk/doc/local-authority/00CC,BarnsleyMBC,14/10/2022,5100329015,649.54,CITY PLUMBING SUPPLIES,530034,BH,,
http://statistics.data.gov.uk/doc/local-authority/00CC,BarnsleyMBC,18/10/2022,5100328983,"1,083.08",CITY PLUMBING SUPPLIES,530034,BH,,
http://statistics.data.gov.uk/doc/local-authority/00CC,BarnsleyMBC,18/10/2022,5100328986,"1,989.41",CITY PLUMBING SUPPLIES,530034,BH,,
http://statistics.data.gov.uk/doc/local-authority/00CC,BarnsleyMBC,18/10/2022,5100328991,"1,516.68",CITY PLUMBING SUPPLIES,530034,BH,,
http://statistics.data.gov.uk/doc/local-authority/00CC,BarnsleyMBC,18/10/2022,5100328985,908.1,CITY PLUMBING SUPPLIES,530034,BH,,
http://statistics.data.gov.uk/doc/local-authority/00CC,BarnsleyMBC,18/10/2022,5100328995,"2,038.66",CITY PLUMBING SUPPLIES,530034,BH,,
http://statistics.data.gov.uk/doc/local-authority/00CC,BarnsleyMBC,19/10/2022,5100329087,"3,590.55",CITY PLUMBING SUPPLIES,530034,BH,,
http://statistics.data.gov.uk/doc/local-authority/00CC,BarnsleyMBC,19/10/2022,5100329088,"1,222.62",CITY PLUMBING SUPPLIES,530034,BH,,
http://statistics.data.gov.uk/doc/local-authority/00CC,BarnsleyMBC,24/10/2022,5100329226,708.6,CITY PLUMBING SUPPLIES,530034,BH,,
http://statistics.data.gov.uk/doc/local-authority/00CC,BarnsleyMBC,24/10/2022,5100329194,563.68,CITY PLUMBING SUPPLIES,530034,BH,Direct - Building Items,403013
http://statistics.data.gov.uk/doc/local-authority/00CC,BarnsleyMBC,24/10/2022,5100329310,"1,061.41",CITY PLUMBING SUPPLIES,530034,BH,,
http://statistics.data.gov.uk/doc/local-authority/00CC,BarnsleyMBC,24/10/2022,5100329188,899.89,CITY PLUMBING SUPPLIES,530034,BH,,
http://statistics.data.gov.uk/doc/local-authority/00CC,BarnsleyMBC,24/10/2022,5100329425,"1,236.44",CITY PLUMBING SUPPLIES,530034,BH,Direct - Building Items,403013
http://statistics.data.gov.uk/doc/local-authority/00CC,BarnsleyMBC,24/10/2022,5100329308,"3,905.83",CITY PLUMBING SUPPLIES,530034,BH,Direct - Building Items,403013
http://statistics.data.gov.uk/doc/local-authority/00CC,BarnsleyMBC,25/10/2022,5100329452,"2,131.20",CITY PLUMBING SUPPLIES,530034,BH,,
http://statistics.data.gov.uk/doc/local-authority/00CC,BarnsleyMBC,25/10/2022,5100329450,"1,691.60",CITY PLUMBING SUPPLIES,530034,BH,,
http://statistics.data.gov.uk/doc/local-authority/00CC,BarnsleyMBC,25/10/2022,5100329515,"1,243.25",CITY PLUMBING SUPPLIES,530034,BH,Direct - Building Items,403013
http://statistics.data.gov.uk/doc/local-authority/00CC,BarnsleyMBC,25/10/2022,5100329516,"1,476.24",CITY PLUMBING SUPPLIES,530034,BH,Direct - Building Items,403013
http://statistics.data.gov.uk/doc/local-authority/00CC,BarnsleyMBC,25/10/2022,5100329517,"1,409.38",CITY PLUMBING SUPPLIES,530034,BH,Direct - Building Items,403013
http://statistics.data.gov.uk/doc/local-authority/00CC,BarnsleyMBC,25/10/2022,5100329499,"1,686.24",CITY PLUMBING SUPPLIES,530034,BH,Direct - Building Items,403013
http://statistics.data.gov.uk/doc/local-authority/00CC,BarnsleyMBC,25/10/2022,5100329500,"1,361.13",CITY PLUMBING SUPPLIES,530034,BH,Direct - Building Items,403013
http://statistics.data.gov.uk/doc/local-authority/00CC,BarnsleyMBC,25/10/2022,5100329501,795.74,CITY PLUMBING SUPPLIES,530034,BH,Direct - Building Items,403013
http://statistics.data.gov.uk/doc/local-authority/00CC,BarnsleyMBC,26/10/2022,5100329439,707.86,CITY PLUMBING SUPPLIES,530034,BH,,
http://statistics.data.gov.uk/doc/local-authority/00CC,BarnsleyMBC,26/10/2022,5100329433,"4,535.88",CITY PLUMBING SUPPLIES,530034,BH,,
http://statistics.data.gov.uk/doc/local-authority/00CC,BarnsleyMBC,26/10/2022,5100329435,598.35,CITY PLUMBING SUPPLIES,530034,BH,,
http://statistics.data.gov.uk/doc/local-authority/00CC,BarnsleyMBC,27/10/2022,5100329457,"1,788.00",CITY PLUMBING SUPPLIES,530034,BH,,
http://statistics.data.gov.uk/doc/local-authority/00CC,BarnsleyMBC,27/10/2022,5100329651,812.23,CITY PLUMBING SUPPLIES,530034,BH,Direct - Building Items,403013
http://statistics.data.gov.uk/doc/local-authority/00CC,BarnsleyMBC,31/10/2022,5100329592,950.86,CITY PLUMBING SUPPLIES,530034,BH,,
http://statistics.data.gov.uk/doc/local-authority/00CC,BarnsleyMBC,31/10/2022,5100329596,929.33,CITY PLUMBING SUPPLIES,530034,BH,,
http://statistics.data.gov.uk/doc/local-authority/00CC,BarnsleyMBC,31/10/2022,5100329589,"2,065.80",CITY PLUMBING SUPPLIES,530034,BH,,
http://statistics.data.gov.uk/doc/local-authority/00CC,BarnsleyMBC,31/10/2022,5100329594,796.08,CITY PLUMBING SUPPLIES,530034,BH,,
http://statistics.data.gov.uk/doc/local-authority/00CC,BarnsleyMBC,01/11/2022,5100329649,"4,552.99",CITY PLUMBING SUPPLIES,530034,BH,,
http://statistics.data.gov.uk/doc/local-authority/00CC,BarnsleyMBC,02/11/2022,5100329738,"1,039.80",CITY PLUMBING SUPPLIES,530034,BH,Direct - Building Items,403013
http://statistics.data.gov.uk/doc/local-authority/00CC,BarnsleyMBC,02/11/2022,5100329724,768.95,CITY PLUMBING SUPPLIES,530034,BH,,
http://statistics.data.gov.uk/doc/local-authority/00CC,BarnsleyMBC,03/11/2022,5100329737,"1,164.44",CITY PLUMBING SUPPLIES,530034,BH,Direct - Building Items,403013
http://statistics.data.gov.uk/doc/local-authority/00CC,BarnsleyMBC,03/11/2022,5100329716,"1,003.80",CITY PLUMBING SUPPLIES,530034,BH,,
http://statistics.data.gov.uk/doc/local-authority/00CC,BarnsleyMBC,03/11/2022,5100329730,775.32,CITY PLUMBING SUPPLIES,530034,BH,,
http://statistics.data.gov.uk/doc/local-authority/00CC,BarnsleyMBC,03/11/2022,5100329729,"1,263.12",CITY PLUMBING SUPPLIES,530034,BH,,
http://statistics.data.gov.uk/doc/local-authority/00CC,BarnsleyMBC,03/11/2022,5100329728,"1,262.46",CITY PLUMBING SUPPLIES,530034,BH,,
http://statistics.data.gov.uk/doc/local-authority/00CC,BarnsleyMBC,03/11/2022,5100329720,"1,608.01",CITY PLUMBING SUPPLIES,530034,BH,,
http://statistics.data.gov.uk/doc/local-authority/00CC,BarnsleyMBC,03/11/2022,5100329731,"1,074.20",CITY PLUMBING SUPPLIES,530034,BH,,
http://statistics.data.gov.uk/doc/local-authority/00CC,BarnsleyMBC,04/11/2022,5100329902,588.28,CITY PLUMBING SUPPLIES,530034,BH,,
http://statistics.data.gov.uk/doc/local-authority/00CC,BarnsleyMBC,07/11/2022,5100329839,"1,442.88",CITY PLUMBING SUPPLIES,530034,BH,,
http://statistics.data.gov.uk/doc/local-authority/00CC,BarnsleyMBC,07/11/2022,5100329842,555,CITY PLUMBING SUPPLIES,530034,BH,,
http://statistics.data.gov.uk/doc/local-authority/00CC,BarnsleyMBC,07/11/2022,5100329817,951.32,CITY PLUMBING SUPPLIES,530034,BH,,
http://statistics.data.gov.uk/doc/local-authority/00CC,BarnsleyMBC,07/11/2022,5100329838,"3,079.30",CITY PLUMBING SUPPLIES,530034,BH,,
http://statistics.data.gov.uk/doc/local-authority/00CC,BarnsleyMBC,07/11/2022,5100329818,508.78,CITY PLUMBING SUPPLIES,530034,BH,,
http://statistics.data.gov.uk/doc/local-authority/00CC,BarnsleyMBC,07/11/2022,5100329819,"1,826.76",CITY PLUMBING SUPPLIES,530034,BH,,
http://statistics.data.gov.uk/doc/local-authority/00CC,BarnsleyMBC,08/11/2022,5100329897,720.31,CITY PLUMBING SUPPLIES,530034,BH,,
http://statistics.data.gov.uk/doc/local-authority/00CC,BarnsleyMBC,08/11/2022,5100329965,"1,448.51",CITY PLUMBING SUPPLIES,530034,BH,Direct - Building Items,403013
http://statistics.data.gov.uk/doc/local-authority/00CC,BarnsleyMBC,08/11/2022,5100329880,818.15,CITY PLUMBING SUPPLIES,530034,BH,,
http://statistics.data.gov.uk/doc/local-authority/00CC,BarnsleyMBC,09/11/2022,5100330037,611.91,CITY PLUMBING SUPPLIES,530034,BH,,
http://statistics.data.gov.uk/doc/local-authority/00CC,BarnsleyMBC,09/11/2022,5100330073,"1,021.65",CITY PLUMBING SUPPLIES,530034,BH,Direct - Building Items,403013
http://statistics.data.gov.uk/doc/local-authority/00CC,BarnsleyMBC,09/11/2022,5100330075,"1,299.71",CITY PLUMBING SUPPLIES,530034,BH,Direct - Building Items,403013
http://statistics.data.gov.uk/doc/local-authority/00CC,BarnsleyMBC,09/11/2022,5100330074,580.44,CITY PLUMBING SUPPLIES,530034,BH,,
http://statistics.data.gov.uk/doc/local-authority/00CC,BarnsleyMBC,10/11/2022,5100330039,660.48,CITY PLUMBING SUPPLIES,530034,BH,,
http://statistics.data.gov.uk/doc/local-authority/00CC,BarnsleyMBC,14/11/2022,5100330267,"1,370.39",CITY PLUMBING SUPPLIES,530034,BH,Direct - Building Items,403013
http://statistics.data.gov.uk/doc/local-authority/00CC,BarnsleyMBC,14/11/2022,5100330299,"1,234.96",CITY PLUMBING SUPPLIES,530034,BH,Direct - Building Items,403013
http://statistics.data.gov.uk/doc/local-authority/00CC,BarnsleyMBC,14/11/2022,5100330270,"1,197.90",CITY PLUMBING SUPPLIES,530034,BH,Direct - Building Items,403013
http://statistics.data.gov.uk/doc/local-authority/00CC,BarnsleyMBC,14/11/2022,5100330272,813.31,CITY PLUMBING SUPPLIES,530034,BH,Direct - Building Items,403013
http://statistics.data.gov.uk/doc/local-authority/00CC,BarnsleyMBC,14/11/2022,5100330078,"5,400.78",CITY PLUMBING SUPPLIES,530034,BH,,
http://statistics.data.gov.uk/doc/local-authority/00CC,BarnsleyMBC,14/11/2022,5100330079,"1,007.74",CITY PLUMBING SUPPLIES,530034,BH,,
http://statistics.data.gov.uk/doc/local-authority/00CC,BarnsleyMBC,15/11/2022,5100330376,"1,363.09",CITY PLUMBING SUPPLIES,530034,BH,Direct - Building Items,403013
http://statistics.data.gov.uk/doc/local-authority/00CC,BarnsleyMBC,15/11/2022,5100330377,"1,382.76",CITY PLUMBING SUPPLIES,530034,BH,Direct - Building Items,403013
http://statistics.data.gov.uk/doc/local-authority/00CC,BarnsleyMBC,15/11/2022,5100330141,566.28,CITY PLUMBING SUPPLIES,530034,BH,,
http://statistics.data.gov.uk/doc/local-authority/00CC,BarnsleyMBC,15/11/2022,5100330143,966.91,CITY PLUMBING SUPPLIES,530034,BH,,
http://statistics.data.gov.uk/doc/local-authority/00CC,BarnsleyMBC,15/11/2022,5100330190,"1,124.82",CITY PLUMBING SUPPLIES,530034,BH,,
http://statistics.data.gov.uk/doc/local-authority/00CC,BarnsleyMBC,15/11/2022,5100330146,"2,417.21",CITY PLUMBING SUPPLIES,530034,BH,,
http://statistics.data.gov.uk/doc/local-authority/00CC,BarnsleyMBC,16/11/2022,5100330236,769.08,CITY PLUMBING SUPPLIES,530034,BH,,
http://statistics.data.gov.uk/doc/local-authority/00CC,BarnsleyMBC,16/11/2022,5100330232,"1,442.88",CITY PLUMBING SUPPLIES,530034,BH,,
http://statistics.data.gov.uk/doc/local-authority/00CC,BarnsleyMBC,17/11/2022,5100330467,909.45,CITY PLUMBING SUPPLIES,530034,BH,Direct - Building Items,403013
http://statistics.data.gov.uk/doc/local-authority/00CC,BarnsleyMBC,17/11/2022,5100330313,899.81,CITY PLUMBING SUPPLIES,530034,BH,,
http://statistics.data.gov.uk/doc/local-authority/00CC,BarnsleyMBC,17/11/2022,5100330463,815.39,CITY PLUMBING SUPPLIES,530034,BH,Direct - Building Items,403013
http://statistics.data.gov.uk/doc/local-authority/00CC,BarnsleyMBC,17/11/2022,5100330465,"1,234.96",CITY PLUMBING SUPPLIES,530034,BH,Direct - Building Items,403013
http://statistics.data.gov.uk/doc/local-authority/00CC,BarnsleyMBC,17/11/2022,5100330314,"2,597.71",CITY PLUMBING SUPPLIES,530034,BH,,
http://statistics.data.gov.uk/doc/local-authority/00CC,BarnsleyMBC,21/11/2022,5100330437,"1,985.99",CITY PLUMBING SUPPLIES,530034,BH,,
http://statistics.data.gov.uk/doc/local-authority/00CC,BarnsleyMBC,21/11/2022,5100330486,"1,016.10",CITY PLUMBING SUPPLIES,530034,BH,Direct - Building Items,403013
http://statistics.data.gov.uk/doc/local-authority/00CC,BarnsleyMBC,21/11/2022,5100330477,786.5,CITY PLUMBING SUPPLIES,530034,BH,Direct - Building Items,403013
http://statistics.data.gov.uk/doc/local-authority/00CC,BarnsleyMBC,21/11/2022,5100330474,"1,753.01",CITY PLUMBING SUPPLIES,530034,BH,Direct - Building Items,403013
http://statistics.data.gov.uk/doc/local-authority/00CC,BarnsleyMBC,21/11/2022,5100330432,"1,785.60",CITY PLUMBING SUPPLIES,530034,BH,,
http://statistics.data.gov.uk/doc/local-authority/00CC,BarnsleyMBC,22/11/2022,5100330556,"1,356.99",CITY PLUMBING SUPPLIES,530034,BH,Direct - Building Items,403013
http://statistics.data.gov.uk/doc/local-authority/00CC,BarnsleyMBC,22/11/2022,5100330651,"1,189.70",CITY PLUMBING SUPPLIES,530034,BH,Direct - Building Items,403013
http://statistics.data.gov.uk/doc/local-authority/00CC,BarnsleyMBC,22/11/2022,5100330629,"1,114.21",CITY PLUMBING SUPPLIES,530034,BH,Direct - Building Items,403013
http://statistics.data.gov.uk/doc/local-authority/00CC,BarnsleyMBC,22/11/2022,5100330649,970.74,CITY PLUMBING SUPPLIES,530034,BH,,
http://statistics.data.gov.uk/doc/local-authority/00CC,BarnsleyMBC,22/11/2022,5100330502,683.04,CITY PLUMBING SUPPLIES,530034,BH,,
http://statistics.data.gov.uk/doc/local-authority/00CC,BarnsleyMBC,22/11/2022,5100330441,905.87,CITY PLUMBING SUPPLIES,530034,BH,Equipment - Repair and Maintenance,400003
http://statistics.data.gov.uk/doc/local-authority/00CC,BarnsleyMBC,22/11/2022,5100330510,580.44,CITY PLUMBING SUPPLIES,530034,BH,,
http://statistics.data.gov.uk/doc/local-authority/00CC,BarnsleyMBC,23/11/2022,5100330630,990.24,CITY PLUMBING SUPPLIES,530034,BH,Direct - Building Items,403013
http://statistics.data.gov.uk/doc/local-authority/00CC,BarnsleyMBC,23/11/2022,5100330576,529.98,CITY PLUMBING SUPPLIES,530034,BH,Direct - Building Items,403013
http://statistics.data.gov.uk/doc/local-authority/00CC,BarnsleyMBC,23/11/2022,5100330669,786.5,CITY PLUMBING SUPPLIES,530034,BH,Direct - Building Items,403013
http://statistics.data.gov.uk/doc/local-authority/00CC,BarnsleyMBC,23/11/2022,5100330580,"1,381.05",CITY PLUMBING SUPPLIES,530034,BH,Equipment - Electrical Goods,400007
http://statistics.data.gov.uk/doc/local-authority/00CC,BarnsleyMBC,24/11/2022,5100330680,924.76,CITY PLUMBING SUPPLIES,530034,BH,Direct - Building Items,403013
http://statistics.data.gov.uk/doc/local-authority/00CC,BarnsleyMBC,24/11/2022,5100330598,523.8,CITY PLUMBING SUPPLIES,530034,BH,Direct - Building Items,403013
http://statistics.data.gov.uk/doc/local-authority/00CC,BarnsleyMBC,28/11/2022,5100330804,"1,359.96",CITY PLUMBING SUPPLIES,530034,BH,Direct - Building Items,403013
http://statistics.data.gov.uk/doc/local-authority/00CC,BarnsleyMBC,28/11/2022,5100330802,"1,520.98",CITY PLUMBING SUPPLIES,530034,BH,Direct - Building Items,403013
http://statistics.data.gov.uk/doc/local-authority/00CC,BarnsleyMBC,28/11/2022,5100330691,"1,336.18",CITY PLUMBING SUPPLIES,530034,BH,,
http://statistics.data.gov.uk/doc/local-authority/00CC,BarnsleyMBC,28/11/2022,5100330690,"4,058.57",CITY PLUMBING SUPPLIES,530034,BH,,
http://statistics.data.gov.uk/doc/local-authority/00CC,BarnsleyMBC,28/11/2022,5100330768,"2,339.37",CITY PLUMBING SUPPLIES,530034,BH,,
http://statistics.data.gov.uk/doc/local-authority/00CC,BarnsleyMBC,28/11/2022,5100330769,"1,780.79",CITY PLUMBING SUPPLIES,530034,BH,,
http://statistics.data.gov.uk/doc/local-authority/00CC,BarnsleyMBC,28/11/2022,5100330696,"1,583.61",CITY PLUMBING SUPPLIES,530034,BH,,
http://statistics.data.gov.uk/doc/local-authority/00CC,BarnsleyMBC,29/11/2022,5100330725,"1,095.48",CITY PLUMBING SUPPLIES,530034,BH,,
http://statistics.data.gov.uk/doc/local-authority/00CC,BarnsleyMBC,29/11/2022,5100330806,"1,373.36",CITY PLUMBING SUPPLIES,530034,BH,Direct - Building Items,403013
http://statistics.data.gov.uk/doc/local-authority/00CC,BarnsleyMBC,29/11/2022,5100330732,"2,178.72",CITY PLUMBING SUPPLIES,530034,BH,,
http://statistics.data.gov.uk/doc/local-authority/00CC,BarnsleyMBC,29/11/2022,5100330728,696,CITY PLUMBING SUPPLIES,530034,BH,,
http://statistics.data.gov.uk/doc/local-authority/00CC,BarnsleyMBC,30/11/2022,5100330753,"1,106.56",CITY PLUMBING SUPPLIES,530034,BH,Direct - Building Items,403013
http://statistics.data.gov.uk/doc/local-authority/00CC,BarnsleyMBC,30/11/2022,5100330754,"1,828.80",CITY PLUMBING SUPPLIES,530034,BH,,
http://statistics.data.gov.uk/doc/local-authority/00CC,BarnsleyMBC,30/11/2022,5100330808,999.48,CITY PLUMBING SUPPLIES,530034,BH,,
http://statistics.data.gov.uk/doc/local-authority/00CC,BarnsleyMBC,30/11/2022,5100330810,"1,185.77",CITY PLUMBING SUPPLIES,530034,BH,,
http://statistics.data.gov.uk/doc/local-authority/00CC,BarnsleyMBC,01/12/2022,5100330786,"6,848.10",CITY PLUMBING SUPPLIES,530034,BH,,
http://statistics.data.gov.uk/doc/local-authority/00CC,BarnsleyMBC,02/12/2022,5100330996,"2,691.42",CITY PLUMBING SUPPLIES,530034,BH,,
http://statistics.data.gov.uk/doc/local-authority/00CC,BarnsleyMBC,02/12/2022,5100330894,572.4,CITY PLUMBING SUPPLIES,530034,BH,Direct - Building Items,403013
http://statistics.data.gov.uk/doc/local-authority/00CC,BarnsleyMBC,02/12/2022,5100330997,"1,117.92",CITY PLUMBING SUPPLIES,530034,BH,,
http://statistics.data.gov.uk/doc/local-authority/00CC,BarnsleyMBC,05/12/2022,5100331004,"4,445.83",CITY PLUMBING SUPPLIES,530034,BH,,
http://statistics.data.gov.uk/doc/local-authority/00CC,BarnsleyMBC,05/12/2022,5100330961,"2,859.92",CITY PLUMBING SUPPLIES,530034,BH,,
http://statistics.data.gov.uk/doc/local-authority/00CC,BarnsleyMBC,05/12/2022,5100330934,"1,333.76",CITY PLUMBING SUPPLIES,530034,BH,Direct - Building Items,403013
http://statistics.data.gov.uk/doc/local-authority/00CC,BarnsleyMBC,05/12/2022,5100330960,810.24,CITY PLUMBING SUPPLIES,530034,BH,,
http://statistics.data.gov.uk/doc/local-authority/00CC,BarnsleyMBC,05/12/2022,5100330905,691.06,CITY PLUMBING SUPPLIES,530034,BH,Direct - Building Items,403013
http://statistics.data.gov.uk/doc/local-authority/00CC,BarnsleyMBC,05/12/2022,5100330953,732.24,CITY PLUMBING SUPPLIES,530034,BH,,
http://statistics.data.gov.uk/doc/local-authority/00CC,BarnsleyMBC,05/12/2022,5100330959,892.38,CITY PLUMBING SUPPLIES,530034,BH,,
http://statistics.data.gov.uk/doc/local-authority/00CC,BarnsleyMBC,06/12/2022,5100330958,601.01,CITY PLUMBING SUPPLIES,530034,BH,Direct - Building Items,403013
http://statistics.data.gov.uk/doc/local-authority/00CC,BarnsleyMBC,06/12/2022,5100331000,838.45,CITY PLUMBING SUPPLIES,530034,BH,Direct - Building Items,403013
http://statistics.data.gov.uk/doc/local-authority/00CC,BarnsleyMBC,07/12/2022,5100331059,691.06,CITY PLUMBING SUPPLIES,530034,BH,Direct - Building Items,403013
http://statistics.data.gov.uk/doc/local-authority/00CC,BarnsleyMBC,08/12/2022,5100331132,"1,575.37",CITY PLUMBING SUPPLIES,530034,BH,Direct - Building Items,403013
http://statistics.data.gov.uk/doc/local-authority/00CC,BarnsleyMBC,08/12/2022,5100331053,"1,460.64",CITY PLUMBING SUPPLIES,530034,BH,,
http://statistics.data.gov.uk/doc/local-authority/00CC,BarnsleyMBC,08/12/2022,5100331133,"1,368.69",CITY PLUMBING SUPPLIES,530034,BH,Direct - Building Items,403013
http://statistics.data.gov.uk/doc/local-authority/00CC,BarnsleyMBC,08/12/2022,5100331047,583.5,CITY PLUMBING SUPPLIES,530034,BH,Direct - Building Items,403013
http://statistics.data.gov.uk/doc/local-authority/00CC,BarnsleyMBC,08/12/2022,5100331056,711.92,CITY PLUMBING SUPPLIES,530034,BH,Direct - Building Items,403013
http://statistics.data.gov.uk/doc/local-authority/00CC,BarnsleyMBC,08/12/2022,5100331131,"1,021.65",CITY PLUMBING SUPPLIES,530034,BH,Direct - Building Items,403013
http://statistics.data.gov.uk/doc/local-authority/00CC,BarnsleyMBC,08/12/2022,5100331103,522.74,CITY PLUMBING SUPPLIES,530034,BH,Direct - Building Items,403013
http://statistics.data.gov.uk/doc/local-authority/00CC,BarnsleyMBC,09/12/2022,5100331091,"4,591.02",CITY PLUMBING SUPPLIES,530034,BH,,
http://statistics.data.gov.uk/doc/local-authority/00CC,BarnsleyMBC,12/12/2022,5100331152,"4,300.85",CITY PLUMBING SUPPLIES,530034,BH,,
http://statistics.data.gov.uk/doc/local-authority/00CC,BarnsleyMBC,12/12/2022,5100331150,810.24,CITY PLUMBING SUPPLIES,530034,BH,,
http://statistics.data.gov.uk/doc/local-authority/00CC,BarnsleyMBC,12/12/2022,5100331161,"10,756.10",CITY PLUMBING SUPPLIES,530034,BH,,
http://statistics.data.gov.uk/doc/local-authority/00CC,BarnsleyMBC,13/12/2022,5100331149,859.35,CITY PLUMBING SUPPLIES,530034,BH,Direct - Building Items,403013
http://statistics.data.gov.uk/doc/local-authority/00CC,BarnsleyMBC,13/12/2022,5100331323,"2,347.76",CITY PLUMBING SUPPLIES,530034,BH,,
http://statistics.data.gov.uk/doc/local-authority/00CC,BarnsleyMBC,13/12/2022,5100331328,"1,371.32",CITY PLUMBING SUPPLIES,530034,BH,Direct - Building Items,403013
http://statistics.data.gov.uk/doc/local-authority/00CC,BarnsleyMBC,13/12/2022,5100331330,"1,384.79",CITY PLUMBING SUPPLIES,530034,BH,Direct - Building Items,403013
http://statistics.data.gov.uk/doc/local-authority/00CC,BarnsleyMBC,13/12/2022,5100331332,"1,194.70",CITY PLUMBING SUPPLIES,530034,BH,Direct - Building Items,403013
http://statistics.data.gov.uk/doc/local-authority/00CC,BarnsleyMBC,13/12/2022,5100331327,"1,322.23",CITY PLUMBING SUPPLIES,530034,BH,Direct - Building Items,403013
http://statistics.data.gov.uk/doc/local-authority/00CC,BarnsleyMBC,13/12/2022,5100331324,"1,478.18",CITY PLUMBING SUPPLIES,530034,BH,Direct - Building Items,403013
http://statistics.data.gov.uk/doc/local-authority/00CC,BarnsleyMBC,13/12/2022,5100331331,840.89,CITY PLUMBING SUPPLIES,530034,BH,Direct - Building Items,403013
http://statistics.data.gov.uk/doc/local-authority/00CC,BarnsleyMBC,13/12/2022,5100331321,"1,363.70",CITY PLUMBING SUPPLIES,530034,BH,Direct - Building Items,403013
http://statistics.data.gov.uk/doc/local-authority/00CC,BarnsleyMBC,14/12/2022,5100331239,967.14,CITY PLUMBING SUPPLIES,530034,BH,Direct - Building Items,403013
http://statistics.data.gov.uk/doc/local-authority/00CC,BarnsleyMBC,14/12/2022,5100331202,"1,756.75",CITY PLUMBING SUPPLIES,530034,BH,,
http://statistics.data.gov.uk/doc/local-authority/00CC,BarnsleyMBC,14/12/2022,5100331237,"1,219.93",CITY PLUMBING SUPPLIES,530034,BH,Direct - Building Items,403013
http://statistics.data.gov.uk/doc/local-authority/00CC,BarnsleyMBC,15/12/2022,5100331221,892.8,CITY PLUMBING SUPPLIES,530034,BH,Direct - Building Items,403013
http://statistics.data.gov.uk/doc/local-authority/00CC,BarnsleyMBC,15/12/2022,5100331325,"1,042.77",CITY PLUMBING SUPPLIES,530034,BH,Direct - Building Items,403013
http://statistics.data.gov.uk/doc/local-authority/00CC,BarnsleyMBC,19/12/2022,5100331345,"10,642.63",CITY PLUMBING SUPPLIES,530034,BH,,
http://statistics.data.gov.uk/doc/local-authority/00CC,BarnsleyMBC,19/12/2022,5100331348,"4,262.40",CITY PLUMBING SUPPLIES,530034,BH,,
http://statistics.data.gov.uk/doc/local-authority/00CC,BarnsleyMBC,20/12/2022,5100331689,"4,969.08",CITY PLUMBING SUPPLIES,530034,BH,,
http://statistics.data.gov.uk/doc/local-authority/00CC,BarnsleyMBC,20/12/2022,5100331698,530.1,CITY PLUMBING SUPPLIES,530034,BH,,
http://statistics.data.gov.uk/doc/local-authority/00CC,BarnsleyMBC,20/12/2022,5100331666,523.26,CITY PLUMBING SUPPLIES,530034,BH,,
http://statistics.data.gov.uk/doc/local-authority/00CC,BarnsleyMBC,20/12/2022,5100331669,747.12,CITY PLUMBING SUPPLIES,530034,BH,Equipment - Repair and Maintenance,400003
http://statistics.data.gov.uk/doc/local-authority/00CC,BarnsleyMBC,20/12/2022,5100331686,968.43,CITY PLUMBING SUPPLIES,530034,BH,,
http://statistics.data.gov.uk/doc/local-authority/00CC,BarnsleyMBC,20/12/2022,5100331667,622.73,CITY PLUMBING SUPPLIES,530034,BH,,
http://statistics.data.gov.uk/doc/local-authority/00CC,BarnsleyMBC,20/12/2022,5100331668,"3,561.96",CITY PLUMBING SUPPLIES,530034,BH,,
http://statistics.data.gov.uk/doc/local-authority/00CC,BarnsleyMBC,20/12/2022,5100331687,503.98,CITY PLUMBING SUPPLIES,530034,BH,,
http://statistics.data.gov.uk/doc/local-authority/00CC,BarnsleyMBC,20/12/2022,5100331704,970.21,CITY PLUMBING SUPPLIES,530034,BH,,
http://statistics.data.gov.uk/doc/local-authority/00CC,BarnsleyMBC,20/12/2022,5100331652,"1,138.37",CITY PLUMBING SUPPLIES,530034,BH,,
http://statistics.data.gov.uk/doc/local-authority/00CC,BarnsleyMBC,20/12/2022,5100331709,"3,659.46",CITY PLUMBING SUPPLIES,530034,BH,,
http://statistics.data.gov.uk/doc/local-authority/00CC,BarnsleyMBC,20/12/2022,5100331681,721.49,CITY PLUMBING SUPPLIES,530034,BH,Direct - Building Items,403013
http://statistics.data.gov.uk/doc/local-authority/00CC,BarnsleyMBC,20/12/2022,5100331694,572.4,CITY PLUMBING SUPPLIES,530034,BH,Direct - Building Items,403013
http://statistics.data.gov.uk/doc/local-authority/00CC,BarnsleyMBC,21/12/2022,5100331566,"1,229.06",CITY PLUMBING SUPPLIES,530034,BH,,
http://statistics.data.gov.uk/doc/local-authority/00CC,BarnsleyMBC,21/12/2022,5100331719,"1,125.04",CITY PLUMBING SUPPLIES,530034,BH,Direct - Building Items,403013
http://statistics.data.gov.uk/doc/local-authority/00CC,BarnsleyMBC,23/12/2022,5100331743,"1,279.42",CITY PLUMBING SUPPLIES,530034,BH,,
http://statistics.data.gov.uk/doc/local-authority/00CC,BarnsleyMBC,23/12/2022,5100331745,"1,188.24",CITY PLUMBING SUPPLIES,530034,BH,,
http://statistics.data.gov.uk/doc/local-authority/00CC,BarnsleyMBC,23/12/2022,5100331849,696,CITY PLUMBING SUPPLIES,530034,BH,,
http://statistics.data.gov.uk/doc/local-authority/00CC,BarnsleyMBC,23/12/2022,5100331747,"4,451.74",CITY PLUMBING SUPPLIES,530034,BH,,
http://statistics.data.gov.uk/doc/local-authority/00CC,BarnsleyMBC,23/12/2022,5100331856,"1,450.57",CITY PLUMBING SUPPLIES,530034,BH,Direct - Building Items,403013
http://statistics.data.gov.uk/doc/local-authority/00CC,BarnsleyMBC,23/12/2022,5100331857,"1,341.89",CITY PLUMBING SUPPLIES,530034,BH,Direct - Building Items,403013
http://statistics.data.gov.uk/doc/local-authority/00CC,BarnsleyMBC,24/10/2022,5100329427,"3,962.40",CLOSOMAT LTD,534392,BH,Direct - Building Items,403013
http://statistics.data.gov.uk/doc/local-authority/00CC,BarnsleyMBC,08/11/2022,5100329946,"4,587.60",CLOSOMAT LTD,534392,BH,Direct - Building Items,403013
http://statistics.data.gov.uk/doc/local-authority/00CC,BarnsleyMBC,09/11/2022,5100330080,"3,962.40",CLOSOMAT LTD,534392,BH,Direct - Building Items,403013
http://statistics.data.gov.uk/doc/local-authority/00CC,BarnsleyMBC,25/10/2022,5100329540,"1,020.00",COMPETENT ASPHALT CO LTD,530383,BH,Main contractor,506011
http://statistics.data.gov.uk/doc/local-authority/00CC,BarnsleyMBC,06/10/2022,5200077158,554.38,CORONA ENERGY,585148,BH,Energy - Gas,210002
http://statistics.data.gov.uk/doc/local-authority/00CC,BarnsleyMBC,06/10/2022,5200077160,"2,576.76",CORONA ENERGY,585148,BH,Energy - Gas,210002
http://statistics.data.gov.uk/doc/local-authority/00CC,BarnsleyMBC,06/10/2022,5200077159,"1,145.43",CORONA ENERGY,585148,BH,Energy - Gas,210002
http://statistics.data.gov.uk/doc/local-authority/00CC,BarnsleyMBC,06/10/2022,5200077156,"3,150.72",CORONA ENERGY,585148,BH,Energy - Gas,210002
http://statistics.data.gov.uk/doc/local-authority/00CC,BarnsleyMBC,06/10/2022,5200077153,"2,085.14",CORONA ENERGY,585148,BH,Energy - Gas,210002
http://statistics.data.gov.uk/doc/local-authority/00CC,BarnsleyMBC,06/10/2022,5200077148,"2,214.08",CORONA ENERGY,585148,BH,Energy - Gas,210002
http://statistics.data.gov.uk/doc/local-authority/00CC,BarnsleyMBC,06/10/2022,5200077147,"2,080.77",CORONA ENERGY,585148,BH,Energy - Gas,210002
http://statistics.data.gov.uk/doc/local-authority/00CC,BarnsleyMBC,06/10/2022,5200077144,507.7,CORONA ENERGY,585148,BH,Energy - Gas,210002
http://statistics.data.gov.uk/doc/local-authority/00CC,BarnsleyMBC,06/10/2022,5200077143,576.45,CORONA ENERGY,585148,BH,Energy - Gas,210002
http://statistics.data.gov.uk/doc/local-authority/00CC,BarnsleyMBC,06/10/2022,5200077141,"1,436.27",CORONA ENERGY,585148,BH,Energy - Gas,210002
http://statistics.data.gov.uk/doc/local-authority/00CC,BarnsleyMBC,06/10/2022,5200077137,"2,468.97",CORONA ENERGY,585148,BH,Energy - Gas,210002
http://statistics.data.gov.uk/doc/local-authority/00CC,BarnsleyMBC,06/10/2022,5200077133,"5,361.78",CORONA ENERGY,585148,BH,Energy - Gas,210002
http://statistics.data.gov.uk/doc/local-authority/00CC,BarnsleyMBC,06/10/2022,5200077132,"2,668.97",CORONA ENERGY,585148,BH,Energy - Gas,210002
http://statistics.data.gov.uk/doc/local-authority/00CC,BarnsleyMBC,06/10/2022,5200077129,518.14,CORONA ENERGY,585148,BH,Energy - Gas,210002
http://statistics.data.gov.uk/doc/local-authority/00CC,BarnsleyMBC,06/10/2022,5200077128,"8,141.81",CORONA ENERGY,585148,BH,Energy - Gas,210002
http://statistics.data.gov.uk/doc/local-authority/00CC,BarnsleyMBC,06/10/2022,5200077127,"3,887.37",CORONA ENERGY,585148,BH,Energy - Gas,210002
http://statistics.data.gov.uk/doc/local-authority/00CC,BarnsleyMBC,06/10/2022,5200077122,678.65,CORONA ENERGY,585148,BH,Energy - Gas,210002
http://statistics.data.gov.uk/doc/local-authority/00CC,BarnsleyMBC,06/10/2022,5200077121,"6,874.01",CORONA ENERGY,585148,BH,Energy - Gas,210002
http://statistics.data.gov.uk/doc/local-authority/00CC,BarnsleyMBC,06/10/2022,5200077120,"2,634.15",CORONA ENERGY,585148,BH,Energy - Gas,210002
http://statistics.data.gov.uk/doc/local-authority/00CC,BarnsleyMBC,06/10/2022,5200077115,"1,431.93",CORONA ENERGY,585148,BH,Energy - Gas,210002
http://statistics.data.gov.uk/doc/local-authority/00CC,BarnsleyMBC,06/10/2022,5200077114,"7,215.87",CORONA ENERGY,585148,BH,Energy - Gas,210002
http://statistics.data.gov.uk/doc/local-authority/00CC,BarnsleyMBC,13/10/2022,5200077201,"1,754.72",CORONA ENERGY,585148,BH,Energy - Gas,210002
http://statistics.data.gov.uk/doc/local-authority/00CC,BarnsleyMBC,13/10/2022,5200077202,"4,724.07",CORONA ENERGY,585148,BH,Energy - Gas,210002
http://statistics.data.gov.uk/doc/local-authority/00CC,BarnsleyMBC,13/10/2022,5200077208,"6,420.40",CORONA ENERGY,585148,BH,Energy - Gas,210002
http://statistics.data.gov.uk/doc/local-authority/00CC,BarnsleyMBC,13/10/2022,5200077239,"2,347.19",CORONA ENERGY,585148,BH,Energy - Gas,210002
http://statistics.data.gov.uk/doc/local-authority/00CC,BarnsleyMBC,13/10/2022,5200077238,969.61,CORONA ENERGY,585148,BH,Energy - Gas,210002
http://statistics.data.gov.uk/doc/local-authority/00CC,BarnsleyMBC,13/10/2022,5200077240,"5,670.79",CORONA ENERGY,585148,BH,Energy - Gas,210002
http://statistics.data.gov.uk/doc/local-authority/00CC,BarnsleyMBC,13/10/2022,5200077213,672.37,CORONA ENERGY,585148,BH,Energy - Gas,210002
http://statistics.data.gov.uk/doc/local-authority/00CC,BarnsleyMBC,13/10/2022,5200077241,654.47,CORONA ENERGY,585148,BH,Energy - Gas,210002
http://statistics.data.gov.uk/doc/local-authority/00CC,BarnsleyMBC,13/10/2022,5200077217,"1,385.70",CORONA ENERGY,585148,BH,Energy - Gas,210002
http://statistics.data.gov.uk/doc/local-authority/00CC,BarnsleyMBC,13/10/2022,5200077246,"3,923.14",CORONA ENERGY,585148,BH,Energy - Gas,210002
http://statistics.data.gov.uk/doc/local-authority/00CC,BarnsleyMBC,13/10/2022,5200077218,"2,028.26",CORONA ENERGY,585148,BH,Energy - Gas,210002
http://statistics.data.gov.uk/doc/local-authority/00CC,BarnsleyMBC,13/10/2022,5200077247,"6,157.79",CORONA ENERGY,585148,BH,Energy - Gas,210002
http://statistics.data.gov.uk/doc/local-authority/00CC,BarnsleyMBC,13/10/2022,5200077248,509.36,CORONA ENERGY,585148,BH,Energy - Gas,210002
http://statistics.data.gov.uk/doc/local-authority/00CC,BarnsleyMBC,13/10/2022,5200077233,"6,192.83",CORONA ENERGY,585148,BH,Energy - Gas,210002
http://statistics.data.gov.uk/doc/local-authority/00CC,BarnsleyMBC,13/10/2022,5200077251,"3,801.75",CORONA ENERGY,585148,BH,Energy - Gas,210002
http://statistics.data.gov.uk/doc/local-authority/00CC,BarnsleyMBC,13/10/2022,5200077230,"3,272.97",CORONA ENERGY,585148,BH,Energy - Gas,210002
http://statistics.data.gov.uk/doc/local-authority/00CC,BarnsleyMBC,13/10/2022,5200077223,"1,791.39",CORONA ENERGY,585148,BH,Energy - Gas,210002
http://statistics.data.gov.uk/doc/local-authority/00CC,BarnsleyMBC,13/10/2022,5200077226,"2,863.75",CORONA ENERGY,585148,BH,Energy - Gas,210002
http://statistics.data.gov.uk/doc/local-authority/00CC,BarnsleyMBC,13/10/2022,5200077229,"1,041.14",CORONA ENERGY,585148,BH,Energy - Gas,210002
http://statistics.data.gov.uk/doc/local-authority/00CC,BarnsleyMBC,13/10/2022,5200077278,"1,081.71",CORONA ENERGY,585148,BH,Energy - Gas,210002
http://statistics.data.gov.uk/doc/local-authority/00CC,BarnsleyMBC,13/10/2022,5200077275,"2,846.75",CORONA ENERGY,585148,BH,Energy - Gas,210002
http://statistics.data.gov.uk/doc/local-authority/00CC,BarnsleyMBC,13/10/2022,5200077272,"1,789.92",CORONA ENERGY,585148,BH,Energy - Gas,210002
http://statistics.data.gov.uk/doc/local-authority/00CC,BarnsleyMBC,13/10/2022,5200077267,"1,911.09",CORONA ENERGY,585148,BH,Energy - Gas,210002
http://statistics.data.gov.uk/doc/local-authority/00CC,BarnsleyMBC,13/10/2022,5200077266,"1,169.24",CORONA ENERGY,585148,BH,Energy - Gas,210002
http://statistics.data.gov.uk/doc/local-authority/00CC,BarnsleyMBC,13/10/2022,5200077262,677.81,CORONA ENERGY,585148,BH,Energy - Gas,210002
http://statistics.data.gov.uk/doc/local-authority/00CC,BarnsleyMBC,13/10/2022,5200077256,619.57,CORONA ENERGY,585148,BH,Energy - Gas,210002
http://statistics.data.gov.uk/doc/local-authority/00CC,BarnsleyMBC,13/10/2022,5200077255,"2,696.43",CORONA ENERGY,585148,BH,Energy - Gas,210002
http://statistics.data.gov.uk/doc/local-authority/00CC,BarnsleyMBC,13/10/2022,5200077189,"2,398.86",CORONA ENERGY,585148,BH,Energy - Gas,210002
http://statistics.data.gov.uk/doc/local-authority/00CC,BarnsleyMBC,13/10/2022,5200077190,"6,511.38",CORONA ENERGY,585148,BH,Energy - Gas,210002
http://statistics.data.gov.uk/doc/local-authority/00CC,BarnsleyMBC,13/10/2022,5200077191,632.26,CORONA ENERGY,585148,BH,Energy - Gas,210002
http://statistics.data.gov.uk/doc/local-authority/00CC,BarnsleyMBC,13/10/2022,5200077196,"4,022.18",CORONA ENERGY,585148,BH,Energy - Gas,210002
http://statistics.data.gov.uk/doc/local-authority/00CC,BarnsleyMBC,13/10/2022,5200077197,"3,326.39",CORONA ENERGY,585148,BH,Energy - Gas,210002
http://statistics.data.gov.uk/doc/local-authority/00CC,BarnsleyMBC,13/10/2022,5200077198,519.1,CORONA ENERGY,585148,BH,Energy - Gas,210002
http://statistics.data.gov.uk/doc/local-authority/00CC,BarnsleyMBC,28/10/2022,5200077434,"1,172.54",CORONA ENERGY,585148,BH,Energy - Gas,210002
http://statistics.data.gov.uk/doc/local-authority/00CC,BarnsleyMBC,28/10/2022,5200077433,583.84,CORONA ENERGY,585148,BH,Energy - Gas,210002
http://statistics.data.gov.uk/doc/local-authority/00CC,BarnsleyMBC,28/10/2022,5200077431,"3,006.55",CORONA ENERGY,585148,BH,Energy - Gas,210002
http://statistics.data.gov.uk/doc/local-authority/00CC,BarnsleyMBC,28/10/2022,5200077428,"2,304.55",CORONA ENERGY,585148,BH,Energy - Gas,210002
http://statistics.data.gov.uk/doc/local-authority/00CC,BarnsleyMBC,28/10/2022,5200077423,"2,324.70",CORONA ENERGY,585148,BH,Energy - Gas,210002
http://statistics.data.gov.uk/doc/local-authority/00CC,BarnsleyMBC,28/10/2022,5200077422,"1,964.84",CORONA ENERGY,585148,BH,Energy - Gas,210002
http://statistics.data.gov.uk/doc/local-authority/00CC,BarnsleyMBC,28/10/2022,5200077385,"3,489.65",CORONA ENERGY,585148,BH,Energy - Gas,210002
http://statistics.data.gov.uk/doc/local-authority/00CC,BarnsleyMBC,28/10/2022,5200077387,"8,278.26",CORONA ENERGY,585148,BH,Energy - Gas,210002
http://statistics.data.gov.uk/doc/local-authority/00CC,BarnsleyMBC,28/10/2022,5200077393,"2,858.77",CORONA ENERGY,585148,BH,Energy - Gas,210002
http://statistics.data.gov.uk/doc/local-authority/00CC,BarnsleyMBC,28/10/2022,5200077394,"6,721.82",CORONA ENERGY,585148,BH,Energy - Gas,210002
http://statistics.data.gov.uk/doc/local-authority/00CC,BarnsleyMBC,28/10/2022,5200077395,946.45,CORONA ENERGY,585148,BH,Energy - Gas,210002
http://statistics.data.gov.uk/doc/local-authority/00CC,BarnsleyMBC,28/10/2022,5200077399,"4,636.61",CORONA ENERGY,585148,BH,Energy - Gas,210002
http://statistics.data.gov.uk/doc/local-authority/00CC,BarnsleyMBC,28/10/2022,5200077400,"8,591.73",CORONA ENERGY,585148,BH,Energy - Gas,210002
http://statistics.data.gov.uk/doc/local-authority/00CC,BarnsleyMBC,28/10/2022,5200077401,714.56,CORONA ENERGY,585148,BH,Energy - Gas,210002
http://statistics.data.gov.uk/doc/local-authority/00CC,BarnsleyMBC,28/10/2022,5200077419,592.37,CORONA ENERGY,585148,BH,Energy - Gas,210002
http://statistics.data.gov.uk/doc/local-authority/00CC,BarnsleyMBC,28/10/2022,5200077418,734.21,CORONA ENERGY,585148,BH,Energy - Gas,210002
http://statistics.data.gov.uk/doc/local-authority/00CC,BarnsleyMBC,28/10/2022,5200077416,652.34,CORONA ENERGY,585148,BH,Energy - Gas,210002
http://statistics.data.gov.uk/doc/local-authority/00CC,BarnsleyMBC,28/10/2022,5200077412,"1,549.03",CORONA ENERGY,585148,BH,Energy - Gas,210002
http://statistics.data.gov.uk/doc/local-authority/00CC,BarnsleyMBC,28/10/2022,5200077404,"5,821.35",CORONA ENERGY,585148,BH,Energy - Gas,210002
http://statistics.data.gov.uk/doc/local-authority/00CC,BarnsleyMBC,28/10/2022,5200077408,563.48,CORONA ENERGY,585148,BH,Energy - Gas,210002
http://statistics.data.gov.uk/doc/local-authority/00CC,BarnsleyMBC,28/10/2022,5200077411,619.57,CORONA ENERGY,585148,BH,Energy - Gas,210002
http://statistics.data.gov.uk/doc/local-authority/00CC,BarnsleyMBC,28/10/2022,5200077410,-619.57,CORONA ENERGY,585148,BH,Energy - Gas,210002
http://statistics.data.gov.uk/doc/local-authority/00CC,BarnsleyMBC,12/12/2022,5200078726,"4,411.06",CORONA ENERGY,585148,BH,Energy - Gas,210002
http://statistics.data.gov.uk/doc/local-authority/00CC,BarnsleyMBC,12/12/2022,5200078725,"1,069.65",CORONA ENERGY,585148,BH,Energy - Gas,210002
http://statistics.data.gov.uk/doc/local-authority/00CC,BarnsleyMBC,12/12/2022,5200078724,858.07,CORONA ENERGY,585148,BH,Energy - Gas,210002
http://statistics.data.gov.uk/doc/local-authority/00CC,BarnsleyMBC,12/12/2022,5200078722,"3,639.59",CORONA ENERGY,585148,BH,Energy - Gas,210002
http://statistics.data.gov.uk/doc/local-authority/00CC,BarnsleyMBC,12/12/2022,5200078719,"3,302.03",CORONA ENERGY,585148,BH,Energy - Gas,210002
http://statistics.data.gov.uk/doc/local-authority/00CC,BarnsleyMBC,12/12/2022,5200078714,"3,228.71",CORONA ENERGY,585148,BH,Energy - Gas,210002
http://statistics.data.gov.uk/doc/local-authority/00CC,BarnsleyMBC,12/12/2022,5200078713,"3,360.47",CORONA ENERGY,585148,BH,Energy - Gas,210002
http://statistics.data.gov.uk/doc/local-authority/00CC,BarnsleyMBC,12/12/2022,5200078710,788.29,CORONA ENERGY,585148,BH,Energy - Gas,210002
http://statistics.data.gov.uk/doc/local-authority/00CC,BarnsleyMBC,12/12/2022,5200078709,504.69,CORONA ENERGY,585148,BH,Energy - Gas,210002
http://statistics.data.gov.uk/doc/local-authority/00CC,BarnsleyMBC,12/12/2022,5200078707,"5,176.32",CORONA ENERGY,585148,BH,Energy - Gas,210002
http://statistics.data.gov.uk/doc/local-authority/00CC,BarnsleyMBC,12/12/2022,5200078702,962.78,CORONA ENERGY,585148,BH,Energy - Gas,210002
http://statistics.data.gov.uk/doc/local-authority/00CC,BarnsleyMBC,12/12/2022,5200078700,"8,448.29",CORONA ENERGY,585148,BH,Energy - Gas,210002
http://statistics.data.gov.uk/doc/local-authority/00CC,BarnsleyMBC,12/12/2022,5200078699,"2,223.18",CORONA ENERGY,585148,BH,Energy - Gas,210002
http://statistics.data.gov.uk/doc/local-authority/00CC,BarnsleyMBC,12/12/2022,5200078682,"11,375.97",CORONA ENERGY,585148,BH,Energy - Gas,210002
http://statistics.data.gov.uk/doc/local-authority/00CC,BarnsleyMBC,12/12/2022,5200078683,"1,548.59",CORONA ENERGY,585148,BH,Energy - Gas,210002
http://statistics.data.gov.uk/doc/local-authority/00CC,BarnsleyMBC,12/12/2022,5200078687,"3,100.45",CORONA ENERGY,585148,BH,Energy - Gas,210002
http://statistics.data.gov.uk/doc/local-authority/00CC,BarnsleyMBC,12/12/2022,5200078688,"3,975.01",CORONA ENERGY,585148,BH,Energy - Gas,210002
http://statistics.data.gov.uk/doc/local-authority/00CC,BarnsleyMBC,12/12/2022,5200078689,"9,457.15",CORONA ENERGY,585148,BH,Energy - Gas,210002
http://statistics.data.gov.uk/doc/local-authority/00CC,BarnsleyMBC,12/12/2022,5200078690,"1,209.78",CORONA ENERGY,585148,BH,Energy - Gas,210002
http://statistics.data.gov.uk/doc/local-authority/00CC,BarnsleyMBC,12/12/2022,5200078694,"6,260.90",CORONA ENERGY,585148,BH,Energy - Gas,210002
http://statistics.data.gov.uk/doc/local-authority/00CC,BarnsleyMBC,12/12/2022,5200078695,"10,565.38",CORONA ENERGY,585148,BH,Energy - Gas,210002
http://statistics.data.gov.uk/doc/local-authority/00CC,BarnsleyMBC,12/12/2022,5200078696,948.09,CORONA ENERGY,585148,BH,Energy - Gas,210002
http://statistics.data.gov.uk/doc/local-authority/00CC,BarnsleyMBC,08/12/2022,5100331130,"1,224.00",CROWTHER & SHAW LTD,551058,BH,Main contractor,506011
http://statistics.data.gov.uk/doc/local-authority/00CC,BarnsleyMBC,08/12/2022,5100331128,"4,436.40",CROWTHER & SHAW LTD,551058,BH,Main contractor,506011
http://statistics.data.gov.uk/doc/local-authority/00CC,BarnsleyMBC,08/12/2022,5100331127,"1,350.00",CROWTHER & SHAW LTD,551058,BH,Main contractor,506011
http://statistics.data.gov.uk/doc/local-authority/00CC,BarnsleyMBC,28/11/2022,5100330702,648,CST Training Ltd,540625,BH,Training Courses,112001
http://statistics.data.gov.uk/doc/local-authority/00CC,BarnsleyMBC,24/10/2022,5100329221,"13,231.28",CT FLOORING,551316,BH,Main contractor,506011
http://statistics.data.gov.uk/doc/local-authority/00CC,BarnsleyMBC,28/10/2022,5100329436,"1,001.64",CT FLOORING,551316,BH,Main contractor,506011
http://statistics.data.gov.uk/doc/local-authority/00CC,BarnsleyMBC,11/11/2022,5100330084,"11,444.45",CT FLOORING,551316,BH,Main contractor,506011
http://statistics.data.gov.uk/doc/local-authority/00CC,BarnsleyMBC,06/12/2022,5100330931,"1,365.16",CT FLOORING,551316,BH,Main contractor,506011
http://statistics.data.gov.uk/doc/local-authority/00CC,BarnsleyMBC,15/12/2022,5100331256,"1,456.56",CT FLOORING,551316,BH,Main contractor,506011
http://statistics.data.gov.uk/doc/local-authority/00CC,BarnsleyMBC,19/12/2022,5100331339,"15,633.60",CT FLOORING,551316,BH,Main contractor,506011
http://statistics.data.gov.uk/doc/local-authority/00CC,BarnsleyMBC,03/10/2022,5100328472,"12,566.03",D & I WINDOWS SOLUTIONS LTD,552226,BH,Main contractor,506011
http://statistics.data.gov.uk/doc/local-authority/00CC,BarnsleyMBC,22/11/2022,5100330470,615.6,D & I WINDOWS SOLUTIONS LTD,552226,BH,,
http://statistics.data.gov.uk/doc/local-authority/00CC,BarnsleyMBC,22/11/2022,5100330469,615.64,D & I WINDOWS SOLUTIONS LTD,552226,BH,,
http://statistics.data.gov.uk/doc/local-authority/00CC,BarnsleyMBC,01/12/2022,5100330738,615.64,D & I WINDOWS SOLUTIONS LTD,552226,BH,,
http://statistics.data.gov.uk/doc/local-authority/00CC,BarnsleyMBC,23/12/2022,5100331864,"12,000.00",DECISION TIME LTD,537992,BH,Subscriptions & Contributions,430002
http://statistics.data.gov.uk/doc/local-authority/00CC,BarnsleyMBC,30/11/2022,5100330004,"3,818.40",Devonshires Solicitors LLP,538532,BH,Legal Fees,424011
http://statistics.data.gov.uk/doc/local-authority/00CC,BarnsleyMBC,23/12/2022,5100331108,"4,030.20",Devonshires Solicitors LLP,538532,BH,Legal Fees,424011
http://statistics.data.gov.uk/doc/local-authority/00CC,BarnsleyMBC,07/11/2022,5100329798,"2,880.00",Disruptive Innovators Network Ltd,536451,BH,Subscriptions & Contributions,430002
http://statistics.data.gov.uk/doc/local-authority/00CC,BarnsleyMBC,25/10/2022,5100329532,"1,050.00",DOYLE SECURITY LTD,500865,BH,Security Hire,424009
http://statistics.data.gov.uk/doc/local-authority/00CC,BarnsleyMBC,04/11/2022,5100329765,"1,050.00",DOYLE SECURITY LTD,500865,BH,Security Hire,424009
http://statistics.data.gov.uk/doc/local-authority/00CC,BarnsleyMBC,05/12/2022,5100330870,"1,050.00",DOYLE SECURITY LTD,500865,BH,Security Hire,424009
http://statistics.data.gov.uk/doc/local-authority/00CC,BarnsleyMBC,13/12/2022,5100331186,568.01,DULUX DECORATING CENTRE,505156,BH,,
http://statistics.data.gov.uk/doc/local-authority/00CC,BarnsleyMBC,06/12/2022,5100330915,"2,826.00",Dutton Fisher Associates Ltd,537487,BH,Training Courses,112001
http://statistics.data.gov.uk/doc/local-authority/00CC,BarnsleyMBC,07/11/2022,5100329790,"2,976.00",ECS GAS TRAINING LIMITED,530526,BH,Training Courses,112001
http://statistics.data.gov.uk/doc/local-authority/00CC,BarnsleyMBC,16/11/2022,5100330404,"2,400.00",ECS GAS TRAINING LIMITED,530526,BH,Training Courses,112001
http://statistics.data.gov.uk/doc/local-authority/00CC,BarnsleyMBC,03/10/2022,5100328339,"2,952.00",EDMUNDSON ELECTRICAL LTD,512393,BH,,
http://statistics.data.gov.uk/doc/local-authority/00CC,BarnsleyMBC,05/10/2022,5100328591,"4,124.16",EDMUNDSON ELECTRICAL LTD,512393,BH,,
http://statistics.data.gov.uk/doc/local-authority/00CC,BarnsleyMBC,05/10/2022,5100328349,"1,442.64",EDMUNDSON ELECTRICAL LTD,512393,BH,,
http://statistics.data.gov.uk/doc/local-authority/00CC,BarnsleyMBC,05/10/2022,5100328595,"2,109.60",EDMUNDSON ELECTRICAL LTD,512393,BH,,
http://statistics.data.gov.uk/doc/local-authority/00CC,BarnsleyMBC,07/10/2022,5100328729,"2,109.60",EDMUNDSON ELECTRICAL LTD,512393,BH,,
http://statistics.data.gov.uk/doc/local-authority/00CC,BarnsleyMBC,07/10/2022,5100328732,540,EDMUNDSON ELECTRICAL LTD,512393,BH,Equipment - Repair and Maintenance,400003
http://statistics.data.gov.uk/doc/local-authority/00CC,BarnsleyMBC,10/10/2022,5100328594,"1,762.80",EDMUNDSON ELECTRICAL LTD,512393,BH,,
http://statistics.data.gov.uk/doc/local-authority/00CC,BarnsleyMBC,11/10/2022,5100328593,"1,936.80",EDMUNDSON ELECTRICAL LTD,512393,BH,,
http://statistics.data.gov.uk/doc/local-authority/00CC,BarnsleyMBC,11/10/2022,5100328592,"10,241.66",EDMUNDSON ELECTRICAL LTD,512393,BH,,
http://statistics.data.gov.uk/doc/local-authority/00CC,BarnsleyMBC,12/10/2022,5100328727,"1,742.40",EDMUNDSON ELECTRICAL LTD,512393,BH,,
http://statistics.data.gov.uk/doc/local-authority/00CC,BarnsleyMBC,12/10/2022,5100328887,"1,687.68",EDMUNDSON ELECTRICAL LTD,512393,BH,,
http://statistics.data.gov.uk/doc/local-authority/00CC,BarnsleyMBC,13/10/2022,5100328726,"1,047.72",EDMUNDSON ELECTRICAL LTD,512393,BH,,
http://statistics.data.gov.uk/doc/local-authority/00CC,BarnsleyMBC,14/10/2022,5100328888,893.04,EDMUNDSON ELECTRICAL LTD,512393,BH,,
http://statistics.data.gov.uk/doc/local-authority/00CC,BarnsleyMBC,17/10/2022,5100328886,"2,513.10",EDMUNDSON ELECTRICAL LTD,512393,BH,,
http://statistics.data.gov.uk/doc/local-authority/00CC,BarnsleyMBC,18/10/2022,5100329054,"2,109.60",EDMUNDSON ELECTRICAL LTD,512393,BH,,
http://statistics.data.gov.uk/doc/local-authority/00CC,BarnsleyMBC,20/10/2022,5100329115,"2,109.60",EDMUNDSON ELECTRICAL LTD,512393,BH,,
http://statistics.data.gov.uk/doc/local-authority/00CC,BarnsleyMBC,21/10/2022,5100329116,"1,824.00",EDMUNDSON ELECTRICAL LTD,512393,BH,,
http://statistics.data.gov.uk/doc/local-authority/00CC,BarnsleyMBC,21/10/2022,5100329380,"4,219.20",EDMUNDSON ELECTRICAL LTD,512393,BH,,
http://statistics.data.gov.uk/doc/local-authority/00CC,BarnsleyMBC,25/10/2022,5100329546,"1,000.20",EDMUNDSON ELECTRICAL LTD,512393,BH,,
http://statistics.data.gov.uk/doc/local-authority/00CC,BarnsleyMBC,26/10/2022,5100329381,"1,778.40",EDMUNDSON ELECTRICAL LTD,512393,BH,,
http://statistics.data.gov.uk/doc/local-authority/00CC,BarnsleyMBC,26/10/2022,5100329599,"1,675.20",EDMUNDSON ELECTRICAL LTD,512393,BH,,
http://statistics.data.gov.uk/doc/local-authority/00CC,BarnsleyMBC,27/10/2022,5100329382,"2,708.70",EDMUNDSON ELECTRICAL LTD,512393,BH,,
http://statistics.data.gov.uk/doc/local-authority/00CC,BarnsleyMBC,31/10/2022,5100329629,"2,039.48",EDMUNDSON ELECTRICAL LTD,512393,BH,Direct - Tools & Parts,403019
http://statistics.data.gov.uk/doc/local-authority/00CC,BarnsleyMBC,01/11/2022,5100329622,792,EDMUNDSON ELECTRICAL LTD,512393,BH,,
http://statistics.data.gov.uk/doc/local-authority/00CC,BarnsleyMBC,01/11/2022,5100329621,"2,109.60",EDMUNDSON ELECTRICAL LTD,512393,BH,,
http://statistics.data.gov.uk/doc/local-authority/00CC,BarnsleyMBC,03/11/2022,5100329677,984.54,EDMUNDSON ELECTRICAL LTD,512393,BH,,
http://statistics.data.gov.uk/doc/local-authority/00CC,BarnsleyMBC,03/11/2022,5100329676,"2,109.60",EDMUNDSON ELECTRICAL LTD,512393,BH,,
http://statistics.data.gov.uk/doc/local-authority/00CC,BarnsleyMBC,08/11/2022,5100329954,"2,046.31",EDMUNDSON ELECTRICAL LTD,512393,BH,,
http://statistics.data.gov.uk/doc/local-authority/00CC,BarnsleyMBC,08/11/2022,5100329919,"2,109.60",EDMUNDSON ELECTRICAL LTD,512393,BH,,
http://statistics.data.gov.uk/doc/local-authority/00CC,BarnsleyMBC,08/11/2022,5100329951,767.7,EDMUNDSON ELECTRICAL LTD,512393,BH,,
http://statistics.data.gov.uk/doc/local-authority/00CC,BarnsleyMBC,09/11/2022,5100330065,"3,313.80",EDMUNDSON ELECTRICAL LTD,512393,BH,,
http://statistics.data.gov.uk/doc/local-authority/00CC,BarnsleyMBC,10/11/2022,5100329935,"2,109.60",EDMUNDSON ELECTRICAL LTD,512393,BH,,
http://statistics.data.gov.uk/doc/local-authority/00CC,BarnsleyMBC,10/11/2022,5100329916,"2,894.64",EDMUNDSON ELECTRICAL LTD,512393,BH,,
http://statistics.data.gov.uk/doc/local-authority/00CC,BarnsleyMBC,11/11/2022,5100329936,"4,689.72",EDMUNDSON ELECTRICAL LTD,512393,BH,,
http://statistics.data.gov.uk/doc/local-authority/00CC,BarnsleyMBC,11/11/2022,5100330226,"4,113.72",EDMUNDSON ELECTRICAL LTD,512393,BH,,
http://statistics.data.gov.uk/doc/local-authority/00CC,BarnsleyMBC,16/11/2022,5100330229,930.24,EDMUNDSON ELECTRICAL LTD,512393,BH,,
http://statistics.data.gov.uk/doc/local-authority/00CC,BarnsleyMBC,17/11/2022,5100330495,"2,109.60",EDMUNDSON ELECTRICAL LTD,512393,BH,,
http://statistics.data.gov.uk/doc/local-authority/00CC,BarnsleyMBC,17/11/2022,5100330227,"1,124.40",EDMUNDSON ELECTRICAL LTD,512393,BH,,
http://statistics.data.gov.uk/doc/local-authority/00CC,BarnsleyMBC,22/11/2022,5100330497,"2,787.32",EDMUNDSON ELECTRICAL LTD,512393,BH,,
http://statistics.data.gov.uk/doc/local-authority/00CC,BarnsleyMBC,23/11/2022,5100330678,"1,440.00",EDMUNDSON ELECTRICAL LTD,512393,BH,Equipment - Repair and Maintenance,400003
http://statistics.data.gov.uk/doc/local-authority/00CC,BarnsleyMBC,23/11/2022,5100330568,"1,008.00",EDMUNDSON ELECTRICAL LTD,512393,BH,,
http://statistics.data.gov.uk/doc/local-authority/00CC,BarnsleyMBC,23/11/2022,5100330569,"6,328.80",EDMUNDSON ELECTRICAL LTD,512393,BH,,
http://statistics.data.gov.uk/doc/local-authority/00CC,BarnsleyMBC,24/11/2022,5100330567,"2,099.10",EDMUNDSON ELECTRICAL LTD,512393,BH,,
http://statistics.data.gov.uk/doc/local-authority/00CC,BarnsleyMBC,25/11/2022,5100330716,665.86,EDMUNDSON ELECTRICAL LTD,512393,BH,Direct - Building Items,403013
http://statistics.data.gov.uk/doc/local-authority/00CC,BarnsleyMBC,28/11/2022,5100330718,600,EDMUNDSON ELECTRICAL LTD,512393,BH,,
http://statistics.data.gov.uk/doc/local-authority/00CC,BarnsleyMBC,29/11/2022,5100330876,537.6,EDMUNDSON ELECTRICAL LTD,512393,BH,Equipment - Electrical Goods,400007
http://statistics.data.gov.uk/doc/local-authority/00CC,BarnsleyMBC,30/11/2022,5100330744,972,EDMUNDSON ELECTRICAL LTD,512393,BH,,
http://statistics.data.gov.uk/doc/local-authority/00CC,BarnsleyMBC,30/11/2022,5100330872,"1,242.00",EDMUNDSON ELECTRICAL LTD,512393,BH,,
http://statistics.data.gov.uk/doc/local-authority/00CC,BarnsleyMBC,30/11/2022,5100330717,697.74,EDMUNDSON ELECTRICAL LTD,512393,BH,,
http://statistics.data.gov.uk/doc/local-authority/00CC,BarnsleyMBC,02/12/2022,5100330874,"3,730.80",EDMUNDSON ELECTRICAL LTD,512393,BH,,
http://statistics.data.gov.uk/doc/local-authority/00CC,BarnsleyMBC,07/12/2022,5100331011,"5,591.40",EDMUNDSON ELECTRICAL LTD,512393,BH,,
http://statistics.data.gov.uk/doc/local-authority/00CC,BarnsleyMBC,09/12/2022,5100331093,"2,177.04",EDMUNDSON ELECTRICAL LTD,512393,BH,,
http://statistics.data.gov.uk/doc/local-authority/00CC,BarnsleyMBC,13/12/2022,5100331283,940.8,EDMUNDSON ELECTRICAL LTD,512393,BH,Direct - Tools & Parts,403019
http://statistics.data.gov.uk/doc/local-authority/00CC,BarnsleyMBC,16/12/2022,5100331284,"6,053.10",EDMUNDSON ELECTRICAL LTD,512393,BH,,
http://statistics.data.gov.uk/doc/local-authority/00CC,BarnsleyMBC,21/12/2022,5100331617,"3,366.00",EDMUNDSON ELECTRICAL LTD,512393,BH,,
http://statistics.data.gov.uk/doc/local-authority/00CC,BarnsleyMBC,21/12/2022,5100331367,"6,218.10",EDMUNDSON ELECTRICAL LTD,512393,BH,,
http://statistics.data.gov.uk/doc/local-authority/00CC,BarnsleyMBC,22/12/2022,5100331621,"5,274.00",EDMUNDSON ELECTRICAL LTD,512393,BH,,
http://statistics.data.gov.uk/doc/local-authority/00CC,BarnsleyMBC,22/12/2022,5100331798,780,EDMUNDSON ELECTRICAL LTD,512393,BH,Equipment - Electrical Goods,400007
http://statistics.data.gov.uk/doc/local-authority/00CC,BarnsleyMBC,22/12/2022,5100331797,980.88,EDMUNDSON ELECTRICAL LTD,512393,BH,Equipment - Electrical Goods,400007
http://statistics.data.gov.uk/doc/local-authority/00CC,BarnsleyMBC,22/12/2022,5100331806,518.7,EDMUNDSON ELECTRICAL LTD,512393,BH,Equipment - Electrical Goods,400007
http://statistics.data.gov.uk/doc/local-authority/00CC,BarnsleyMBC,23/12/2022,5100331805,"1,981.68",EDMUNDSON ELECTRICAL LTD,512393,BH,,
http://statistics.data.gov.uk/doc/local-authority/00CC,BarnsleyMBC,23/12/2022,5100331622,"6,230.40",EDMUNDSON ELECTRICAL LTD,512393,BH,,
http://statistics.data.gov.uk/doc/local-authority/00CC,BarnsleyMBC,10/10/2022,5100328753,"1,273.66",EN:ABLE FUTURES CIC,539812,BH,Training Courses,112001
http://statistics.data.gov.uk/doc/local-authority/00CC,BarnsleyMBC,13/10/2022,5100328738,"49,679.46",ENERVEO LIMITED,552641,BH,Main contractor,506011
http://statistics.data.gov.uk/doc/local-authority/00CC,BarnsleyMBC,21/10/2022,5100329143,"21,427.37",ENERVEO LIMITED,552641,BH,Main contractor,506011
http://statistics.data.gov.uk/doc/local-authority/00CC,BarnsleyMBC,16/11/2022,5100330214,"16,466.02",ENERVEO LIMITED,552641,BH,Main contractor,506011
http://statistics.data.gov.uk/doc/local-authority/00CC,BarnsleyMBC,01/12/2022,5100330830,"108,075.43",ENERVEO LIMITED,552641,BH,Main contractor,506011
http://statistics.data.gov.uk/doc/local-authority/00CC,BarnsleyMBC,01/12/2022,5100330751,"-8,239.44",ENERVEO LIMITED,552641,BH,Main contractor,506011
http://statistics.data.gov.uk/doc/local-authority/00CC,BarnsleyMBC,16/12/2022,5100331335,"94,355.96",ENERVEO LIMITED,552641,BH,Main contractor,506011
http://statistics.data.gov.uk/doc/local-authority/00CC,BarnsleyMBC,20/12/2022,5100331408,"4,043.35",ENERVEO LIMITED,552641,BH,Main contractor,506011
http://statistics.data.gov.uk/doc/local-authority/00CC,BarnsleyMBC,23/12/2022,5100331716,"36,087.48",ENERVEO LIMITED,552641,BH,Main contractor,506011
http://statistics.data.gov.uk/doc/local-authority/00CC,BarnsleyMBC,19/10/2022,5100329213,860.23,ENVIROVENT LTD,550035,BH,Main contractor,506011
http://statistics.data.gov.uk/doc/local-authority/00CC,BarnsleyMBC,28/11/2022,5100330781,886.26,ENVIROVENT LTD,550035,BH,Main contractor,506011
http://statistics.data.gov.uk/doc/local-authority/00CC,BarnsleyMBC,09/11/2022,5100330105,"1,084.80",EXPRESS BLINDS & CURTAINS LTD,510744,BH,Main contractor,506011
http://statistics.data.gov.uk/doc/local-authority/00CC,BarnsleyMBC,07/10/2022,5100328546,"4,099.20",GATENBY SANDERSON LTD,505736,BH,Basic Pay - Other,100025
http://statistics.data.gov.uk/doc/local-authority/00CC,BarnsleyMBC,18/10/2022,5100328982,"10,248.00",GATENBY SANDERSON LTD,505736,BH,Basic Pay - Other,100025
http://statistics.data.gov.uk/doc/local-authority/00CC,BarnsleyMBC,21/10/2022,5100329407,"19,983.60",GATENBY SANDERSON LTD,505736,BH,Basic Pay - Other,100025
http://statistics.data.gov.uk/doc/local-authority/00CC,BarnsleyMBC,22/11/2022,5100330430,"9,223.20",GATENBY SANDERSON LTD,505736,BH,Basic Pay - Other,100025
http://statistics.data.gov.uk/doc/local-authority/00CC,BarnsleyMBC,23/11/2022,5100330675,"14,859.60",GATENBY SANDERSON LTD,505736,BH,Basic Pay - Other,100025
http://statistics.data.gov.uk/doc/local-authority/00CC,BarnsleyMBC,07/12/2022,5100331085,"15,607.20",GATENBY SANDERSON LTD,505736,BH,Basic Pay - Other,100025
http://statistics.data.gov.uk/doc/local-authority/00CC,BarnsleyMBC,17/10/2022,5100329119,"1,200.00",GLENIS BRAILSFORD,527263,BH,Community Services,505045
http://statistics.data.gov.uk/doc/local-authority/00CC,BarnsleyMBC,09/11/2022,5100330124,"1,560.00",GLENIS BRAILSFORD,527263,BH,Community Services,505045
http://statistics.data.gov.uk/doc/local-authority/00CC,BarnsleyMBC,05/10/2022,5100328599,"1,580.00",GREENER HOMES 4 YOU,529739,BH,Professional fees,424006
http://statistics.data.gov.uk/doc/local-authority/00CC,BarnsleyMBC,05/10/2022,5100328600,711,GREENER HOMES 4 YOU,529739,BH,Professional fees,424006
http://statistics.data.gov.uk/doc/local-authority/00CC,BarnsleyMBC,07/10/2022,5100328610,513.5,GREENER HOMES 4 YOU,529739,BH,Professional fees,424006
http://statistics.data.gov.uk/doc/local-authority/00CC,BarnsleyMBC,28/10/2022,5100329496,985.14,Handletrade ltd,533871,BH,,
http://statistics.data.gov.uk/doc/local-authority/00CC,BarnsleyMBC,21/11/2022,5100330394,804,Handletrade ltd,533871,BH,,
http://statistics.data.gov.uk/doc/local-authority/00CC,BarnsleyMBC,30/11/2022,5100330735,865.02,Handletrade ltd,533871,BH,,
http://statistics.data.gov.uk/doc/local-authority/00CC,BarnsleyMBC,13/12/2022,5100331276,559.68,Handletrade ltd,533871,BH,,
http://statistics.data.gov.uk/doc/local-authority/00CC,BarnsleyMBC,21/12/2022,5100331393,"1,231.68",Handletrade ltd,533871,BH,,
http://statistics.data.gov.uk/doc/local-authority/00CC,BarnsleyMBC,11/10/2022,5100328809,"74,298.91",HEC Contracting Limited,532267,BH,Main contractor,506011
http://statistics.data.gov.uk/doc/local-authority/00CC,BarnsleyMBC,11/11/2022,5100330244,"90,957.41",HEC Contracting Limited,532267,BH,Main contractor,506011
http://statistics.data.gov.uk/doc/local-authority/00CC,BarnsleyMBC,15/11/2022,5100330379,"34,549.20",HEC Contracting Limited,532267,BH,Main contractor,506011
http://statistics.data.gov.uk/doc/local-authority/00CC,BarnsleyMBC,13/12/2022,5100331274,"3,728.76",HEC Contracting Limited,532267,BH,Main contractor,506011
http://statistics.data.gov.uk/doc/local-authority/00CC,BarnsleyMBC,14/12/2022,5100331334,"105,100.13",HEC Contracting Limited,532267,BH,Main contractor,506011
http://statistics.data.gov.uk/doc/local-authority/00CC,BarnsleyMBC,08/11/2022,5100329972,780,HODGSON PHYSIOTHERAPY SERVICES LTD,517940,BH,Employee Welfare - Medical Care,115001
http://statistics.data.gov.uk/doc/local-authority/00CC,BarnsleyMBC,11/11/2022,5100329971,690,HODGSON PHYSIOTHERAPY SERVICES LTD,517940,BH,Employee Welfare - Medical Care,115001
http://statistics.data.gov.uk/doc/local-authority/00CC,BarnsleyMBC,12/12/2022,5100331071,"1,170.00",HODGSON PHYSIOTHERAPY SERVICES LTD,517940,BH,Employee Welfare - Medical Care,115001
http://statistics.data.gov.uk/doc/local-authority/00CC,BarnsleyMBC,12/10/2022,5100328920,"20,840.34",HOME UTILITY GROUP LTD,534259,BH,Main contractor,506011
http://statistics.data.gov.uk/doc/local-authority/00CC,BarnsleyMBC,20/10/2022,5100329332,"12,368.98",HOME UTILITY GROUP LTD,534259,BH,Main contractor,506011
http://statistics.data.gov.uk/doc/local-authority/00CC,BarnsleyMBC,17/11/2022,5100330534,"25,963.80",HOME UTILITY GROUP LTD,534259,BH,Main contractor,506011
http://statistics.data.gov.uk/doc/local-authority/00CC,BarnsleyMBC,17/11/2022,5100330533,"8,265.96",HOME UTILITY GROUP LTD,534259,BH,Main contractor,506011
http://statistics.data.gov.uk/doc/local-authority/00CC,BarnsleyMBC,16/12/2022,5100331559,"26,010.94",HOME UTILITY GROUP LTD,534259,BH,Main contractor,506011
http://statistics.data.gov.uk/doc/local-authority/00CC,BarnsleyMBC,20/12/2022,5100331624,"16,748.08",HOME UTILITY GROUP LTD,534259,BH,Main contractor,506011
http://statistics.data.gov.uk/doc/local-authority/00CC,BarnsleyMBC,07/10/2022,5100328544,"19,329.60",HOUSEMARK LTD,506000,BH,Subscriptions & Contributions,430002
http://statistics.data.gov.uk/doc/local-authority/00CC,BarnsleyMBC,20/10/2022,5100329158,824.86,HOWDEN JOINERY LTD,501434,BH,Fixtures and Fittings - Purchase,220001
http://statistics.data.gov.uk/doc/local-authority/00CC,BarnsleyMBC,03/11/2022,5100329786,740.36,HOWDEN JOINERY LTD,501434,BH,Fixtures and Fittings - Purchase,220001
http://statistics.data.gov.uk/doc/local-authority/00CC,BarnsleyMBC,18/11/2022,5100330551,728.87,HOWDEN JOINERY LTD,501434,BH,Fixtures and Fittings - Purchase,220001
http://statistics.data.gov.uk/doc/local-authority/00CC,BarnsleyMBC,29/11/2022,5100330850,"1,560.19",HOWDEN JOINERY LTD,501434,BH,Fixtures and Fittings - Purchase,220001
http://statistics.data.gov.uk/doc/local-authority/00CC,BarnsleyMBC,01/12/2022,5100330925,"1,085.75",HOWDEN JOINERY LTD,501434,BH,Fixtures and Fittings - Purchase,220001
http://statistics.data.gov.uk/doc/local-authority/00CC,BarnsleyMBC,06/12/2022,5100330924,"1,065.88",HOWDEN JOINERY LTD,501434,BH,Fixtures and Fittings - Purchase,220001
http://statistics.data.gov.uk/doc/local-authority/00CC,BarnsleyMBC,11/10/2022,5100328632,"13,260.00",HQN LTD,510400,BH,Consultants Fees,424007
http://statistics.data.gov.uk/doc/local-authority/00CC,BarnsleyMBC,13/12/2022,5100331174,"6,900.00",HQN LTD,510400,BH,Training Courses,112001
http://statistics.data.gov.uk/doc/local-authority/00CC,BarnsleyMBC,22/12/2022,5100331639,639,Huws Gray Limited,540534,BH,,
http://statistics.data.gov.uk/doc/local-authority/00CC,BarnsleyMBC,23/11/2022,5100330701,"1,530.00",IGEM,539890,BH,Subscriptions & Contributions,430002
http://statistics.data.gov.uk/doc/local-authority/00CC,BarnsleyMBC,04/11/2022,5100329787,"1,242.00",INSIGHT DIRECT (UK) LTD,510460,BH,Computer Hardware - Purchase,426006
http://statistics.data.gov.uk/doc/local-authority/00CC,BarnsleyMBC,04/11/2022,5100324985,-792,INSIGHT DIRECT (UK) LTD,510460,BH,Computer Hardware - Purchase,426006
http://statistics.data.gov.uk/doc/local-authority/00CC,BarnsleyMBC,16/11/2022,5100330200,"2,163.00",Interior Panel Systems Ltd,534029,BH,,
http://statistics.data.gov.uk/doc/local-authority/00CC,BarnsleyMBC,04/10/2022,5100328429,"2,410.35",JEWSON LTD,501339,BH,,
http://statistics.data.gov.uk/doc/local-authority/00CC,BarnsleyMBC,04/10/2022,5100328360,527.4,JEWSON LTD,501339,BH,,
http://statistics.data.gov.uk/doc/local-authority/00CC,BarnsleyMBC,04/10/2022,5100328384,"1,875.96",JEWSON LTD,501339,BH,,
http://statistics.data.gov.uk/doc/local-authority/00CC,BarnsleyMBC,04/10/2022,5100328378,"1,300.20",JEWSON LTD,501339,BH,,
http://statistics.data.gov.uk/doc/local-authority/00CC,BarnsleyMBC,04/10/2022,5100328364,582,JEWSON LTD,501339,BH,,
http://statistics.data.gov.uk/doc/local-authority/00CC,BarnsleyMBC,04/10/2022,5100328374,539.95,JEWSON LTD,501339,BH,,
http://statistics.data.gov.uk/doc/local-authority/00CC,BarnsleyMBC,05/10/2022,5100328480,749.23,JEWSON LTD,501339,BH,,
http://statistics.data.gov.uk/doc/local-authority/00CC,BarnsleyMBC,06/10/2022,5100328542,"2,307.01",JEWSON LTD,501339,BH,,
http://statistics.data.gov.uk/doc/local-authority/00CC,BarnsleyMBC,10/10/2022,5100328655,931.57,JEWSON LTD,501339,BH,,
http://statistics.data.gov.uk/doc/local-authority/00CC,BarnsleyMBC,10/10/2022,5100328658,"1,471.25",JEWSON LTD,501339,BH,,
http://statistics.data.gov.uk/doc/local-authority/00CC,BarnsleyMBC,10/10/2022,5100328656,"1,090.97",JEWSON LTD,501339,BH,,
http://statistics.data.gov.uk/doc/local-authority/00CC,BarnsleyMBC,12/10/2022,5100328884,850.08,JEWSON LTD,501339,BH,,
http://statistics.data.gov.uk/doc/local-authority/00CC,BarnsleyMBC,12/10/2022,5100328881,"1,396.56",JEWSON LTD,501339,BH,,
http://statistics.data.gov.uk/doc/local-authority/00CC,BarnsleyMBC,13/10/2022,5100328825,572.4,JEWSON LTD,501339,BH,,
http://statistics.data.gov.uk/doc/local-authority/00CC,BarnsleyMBC,13/10/2022,5100328829,"1,141.06",JEWSON LTD,501339,BH,,
http://statistics.data.gov.uk/doc/local-authority/00CC,BarnsleyMBC,14/10/2022,5100328758,689.21,JEWSON LTD,501339,BH,Direct - Building Items,403013
http://statistics.data.gov.uk/doc/local-authority/00CC,BarnsleyMBC,14/10/2022,5100329053,"2,520.00",JEWSON LTD,501339,BH,Direct - Building Items,403013
http://statistics.data.gov.uk/doc/local-authority/00CC,BarnsleyMBC,17/10/2022,5100328927,519.17,JEWSON LTD,501339,BH,,
http://statistics.data.gov.uk/doc/local-authority/00CC,BarnsleyMBC,17/10/2022,5100328926,782.69,JEWSON LTD,501339,BH,,
http://statistics.data.gov.uk/doc/local-authority/00CC,BarnsleyMBC,17/10/2022,5100328889,"1,287.89",JEWSON LTD,501339,BH,,
http://statistics.data.gov.uk/doc/local-authority/00CC,BarnsleyMBC,17/10/2022,5100329036,"1,213.57",JEWSON LTD,501339,BH,,
http://statistics.data.gov.uk/doc/local-authority/00CC,BarnsleyMBC,17/10/2022,5100329109,720.83,JEWSON LTD,501339,BH,,
http://statistics.data.gov.uk/doc/local-authority/00CC,BarnsleyMBC,18/10/2022,5100328967,662.73,JEWSON LTD,501339,BH,,
http://statistics.data.gov.uk/doc/local-authority/00CC,BarnsleyMBC,19/10/2022,5100329063,"2,100.34",JEWSON LTD,501339,BH,,
http://statistics.data.gov.uk/doc/local-authority/00CC,BarnsleyMBC,19/10/2022,5100329171,"2,115.07",JEWSON LTD,501339,BH,,
http://statistics.data.gov.uk/doc/local-authority/00CC,BarnsleyMBC,20/10/2022,5100329135,672.94,JEWSON LTD,501339,BH,,
http://statistics.data.gov.uk/doc/local-authority/00CC,BarnsleyMBC,20/10/2022,5100329318,919.3,JEWSON LTD,501339,BH,Direct - Building Items,403013
http://statistics.data.gov.uk/doc/local-authority/00CC,BarnsleyMBC,24/10/2022,5100329283,930.24,JEWSON LTD,501339,BH,,
http://statistics.data.gov.uk/doc/local-authority/00CC,BarnsleyMBC,24/10/2022,5100329268,"2,319.31",JEWSON LTD,501339,BH,,
http://statistics.data.gov.uk/doc/local-authority/00CC,BarnsleyMBC,25/10/2022,5100329521,792,JEWSON LTD,501339,BH,Direct - Building Items,403013
http://statistics.data.gov.uk/doc/local-authority/00CC,BarnsleyMBC,25/10/2022,5100329327,"1,191.95",JEWSON LTD,501339,BH,,
http://statistics.data.gov.uk/doc/local-authority/00CC,BarnsleyMBC,25/10/2022,5100329539,936,JEWSON LTD,501339,BH,,
http://statistics.data.gov.uk/doc/local-authority/00CC,BarnsleyMBC,25/10/2022,5100329537,991.69,JEWSON LTD,501339,BH,Direct - Building Items,403013
http://statistics.data.gov.uk/doc/local-authority/00CC,BarnsleyMBC,25/10/2022,5100329528,856.46,JEWSON LTD,501339,BH,Direct - UPVC Parts,403015
http://statistics.data.gov.uk/doc/local-authority/00CC,BarnsleyMBC,25/10/2022,5100329524,"2,028.67",JEWSON LTD,501339,BH,,
http://statistics.data.gov.uk/doc/local-authority/00CC,BarnsleyMBC,26/10/2022,5100329394,"1,196.70",JEWSON LTD,501339,BH,,
http://statistics.data.gov.uk/doc/local-authority/00CC,BarnsleyMBC,31/10/2022,5100329665,871.72,JEWSON LTD,501339,BH,,
http://statistics.data.gov.uk/doc/local-authority/00CC,BarnsleyMBC,31/10/2022,5100329611,808.8,JEWSON LTD,501339,BH,,
http://statistics.data.gov.uk/doc/local-authority/00CC,BarnsleyMBC,31/10/2022,5100329614,"1,441.12",JEWSON LTD,501339,BH,,
http://statistics.data.gov.uk/doc/local-authority/00CC,BarnsleyMBC,02/11/2022,5100329710,"2,612.78",JEWSON LTD,501339,BH,,
http://statistics.data.gov.uk/doc/local-authority/00CC,BarnsleyMBC,02/11/2022,5100329690,662.74,JEWSON LTD,501339,BH,,
http://statistics.data.gov.uk/doc/local-authority/00CC,BarnsleyMBC,03/11/2022,5100329760,"1,782.52",JEWSON LTD,501339,BH,,
http://statistics.data.gov.uk/doc/local-authority/00CC,BarnsleyMBC,03/11/2022,5100329757,"2,178.57",JEWSON LTD,501339,BH,,
http://statistics.data.gov.uk/doc/local-authority/00CC,BarnsleyMBC,08/11/2022,5100329891,529.2,JEWSON LTD,501339,BH,,
http://statistics.data.gov.uk/doc/local-authority/00CC,BarnsleyMBC,08/11/2022,5100329894,538.7,JEWSON LTD,501339,BH,Direct - Building Items,403013
http://statistics.data.gov.uk/doc/local-authority/00CC,BarnsleyMBC,08/11/2022,5100329945,808.92,JEWSON LTD,501339,BH,Direct - Building Items,403013
http://statistics.data.gov.uk/doc/local-authority/00CC,BarnsleyMBC,08/11/2022,5100329892,876.24,JEWSON LTD,501339,BH,Direct - Building Items,403013
http://statistics.data.gov.uk/doc/local-authority/00CC,BarnsleyMBC,08/11/2022,5100329896,556.32,JEWSON LTD,501339,BH,,
http://statistics.data.gov.uk/doc/local-authority/00CC,BarnsleyMBC,08/11/2022,5100329958,870.91,JEWSON LTD,501339,BH,Direct - Building Items,403013
http://statistics.data.gov.uk/doc/local-authority/00CC,BarnsleyMBC,09/11/2022,5100329984,"1,062.72",JEWSON LTD,501339,BH,,
http://statistics.data.gov.uk/doc/local-authority/00CC,BarnsleyMBC,09/11/2022,5100330106,615.96,JEWSON LTD,501339,BH,Direct - Building Items,403013
http://statistics.data.gov.uk/doc/local-authority/00CC,BarnsleyMBC,09/11/2022,5100329993,858.07,JEWSON LTD,501339,BH,Direct - Building Items,403013
http://statistics.data.gov.uk/doc/local-authority/00CC,BarnsleyMBC,10/11/2022,5100330156,"8,511.38",JEWSON LTD,501339,BH,Direct - Building Items,403013
http://statistics.data.gov.uk/doc/local-authority/00CC,BarnsleyMBC,11/11/2022,5100330208,713.38,JEWSON LTD,501339,BH,,
http://statistics.data.gov.uk/doc/local-authority/00CC,BarnsleyMBC,11/11/2022,5100330054,697.31,JEWSON LTD,501339,BH,,
http://statistics.data.gov.uk/doc/local-authority/00CC,BarnsleyMBC,11/11/2022,5100330055,663.9,JEWSON LTD,501339,BH,,
http://statistics.data.gov.uk/doc/local-authority/00CC,BarnsleyMBC,14/11/2022,5100330130,"1,519.19",JEWSON LTD,501339,BH,,
http://statistics.data.gov.uk/doc/local-authority/00CC,BarnsleyMBC,14/11/2022,5100330133,724.86,JEWSON LTD,501339,BH,,
http://statistics.data.gov.uk/doc/local-authority/00CC,BarnsleyMBC,15/11/2022,5100330342,"1,118.26",JEWSON LTD,501339,BH,,
http://statistics.data.gov.uk/doc/local-authority/00CC,BarnsleyMBC,15/11/2022,5100330168,"1,009.02",JEWSON LTD,501339,BH,,
http://statistics.data.gov.uk/doc/local-authority/00CC,BarnsleyMBC,15/11/2022,5100330170,592.92,JEWSON LTD,501339,BH,,
http://statistics.data.gov.uk/doc/local-authority/00CC,BarnsleyMBC,15/11/2022,5100330180,618,JEWSON LTD,501339,BH,,
http://statistics.data.gov.uk/doc/local-authority/00CC,BarnsleyMBC,15/11/2022,5100330178,580.17,JEWSON LTD,501339,BH,,
http://statistics.data.gov.uk/doc/local-authority/00CC,BarnsleyMBC,15/11/2022,5100330338,"1,242.08",JEWSON LTD,501339,BH,,
http://statistics.data.gov.uk/doc/local-authority/00CC,BarnsleyMBC,16/11/2022,5100330425,"1,654.37",JEWSON LTD,501339,BH,Direct - Building Items,403013
http://statistics.data.gov.uk/doc/local-authority/00CC,BarnsleyMBC,17/11/2022,5100330489,"7,027.80",JEWSON LTD,501339,BH,Direct - Building Items,403013
http://statistics.data.gov.uk/doc/local-authority/00CC,BarnsleyMBC,28/11/2022,5100330819,653.04,JEWSON LTD,501339,BH,,
http://statistics.data.gov.uk/doc/local-authority/00CC,BarnsleyMBC,28/11/2022,5100330826,"1,148.44",JEWSON LTD,501339,BH,Direct - Building Items,403013
http://statistics.data.gov.uk/doc/local-authority/00CC,BarnsleyMBC,28/11/2022,5100330821,695.98,JEWSON LTD,501339,BH,,
http://statistics.data.gov.uk/doc/local-authority/00CC,BarnsleyMBC,01/12/2022,5100330939,840,JEWSON LTD,501339,BH,Direct - Building Items,403013
http://statistics.data.gov.uk/doc/local-authority/00CC,BarnsleyMBC,01/12/2022,5100330968,"1,853.38",JEWSON LTD,501339,BH,Direct - Building Items,403013
http://statistics.data.gov.uk/doc/local-authority/00CC,BarnsleyMBC,09/12/2022,5100331169,674.37,JEWSON LTD,501339,BH,Direct - Building Items,403013
http://statistics.data.gov.uk/doc/local-authority/00CC,BarnsleyMBC,09/12/2022,5100331168,778.8,JEWSON LTD,501339,BH,Direct - Building Items,403013
http://statistics.data.gov.uk/doc/local-authority/00CC,BarnsleyMBC,09/12/2022,5100331167,936.98,JEWSON LTD,501339,BH,Direct - Building Items,403013
http://statistics.data.gov.uk/doc/local-authority/00CC,BarnsleyMBC,09/12/2022,5100331166,888,JEWSON LTD,501339,BH,Direct - Building Items,403013
http://statistics.data.gov.uk/doc/local-authority/00CC,BarnsleyMBC,13/12/2022,5100331262,"3,048.19",JEWSON LTD,501339,BH,Direct - Building Items,403013
http://statistics.data.gov.uk/doc/local-authority/00CC,BarnsleyMBC,13/12/2022,5100331260,"1,140.14",JEWSON LTD,501339,BH,Direct - Building Items,403013
http://statistics.data.gov.uk/doc/local-authority/00CC,BarnsleyMBC,13/12/2022,5100331292,516,JEWSON LTD,501339,BH,Direct - Building Items,403013
http://statistics.data.gov.uk/doc/local-authority/00CC,BarnsleyMBC,13/12/2022,5100331269,"2,453.57",JEWSON LTD,501339,BH,,
http://statistics.data.gov.uk/doc/local-authority/00CC,BarnsleyMBC,16/12/2022,5100331478,"1,416.96",JEWSON LTD,501339,BH,,
http://statistics.data.gov.uk/doc/local-authority/00CC,BarnsleyMBC,16/12/2022,5100331465,839.98,JEWSON LTD,501339,BH,,
http://statistics.data.gov.uk/doc/local-authority/00CC,BarnsleyMBC,16/12/2022,5100331496,724.86,JEWSON LTD,501339,BH,,
http://statistics.data.gov.uk/doc/local-authority/00CC,BarnsleyMBC,16/12/2022,5100331474,"1,673.73",JEWSON LTD,501339,BH,,
http://statistics.data.gov.uk/doc/local-authority/00CC,BarnsleyMBC,16/12/2022,5100331439,624,JEWSON LTD,501339,BH,,
http://statistics.data.gov.uk/doc/local-authority/00CC,BarnsleyMBC,16/12/2022,5100331468,"1,001.04",JEWSON LTD,501339,BH,,
http://statistics.data.gov.uk/doc/local-authority/00CC,BarnsleyMBC,16/12/2022,5100331438,"1,137.82",JEWSON LTD,501339,BH,,
http://statistics.data.gov.uk/doc/local-authority/00CC,BarnsleyMBC,16/12/2022,5100331422,961.92,JEWSON LTD,501339,BH,,
http://statistics.data.gov.uk/doc/local-authority/00CC,BarnsleyMBC,16/12/2022,5100331495,"1,599.84",JEWSON LTD,501339,BH,,
http://statistics.data.gov.uk/doc/local-authority/00CC,BarnsleyMBC,16/12/2022,5100331563,"1,212.00",JEWSON LTD,501339,BH,,
http://statistics.data.gov.uk/doc/local-authority/00CC,BarnsleyMBC,16/12/2022,5100331428,546.3,JEWSON LTD,501339,BH,,
http://statistics.data.gov.uk/doc/local-authority/00CC,BarnsleyMBC,16/12/2022,5100331494,837.79,JEWSON LTD,501339,BH,,
http://statistics.data.gov.uk/doc/local-authority/00CC,BarnsleyMBC,16/12/2022,5100331554,"1,828.80",JEWSON LTD,501339,BH,,
http://statistics.data.gov.uk/doc/local-authority/00CC,BarnsleyMBC,16/12/2022,5100331560,"1,629.72",JEWSON LTD,501339,BH,,
http://statistics.data.gov.uk/doc/local-authority/00CC,BarnsleyMBC,19/12/2022,5100331488,"3,989.47",JEWSON LTD,501339,BH,,
http://statistics.data.gov.uk/doc/local-authority/00CC,BarnsleyMBC,19/12/2022,5100331576,"2,138.83",JEWSON LTD,501339,BH,Direct - Building Items,403013
http://statistics.data.gov.uk/doc/local-authority/00CC,BarnsleyMBC,21/12/2022,5100331771,929.4,JEWSON LTD,501339,BH,Direct - UPVC Parts,403015
http://statistics.data.gov.uk/doc/local-authority/00CC,BarnsleyMBC,21/12/2022,5100331772,766.69,JEWSON LTD,501339,BH,Direct - UPVC Parts,403015
http://statistics.data.gov.uk/doc/local-authority/00CC,BarnsleyMBC,21/12/2022,5100331781,"6,999.23",JEWSON LTD,501339,BH,Direct - Building Items,403013
http://statistics.data.gov.uk/doc/local-authority/00CC,BarnsleyMBC,22/12/2022,5100331590,"1,387.68",JEWSON LTD,501339,BH,,
http://statistics.data.gov.uk/doc/local-authority/00CC,BarnsleyMBC,22/12/2022,5100331596,"6,453.94",JEWSON LTD,501339,BH,Direct - Building Items,403013
http://statistics.data.gov.uk/doc/local-authority/00CC,BarnsleyMBC,22/12/2022,5100331832,"1,450.66",JEWSON LTD,501339,BH,,
http://statistics.data.gov.uk/doc/local-authority/00CC,BarnsleyMBC,23/12/2022,5100331776,624.24,JEWSON LTD,501339,BH,Direct - Building Items,403013
http://statistics.data.gov.uk/doc/local-authority/00CC,BarnsleyMBC,23/12/2022,5100331866,505.08,JEWSON LTD,501339,BH,,
http://statistics.data.gov.uk/doc/local-authority/00CC,BarnsleyMBC,23/12/2022,5100331777,746.4,JEWSON LTD,501339,BH,,
http://statistics.data.gov.uk/doc/local-authority/00CC,BarnsleyMBC,30/11/2022,5100330888,840,JNP GROUP CONSULTING ENGINEERS,518723,BH,Main contractor,506011
http://statistics.data.gov.uk/doc/local-authority/00CC,BarnsleyMBC,18/11/2022,5100330583,"1,200.00",KAREN HOUSE ASSOCIATES LTD,523762,BH,Training Courses,112001
http://statistics.data.gov.uk/doc/local-authority/00CC,BarnsleyMBC,02/12/2022,5100331021,540,KAREN HOUSE ASSOCIATES LTD,523762,BH,Training Courses,112001
http://statistics.data.gov.uk/doc/local-authority/00CC,BarnsleyMBC,13/12/2022,5100331308,"3,300.00",KAREN HOUSE ASSOCIATES LTD,523762,BH,Training Courses,112001
http://statistics.data.gov.uk/doc/local-authority/00CC,BarnsleyMBC,03/10/2022,5100328458,516.75,Kingfisher UPVC Doors and Windows L,535349,BH,Direct - UPVC Parts,403015
http://statistics.data.gov.uk/doc/local-authority/00CC,BarnsleyMBC,03/10/2022,5100328455,516.75,Kingfisher UPVC Doors and Windows L,535349,BH,Direct - UPVC Parts,403015
http://statistics.data.gov.uk/doc/local-authority/00CC,BarnsleyMBC,03/10/2022,5100328457,516.75,Kingfisher UPVC Doors and Windows L,535349,BH,Direct - UPVC Parts,403015
http://statistics.data.gov.uk/doc/local-authority/00CC,BarnsleyMBC,03/10/2022,5100328456,516.75,Kingfisher UPVC Doors and Windows L,535349,BH,Direct - UPVC Parts,403015
http://statistics.data.gov.uk/doc/local-authority/00CC,BarnsleyMBC,03/10/2022,5100328462,516.82,Kingfisher UPVC Doors and Windows L,535349,BH,Direct - UPVC Parts,403015
http://statistics.data.gov.uk/doc/local-authority/00CC,BarnsleyMBC,03/10/2022,5100328454,516.75,Kingfisher UPVC Doors and Windows L,535349,BH,Direct - UPVC Parts,403015
http://statistics.data.gov.uk/doc/local-authority/00CC,BarnsleyMBC,03/10/2022,5100328460,592.55,Kingfisher UPVC Doors and Windows L,535349,BH,Direct - UPVC Parts,403015
http://statistics.data.gov.uk/doc/local-authority/00CC,BarnsleyMBC,03/10/2022,5100328459,640.6,Kingfisher UPVC Doors and Windows L,535349,BH,Direct - UPVC Parts,403015
http://statistics.data.gov.uk/doc/local-authority/00CC,BarnsleyMBC,03/10/2022,5100328461,660.49,Kingfisher UPVC Doors and Windows L,535349,BH,Direct - UPVC Parts,403015
http://statistics.data.gov.uk/doc/local-authority/00CC,BarnsleyMBC,07/10/2022,5100328494,807.67,Kingfisher UPVC Doors and Windows L,535349,BH,Direct - UPVC Parts,403015
http://statistics.data.gov.uk/doc/local-authority/00CC,BarnsleyMBC,07/10/2022,5100328493,599.04,Kingfisher UPVC Doors and Windows L,535349,BH,Direct - UPVC Parts,403015
http://statistics.data.gov.uk/doc/local-authority/00CC,BarnsleyMBC,14/10/2022,5100328783,557.76,Kingfisher UPVC Doors and Windows L,535349,BH,Direct - UPVC Parts,403015
http://statistics.data.gov.uk/doc/local-authority/00CC,BarnsleyMBC,14/10/2022,5100328782,616.24,Kingfisher UPVC Doors and Windows L,535349,BH,Direct - UPVC Parts,403015
http://statistics.data.gov.uk/doc/local-authority/00CC,BarnsleyMBC,14/10/2022,5100328784,611.76,Kingfisher UPVC Doors and Windows L,535349,BH,Direct - UPVC Parts,403015
http://statistics.data.gov.uk/doc/local-authority/00CC,BarnsleyMBC,14/10/2022,5100328781,646.76,Kingfisher UPVC Doors and Windows L,535349,BH,Direct - UPVC Parts,403015
http://statistics.data.gov.uk/doc/local-authority/00CC,BarnsleyMBC,14/10/2022,5100328785,615.59,Kingfisher UPVC Doors and Windows L,535349,BH,Direct - UPVC Parts,403015
http://statistics.data.gov.uk/doc/local-authority/00CC,BarnsleyMBC,14/10/2022,5100328788,611.73,Kingfisher UPVC Doors and Windows L,535349,BH,Direct - UPVC Parts,403015
http://statistics.data.gov.uk/doc/local-authority/00CC,BarnsleyMBC,14/10/2022,5100328786,516.75,Kingfisher UPVC Doors and Windows L,535349,BH,Direct - UPVC Parts,403015
http://statistics.data.gov.uk/doc/local-authority/00CC,BarnsleyMBC,14/10/2022,5100328787,564.27,Kingfisher UPVC Doors and Windows L,535349,BH,Direct - UPVC Parts,403015
http://statistics.data.gov.uk/doc/local-authority/00CC,BarnsleyMBC,26/10/2022,5100329368,557.92,Kingfisher UPVC Doors and Windows L,535349,BH,Direct - UPVC Parts,403015
http://statistics.data.gov.uk/doc/local-authority/00CC,BarnsleyMBC,26/10/2022,5100329371,561.5,Kingfisher UPVC Doors and Windows L,535349,BH,Direct - UPVC Parts,403015
http://statistics.data.gov.uk/doc/local-authority/00CC,BarnsleyMBC,26/10/2022,5100329370,561.54,Kingfisher UPVC Doors and Windows L,535349,BH,Direct - UPVC Parts,403015
http://statistics.data.gov.uk/doc/local-authority/00CC,BarnsleyMBC,26/10/2022,5100329369,561.61,Kingfisher UPVC Doors and Windows L,535349,BH,Direct - UPVC Parts,403015
http://statistics.data.gov.uk/doc/local-authority/00CC,BarnsleyMBC,26/10/2022,5100329366,600.67,Kingfisher UPVC Doors and Windows L,535349,BH,Direct - UPVC Parts,403015
http://statistics.data.gov.uk/doc/local-authority/00CC,BarnsleyMBC,26/10/2022,5100329329,644.16,Kingfisher UPVC Doors and Windows L,535349,BH,Direct - UPVC Parts,403015
http://statistics.data.gov.uk/doc/local-authority/00CC,BarnsleyMBC,26/10/2022,5100329330,592.55,Kingfisher UPVC Doors and Windows L,535349,BH,Direct - Building Items,403013
http://statistics.data.gov.uk/doc/local-authority/00CC,BarnsleyMBC,26/10/2022,5100329331,551.18,Kingfisher UPVC Doors and Windows L,535349,BH,Direct - UPVC Parts,403015
http://statistics.data.gov.uk/doc/local-authority/00CC,BarnsleyMBC,26/10/2022,5100329372,585.61,Kingfisher UPVC Doors and Windows L,535349,BH,Direct - UPVC Parts,403015
http://statistics.data.gov.uk/doc/local-authority/00CC,BarnsleyMBC,26/10/2022,5100329367,629.32,Kingfisher UPVC Doors and Windows L,535349,BH,Direct - UPVC Parts,403015
http://statistics.data.gov.uk/doc/local-authority/00CC,BarnsleyMBC,09/11/2022,5100329905,625.72,Kingfisher UPVC Doors and Windows L,535349,BH,Direct - UPVC Parts,403015
http://statistics.data.gov.uk/doc/local-authority/00CC,BarnsleyMBC,09/11/2022,5100329904,640.6,Kingfisher UPVC Doors and Windows L,535349,BH,Direct - UPVC Parts,403015
http://statistics.data.gov.uk/doc/local-authority/00CC,BarnsleyMBC,09/11/2022,5100329886,660.49,Kingfisher UPVC Doors and Windows L,535349,BH,Direct - UPVC Parts,403015
http://statistics.data.gov.uk/doc/local-authority/00CC,BarnsleyMBC,09/11/2022,5100329906,586.34,Kingfisher UPVC Doors and Windows L,535349,BH,Direct - UPVC Parts,403015
http://statistics.data.gov.uk/doc/local-authority/00CC,BarnsleyMBC,14/11/2022,5100330284,516.71,Kingfisher UPVC Doors and Windows L,535349,BH,Direct - Building Items,403013
http://statistics.data.gov.uk/doc/local-authority/00CC,BarnsleyMBC,14/11/2022,5100330277,516.71,Kingfisher UPVC Doors and Windows L,535349,BH,Direct - Building Items,403013
http://statistics.data.gov.uk/doc/local-authority/00CC,BarnsleyMBC,14/11/2022,5100330283,516.68,Kingfisher UPVC Doors and Windows L,535349,BH,Direct - Building Items,403013
http://statistics.data.gov.uk/doc/local-authority/00CC,BarnsleyMBC,14/11/2022,5100330281,516.8,Kingfisher UPVC Doors and Windows L,535349,BH,Direct - Building Items,403013
http://statistics.data.gov.uk/doc/local-authority/00CC,BarnsleyMBC,14/11/2022,5100330278,516.75,Kingfisher UPVC Doors and Windows L,535349,BH,Direct - Building Items,403013
http://statistics.data.gov.uk/doc/local-authority/00CC,BarnsleyMBC,14/11/2022,5100330273,516.71,Kingfisher UPVC Doors and Windows L,535349,BH,Direct - Building Items,403013
http://statistics.data.gov.uk/doc/local-authority/00CC,BarnsleyMBC,14/11/2022,5100330279,516.8,Kingfisher UPVC Doors and Windows L,535349,BH,Direct - Building Items,403013
http://statistics.data.gov.uk/doc/local-authority/00CC,BarnsleyMBC,14/11/2022,5100330280,516.8,Kingfisher UPVC Doors and Windows L,535349,BH,Direct - Building Items,403013
http://statistics.data.gov.uk/doc/local-authority/00CC,BarnsleyMBC,14/11/2022,5100330282,516.75,Kingfisher UPVC Doors and Windows L,535349,BH,Direct - Building Items,403013
http://statistics.data.gov.uk/doc/local-authority/00CC,BarnsleyMBC,14/11/2022,5100330274,666.83,Kingfisher UPVC Doors and Windows L,535349,BH,Direct - UPVC Parts,403015
http://statistics.data.gov.uk/doc/local-authority/00CC,BarnsleyMBC,14/11/2022,5100330275,891.6,Kingfisher UPVC Doors and Windows L,535349,BH,Direct - UPVC Parts,403015
http://statistics.data.gov.uk/doc/local-authority/00CC,BarnsleyMBC,14/11/2022,5100330276,832.28,Kingfisher UPVC Doors and Windows L,535349,BH,Direct - UPVC Parts,403015
http://statistics.data.gov.uk/doc/local-authority/00CC,BarnsleyMBC,14/11/2022,5100330285,625.67,Kingfisher UPVC Doors and Windows L,535349,BH,Direct - UPVC Parts,403015
http://statistics.data.gov.uk/doc/local-authority/00CC,BarnsleyMBC,21/11/2022,5100330586,"1,251.33",Kingfisher UPVC Doors and Windows L,535349,BH,Direct - UPVC Parts,403015
http://statistics.data.gov.uk/doc/local-authority/00CC,BarnsleyMBC,22/11/2022,5100330637,612.77,Kingfisher UPVC Doors and Windows L,535349,BH,Direct - UPVC Parts,403015
http://statistics.data.gov.uk/doc/local-authority/00CC,BarnsleyMBC,22/11/2022,5100330638,516.75,Kingfisher UPVC Doors and Windows L,535349,BH,Direct - UPVC Parts,403015
http://statistics.data.gov.uk/doc/local-authority/00CC,BarnsleyMBC,22/11/2022,5100330639,516.71,Kingfisher UPVC Doors and Windows L,535349,BH,Direct - UPVC Parts,403015
http://statistics.data.gov.uk/doc/local-authority/00CC,BarnsleyMBC,22/11/2022,5100330636,516.66,Kingfisher UPVC Doors and Windows L,535349,BH,Direct - UPVC Parts,403015
http://statistics.data.gov.uk/doc/local-authority/00CC,BarnsleyMBC,22/11/2022,5100330635,516.68,Kingfisher UPVC Doors and Windows L,535349,BH,Direct - UPVC Parts,403015
http://statistics.data.gov.uk/doc/local-authority/00CC,BarnsleyMBC,22/11/2022,5100330640,516.75,Kingfisher UPVC Doors and Windows L,535349,BH,Direct - UPVC Parts,403015
http://statistics.data.gov.uk/doc/local-authority/00CC,BarnsleyMBC,22/11/2022,5100330634,516.71,Kingfisher UPVC Doors and Windows L,535349,BH,Direct - UPVC Parts,403015
http://statistics.data.gov.uk/doc/local-authority/00CC,BarnsleyMBC,28/11/2022,5100330828,592.55,Kingfisher UPVC Doors and Windows L,535349,BH,Direct - UPVC Parts,403015
http://statistics.data.gov.uk/doc/local-authority/00CC,BarnsleyMBC,29/11/2022,5100330842,703.39,Kingfisher UPVC Doors and Windows L,535349,BH,Direct - UPVC Parts,403015
http://statistics.data.gov.uk/doc/local-authority/00CC,BarnsleyMBC,02/12/2022,5100330805,516.71,Kingfisher UPVC Doors and Windows L,535349,BH,Direct - UPVC Parts,403015
http://statistics.data.gov.uk/doc/local-authority/00CC,BarnsleyMBC,02/12/2022,5100330809,516.68,Kingfisher UPVC Doors and Windows L,535349,BH,Direct - UPVC Parts,403015
http://statistics.data.gov.uk/doc/local-authority/00CC,BarnsleyMBC,02/12/2022,5100330811,516.66,Kingfisher UPVC Doors and Windows L,535349,BH,Direct - UPVC Parts,403015
http://statistics.data.gov.uk/doc/local-authority/00CC,BarnsleyMBC,02/12/2022,5100330807,516.68,Kingfisher UPVC Doors and Windows L,535349,BH,Direct - UPVC Parts,403015
http://statistics.data.gov.uk/doc/local-authority/00CC,BarnsleyMBC,02/12/2022,5100330801,561.5,Kingfisher UPVC Doors and Windows L,535349,BH,Direct - UPVC Parts,403015
http://statistics.data.gov.uk/doc/local-authority/00CC,BarnsleyMBC,02/12/2022,5100330796,621.08,Kingfisher UPVC Doors and Windows L,535349,BH,Direct - UPVC Parts,403015
http://statistics.data.gov.uk/doc/local-authority/00CC,BarnsleyMBC,02/12/2022,5100330813,516.66,Kingfisher UPVC Doors and Windows L,535349,BH,Direct - UPVC Parts,403015
http://statistics.data.gov.uk/doc/local-authority/00CC,BarnsleyMBC,02/12/2022,5100330799,577.85,Kingfisher UPVC Doors and Windows L,535349,BH,Direct - UPVC Parts,403015
http://statistics.data.gov.uk/doc/local-authority/00CC,BarnsleyMBC,02/12/2022,5100330798,577.92,Kingfisher UPVC Doors and Windows L,535349,BH,Direct - UPVC Parts,403015
http://statistics.data.gov.uk/doc/local-authority/00CC,BarnsleyMBC,02/12/2022,5100330827,625.72,Kingfisher UPVC Doors and Windows L,535349,BH,Direct - UPVC Parts,403015
http://statistics.data.gov.uk/doc/local-authority/00CC,BarnsleyMBC,02/12/2022,5100330797,599.04,Kingfisher UPVC Doors and Windows L,535349,BH,Direct - UPVC Parts,403015
http://statistics.data.gov.uk/doc/local-authority/00CC,BarnsleyMBC,02/12/2022,5100330803,557.52,Kingfisher UPVC Doors and Windows L,535349,BH,Direct - UPVC Parts,403015
http://statistics.data.gov.uk/doc/local-authority/00CC,BarnsleyMBC,02/12/2022,5100330800,577.85,Kingfisher UPVC Doors and Windows L,535349,BH,Direct - UPVC Parts,403015
http://statistics.data.gov.uk/doc/local-authority/00CC,BarnsleyMBC,13/12/2022,5100331244,630.7,Kingfisher UPVC Doors and Windows L,535349,BH,Direct - UPVC Parts,403015
http://statistics.data.gov.uk/doc/local-authority/00CC,BarnsleyMBC,13/12/2022,5100331249,566.11,Kingfisher UPVC Doors and Windows L,535349,BH,Direct - Building Items,403013
http://statistics.data.gov.uk/doc/local-authority/00CC,BarnsleyMBC,13/12/2022,5100331248,564.27,Kingfisher UPVC Doors and Windows L,535349,BH,Direct - Building Items,403013
http://statistics.data.gov.uk/doc/local-authority/00CC,BarnsleyMBC,13/12/2022,5100331247,755.1,Kingfisher UPVC Doors and Windows L,535349,BH,Direct - UPVC Parts,403015
http://statistics.data.gov.uk/doc/local-authority/00CC,BarnsleyMBC,13/12/2022,5100331243,"1,392.83",Kingfisher UPVC Doors and Windows L,535349,BH,Direct - UPVC Parts,403015
http://statistics.data.gov.uk/doc/local-authority/00CC,BarnsleyMBC,13/12/2022,5100331246,618.32,Kingfisher UPVC Doors and Windows L,535349,BH,Direct - UPVC Parts,403015
http://statistics.data.gov.uk/doc/local-authority/00CC,BarnsleyMBC,13/12/2022,5100331245,"1,239.56",Kingfisher UPVC Doors and Windows L,535349,BH,Direct - UPVC Parts,403015
http://statistics.data.gov.uk/doc/local-authority/00CC,BarnsleyMBC,13/12/2022,5100331242,535.04,Kingfisher UPVC Doors and Windows L,535349,BH,Direct - UPVC Parts,403015
http://statistics.data.gov.uk/doc/local-authority/00CC,BarnsleyMBC,20/12/2022,5100331402,547.3,Kingfisher UPVC Doors and Windows L,535349,BH,Direct - Building Items,403013
http://statistics.data.gov.uk/doc/local-authority/00CC,BarnsleyMBC,20/12/2022,5100331398,557.52,Kingfisher UPVC Doors and Windows L,535349,BH,Direct - Building Items,403013
http://statistics.data.gov.uk/doc/local-authority/00CC,BarnsleyMBC,20/12/2022,5100331401,822.61,Kingfisher UPVC Doors and Windows L,535349,BH,Direct - Building Items,403013
http://statistics.data.gov.uk/doc/local-authority/00CC,BarnsleyMBC,20/12/2022,5100331400,561.56,Kingfisher UPVC Doors and Windows L,535349,BH,Direct - Building Items,403013
http://statistics.data.gov.uk/doc/local-authority/00CC,BarnsleyMBC,20/12/2022,5100331399,789.34,Kingfisher UPVC Doors and Windows L,535349,BH,Direct - Building Items,403013
http://statistics.data.gov.uk/doc/local-authority/00CC,BarnsleyMBC,20/12/2022,5100331388,561.33,Kingfisher UPVC Doors and Windows L,535349,BH,Direct - Building Items,403013
http://statistics.data.gov.uk/doc/local-authority/00CC,BarnsleyMBC,20/12/2022,5100331374,660.49,Kingfisher UPVC Doors and Windows L,535349,BH,Direct - UPVC Parts,403015
http://statistics.data.gov.uk/doc/local-authority/00CC,BarnsleyMBC,14/11/2022,5100330021,"1,119.60",Logistics and Distribution Training,540547,BH,Other Training Providers,506001
http://statistics.data.gov.uk/doc/local-authority/00CC,BarnsleyMBC,10/10/2022,5100328739,"10,280.40",MATTHEWS AND TANNERT LTD,552071,BH,Main contractor,506011
http://statistics.data.gov.uk/doc/local-authority/00CC,BarnsleyMBC,20/10/2022,5100329316,"25,232.50",MATTHEWS AND TANNERT LTD,552071,BH,Main contractor,506011
http://statistics.data.gov.uk/doc/local-authority/00CC,BarnsleyMBC,23/11/2022,5100330679,"2,537.00",MATTHEWS AND TANNERT LTD,552071,BH,Main contractor,506011
http://statistics.data.gov.uk/doc/local-authority/00CC,BarnsleyMBC,15/12/2022,5100331259,"4,873.90",MATTHEWS AND TANNERT LTD,552071,BH,Main contractor,506011
http://statistics.data.gov.uk/doc/local-authority/00CC,BarnsleyMBC,01/11/2022,5100329654,"5,427.08",MCP ENVIRONMENTAL LLP,551926,BH,Main contractor,506011
http://statistics.data.gov.uk/doc/local-authority/00CC,BarnsleyMBC,24/11/2022,5100330587,"2,298.00",MCP ENVIRONMENTAL LLP,551926,BH,Main contractor,506011
http://statistics.data.gov.uk/doc/local-authority/00CC,BarnsleyMBC,20/12/2022,5100331407,558,MCP ENVIRONMENTAL LLP,551926,BH,Main contractor,506011
http://statistics.data.gov.uk/doc/local-authority/00CC,BarnsleyMBC,22/12/2022,5100331568,"1,608.00",MCP ENVIRONMENTAL LLP,551926,BH,Main contractor,506011
http://statistics.data.gov.uk/doc/local-authority/00CC,BarnsleyMBC,11/11/2022,5100330239,"6,772.80",MICHAEL DYSON ASSOCIATION LTD,505203,BH,Main contractor,506011
http://statistics.data.gov.uk/doc/local-authority/00CC,BarnsleyMBC,08/12/2022,5100331165,594.86,MITSUBISHI ELECTRIC EUROPE BV,525543,BH,,
http://statistics.data.gov.uk/doc/local-authority/00CC,BarnsleyMBC,19/10/2022,5100329207,"1,076.87",MORGAN LAMBERT LTD,521517,BH,Main contractor,506011
http://statistics.data.gov.uk/doc/local-authority/00CC,BarnsleyMBC,19/10/2022,5100329208,975.61,MORGAN LAMBERT LTD,521517,BH,Main contractor,506011
http://statistics.data.gov.uk/doc/local-authority/00CC,BarnsleyMBC,19/10/2022,5100329206,"1,560.00",MORGAN LAMBERT LTD,521517,BH,Main contractor,506011
http://statistics.data.gov.uk/doc/local-authority/00CC,BarnsleyMBC,16/11/2022,5100330419,"2,002.57",MORGAN LAMBERT LTD,521517,BH,Main contractor,506011
http://statistics.data.gov.uk/doc/local-authority/00CC,BarnsleyMBC,13/12/2022,5100331271,"1,232.36",MORGAN LAMBERT LTD,521517,BH,Main contractor,506011
http://statistics.data.gov.uk/doc/local-authority/00CC,BarnsleyMBC,13/12/2022,5100331294,"3,147.77",MORGAN LAMBERT LTD,521517,BH,Main contractor,506011
http://statistics.data.gov.uk/doc/local-authority/00CC,BarnsleyMBC,12/12/2022,5100331227,"14,052.36",NATIONAL FEDERATION OF ALMOS,518074,BH,Subscriptions & Contributions,430002
http://statistics.data.gov.uk/doc/local-authority/00CC,BarnsleyMBC,05/10/2022,5100327988,"5,782.54",NEC Software Solutions UK Limited,538878,BH,Consultants Fees,424007
http://statistics.data.gov.uk/doc/local-authority/00CC,BarnsleyMBC,07/10/2022,5100327869,960,NEC Software Solutions UK Limited,538878,BH,Consultants Fees,424007
http://statistics.data.gov.uk/doc/local-authority/00CC,BarnsleyMBC,13/10/2022,5100328633,"3,600.00",NEC Software Solutions UK Limited,538878,BH,Consultants Fees,424007
http://statistics.data.gov.uk/doc/local-authority/00CC,BarnsleyMBC,14/10/2022,5100328944,540,NEC Software Solutions UK Limited,538878,BH,Consultants Fees,424007
http://statistics.data.gov.uk/doc/local-authority/00CC,BarnsleyMBC,03/11/2022,5100328883,"24,000.00",NEC Software Solutions UK Limited,538878,BH,Consultants Fees,424007
http://statistics.data.gov.uk/doc/local-authority/00CC,BarnsleyMBC,18/11/2022,5100330562,"2,400.00",NEC Software Solutions UK Limited,538878,BH,Consultants Fees,424007
http://statistics.data.gov.uk/doc/local-authority/00CC,BarnsleyMBC,18/11/2022,5100330561,960,NEC Software Solutions UK Limited,538878,BH,Consultants Fees,424007
http://statistics.data.gov.uk/doc/local-authority/00CC,BarnsleyMBC,25/11/2022,5100330749,"1,800.00",NEC Software Solutions UK Limited,538878,BH,Consultants Fees,424007
http://statistics.data.gov.uk/doc/local-authority/00CC,BarnsleyMBC,25/11/2022,5100330750,"9,027.42",NEC Software Solutions UK Limited,538878,BH,Consultants Fees,424007
http://statistics.data.gov.uk/doc/local-authority/00CC,BarnsleyMBC,07/12/2022,5100330772,"5,329.51",NEC Software Solutions UK Limited,538878,BH,Consultants Fees,424007
http://statistics.data.gov.uk/doc/local-authority/00CC,BarnsleyMBC,08/12/2022,5100330773,"1,305.00",NEC Software Solutions UK Limited,538878,BH,Consultants Fees,424007
http://statistics.data.gov.uk/doc/local-authority/00CC,BarnsleyMBC,31/10/2022,5100329543,984,NETWORK COMMUNICATION SYSTEMS LTD,502219,BH,Building Security,200013
http://statistics.data.gov.uk/doc/local-authority/00CC,BarnsleyMBC,13/12/2022,5100331273,"21,105.84",NORSE COMMERCIAL SERVICES LIMITED,552432,BH,Cleaning -  Buildings - External Provide,240001
http://statistics.data.gov.uk/doc/local-authority/00CC,BarnsleyMBC,21/11/2022,5100330592,537.6,NORTHERN COLLEGE,502196,BH,External Hire of Premises/Rooms,211001
http://statistics.data.gov.uk/doc/local-authority/00CC,BarnsleyMBC,05/10/2022,5200077013,"2,433.01",NPOWER LTD,585003,BH,Energy - Electricity,210001
http://statistics.data.gov.uk/doc/local-authority/00CC,BarnsleyMBC,05/10/2022,5200077016,"7,685.12",NPOWER LTD,585003,BH,Energy - Electricity,210001
http://statistics.data.gov.uk/doc/local-authority/00CC,BarnsleyMBC,19/10/2022,5200077302,"4,462.21",NPOWER LTD,585003,BH,Energy - Electricity,210001
http://statistics.data.gov.uk/doc/local-authority/00CC,BarnsleyMBC,19/10/2022,5200077298,"10,370.15",NPOWER LTD,585003,BH,Energy - Electricity,210001
http://statistics.data.gov.uk/doc/local-authority/00CC,BarnsleyMBC,19/10/2022,5200077280,"3,383.51",NPOWER LTD,585003,BH,Energy - Electricity,210001
http://statistics.data.gov.uk/doc/local-authority/00CC,BarnsleyMBC,19/10/2022,5200077282,"2,406.02",NPOWER LTD,585003,BH,Energy - Electricity,210001
http://statistics.data.gov.uk/doc/local-authority/00CC,BarnsleyMBC,19/10/2022,5200077283,709.91,NPOWER LTD,585003,BH,Energy - Electricity,210001
http://statistics.data.gov.uk/doc/local-authority/00CC,BarnsleyMBC,19/10/2022,5200077295,"5,592.83",NPOWER LTD,585003,BH,Energy - Electricity,210001
http://statistics.data.gov.uk/doc/local-authority/00CC,BarnsleyMBC,19/10/2022,5200077285,"1,052.77",NPOWER LTD,585003,BH,Energy - Electricity,210001
http://statistics.data.gov.uk/doc/local-authority/00CC,BarnsleyMBC,19/10/2022,5200077293,"4,488.07",NPOWER LTD,585003,BH,Energy - Electricity,210001
http://statistics.data.gov.uk/doc/local-authority/00CC,BarnsleyMBC,19/10/2022,5200077289,"1,387.39",NPOWER LTD,585003,BH,Energy - Electricity,210001
http://statistics.data.gov.uk/doc/local-authority/00CC,BarnsleyMBC,19/10/2022,5200077288,"5,370.30",NPOWER LTD,585003,BH,Energy - Electricity,210001
http://statistics.data.gov.uk/doc/local-authority/00CC,BarnsleyMBC,19/10/2022,5200077287,"11,101.40",NPOWER LTD,585003,BH,Energy - Electricity,210001
http://statistics.data.gov.uk/doc/local-authority/00CC,BarnsleyMBC,29/11/2022,5200078027,694.5,NPOWER LTD,585003,BH,Energy - Electricity,210001
http://statistics.data.gov.uk/doc/local-authority/00CC,BarnsleyMBC,29/11/2022,5200078627,630.77,NPOWER LTD,585003,BH,Energy - Electricity,210001
http://statistics.data.gov.uk/doc/local-authority/00CC,BarnsleyMBC,29/11/2022,5200077984,"1,531.07",NPOWER LTD,585003,BH,Energy - Electricity,210001
http://statistics.data.gov.uk/doc/local-authority/00CC,BarnsleyMBC,29/11/2022,5200077978,"2,806.21",NPOWER LTD,585003,BH,Energy - Electricity,210001
http://statistics.data.gov.uk/doc/local-authority/00CC,BarnsleyMBC,29/11/2022,5200077976,"1,192.37",NPOWER LTD,585003,BH,Energy - Electricity,210001
http://statistics.data.gov.uk/doc/local-authority/00CC,BarnsleyMBC,29/11/2022,5200078625,864.96,NPOWER LTD,585003,BH,Energy - Electricity,210001
http://statistics.data.gov.uk/doc/local-authority/00CC,BarnsleyMBC,29/11/2022,5200077973,"1,645.68",NPOWER LTD,585003,BH,Energy - Electricity,210001
http://statistics.data.gov.uk/doc/local-authority/00CC,BarnsleyMBC,29/11/2022,5200078624,508.34,NPOWER LTD,585003,BH,Energy - Electricity,210001
http://statistics.data.gov.uk/doc/local-authority/00CC,BarnsleyMBC,29/11/2022,5200077972,670.81,NPOWER LTD,585003,BH,Energy - Electricity,210001
http://statistics.data.gov.uk/doc/local-authority/00CC,BarnsleyMBC,29/11/2022,5200078623,"1,459.18",NPOWER LTD,585003,BH,Energy - Electricity,210001
http://statistics.data.gov.uk/doc/local-authority/00CC,BarnsleyMBC,29/11/2022,5200078622,506.57,NPOWER LTD,585003,BH,Energy - Electricity,210001
http://statistics.data.gov.uk/doc/local-authority/00CC,BarnsleyMBC,29/11/2022,5200078663,522.55,NPOWER LTD,585003,BH,Energy - Electricity,210001
http://statistics.data.gov.uk/doc/local-authority/00CC,BarnsleyMBC,29/11/2022,5200078662,888.07,NPOWER LTD,585003,BH,Energy - Electricity,210001
http://statistics.data.gov.uk/doc/local-authority/00CC,BarnsleyMBC,29/11/2022,5200078086,706.39,NPOWER LTD,585003,BH,Energy - Electricity,210001
http://statistics.data.gov.uk/doc/local-authority/00CC,BarnsleyMBC,29/11/2022,5200078032,"1,057.90",NPOWER LTD,585003,BH,Energy - Electricity,210001
http://statistics.data.gov.uk/doc/local-authority/00CC,BarnsleyMBC,29/11/2022,5200078629,856.63,NPOWER LTD,585003,BH,Energy - Electricity,210001
http://statistics.data.gov.uk/doc/local-authority/00CC,BarnsleyMBC,29/11/2022,5200078046,669.44,NPOWER LTD,585003,BH,Energy - Electricity,210001
http://statistics.data.gov.uk/doc/local-authority/00CC,BarnsleyMBC,29/11/2022,5200078676,"1,916.89",NPOWER LTD,585003,BH,Energy - Electricity,210001
http://statistics.data.gov.uk/doc/local-authority/00CC,BarnsleyMBC,29/11/2022,5200078669,"3,571.58",NPOWER LTD,585003,BH,Energy - Electricity,210001
http://statistics.data.gov.uk/doc/local-authority/00CC,BarnsleyMBC,29/11/2022,5200078060,626.43,NPOWER LTD,585003,BH,Energy - Electricity,210001
http://statistics.data.gov.uk/doc/local-authority/00CC,BarnsleyMBC,29/11/2022,5200078667,"1,155.86",NPOWER LTD,585003,BH,Energy - Electricity,210001
http://statistics.data.gov.uk/doc/local-authority/00CC,BarnsleyMBC,29/11/2022,5200078068,"1,619.69",NPOWER LTD,585003,BH,Energy - Electricity,210001
http://statistics.data.gov.uk/doc/local-authority/00CC,BarnsleyMBC,29/11/2022,5200078088,827.64,NPOWER LTD,585003,BH,Energy - Electricity,210001
http://statistics.data.gov.uk/doc/local-authority/00CC,BarnsleyMBC,29/11/2022,5200078664,"1,022.46",NPOWER LTD,585003,BH,Energy - Electricity,210001
http://statistics.data.gov.uk/doc/local-authority/00CC,BarnsleyMBC,29/11/2022,5200078632,505.23,NPOWER LTD,585003,BH,Energy - Electricity,210001
http://statistics.data.gov.uk/doc/local-authority/00CC,BarnsleyMBC,29/11/2022,5200078069,"1,643.30",NPOWER LTD,585003,BH,Energy - Electricity,210001
http://statistics.data.gov.uk/doc/local-authority/00CC,BarnsleyMBC,29/11/2022,5200078089,941.21,NPOWER LTD,585003,BH,Energy - Electricity,210001
http://statistics.data.gov.uk/doc/local-authority/00CC,BarnsleyMBC,29/11/2022,5200078083,520.55,NPOWER LTD,585003,BH,Energy - Electricity,210001
http://statistics.data.gov.uk/doc/local-authority/00CC,BarnsleyMBC,29/11/2022,5200078084,504.17,NPOWER LTD,585003,BH,Energy - Electricity,210001
http://statistics.data.gov.uk/doc/local-authority/00CC,BarnsleyMBC,29/11/2022,5200078085,"1,521.20",NPOWER LTD,585003,BH,Energy - Electricity,210001
http://statistics.data.gov.uk/doc/local-authority/00CC,BarnsleyMBC,29/11/2022,5200078639,664.53,NPOWER LTD,585003,BH,Energy - Electricity,210001
http://statistics.data.gov.uk/doc/local-authority/00CC,BarnsleyMBC,29/11/2022,5200077938,874.76,NPOWER LTD,585003,BH,Energy - Electricity,210001
http://statistics.data.gov.uk/doc/local-authority/00CC,BarnsleyMBC,29/11/2022,5200077930,785.99,NPOWER LTD,585003,BH,Energy - Electricity,210001
http://statistics.data.gov.uk/doc/local-authority/00CC,BarnsleyMBC,29/11/2022,5200077927,515.88,NPOWER LTD,585003,BH,Energy - Electricity,210001
http://statistics.data.gov.uk/doc/local-authority/00CC,BarnsleyMBC,29/11/2022,5200077912,"1,598.39",NPOWER LTD,585003,BH,Energy - Electricity,210001
http://statistics.data.gov.uk/doc/local-authority/00CC,BarnsleyMBC,29/11/2022,5200078135,"1,335.84",NPOWER LTD,585003,BH,Energy - Electricity,210001
http://statistics.data.gov.uk/doc/local-authority/00CC,BarnsleyMBC,29/11/2022,5200078414,"1,471.65",NPOWER LTD,585003,BH,Energy - Electricity,210001
http://statistics.data.gov.uk/doc/local-authority/00CC,BarnsleyMBC,29/11/2022,5200078412,506.49,NPOWER LTD,585003,BH,Energy - Electricity,210001
http://statistics.data.gov.uk/doc/local-authority/00CC,BarnsleyMBC,29/11/2022,5200078398,"1,611.36",NPOWER LTD,585003,BH,Energy - Electricity,210001
http://statistics.data.gov.uk/doc/local-authority/00CC,BarnsleyMBC,29/11/2022,5200078396,920.05,NPOWER LTD,585003,BH,Energy - Electricity,210001
http://statistics.data.gov.uk/doc/local-authority/00CC,BarnsleyMBC,29/11/2022,5200078382,608.17,NPOWER LTD,585003,BH,Energy - Electricity,210001
http://statistics.data.gov.uk/doc/local-authority/00CC,BarnsleyMBC,29/11/2022,5200078368,"1,066.95",NPOWER LTD,585003,BH,Energy - Electricity,210001
http://statistics.data.gov.uk/doc/local-authority/00CC,BarnsleyMBC,29/11/2022,5200078256,"1,286.73",NPOWER LTD,585003,BH,Energy - Electricity,210001
http://statistics.data.gov.uk/doc/local-authority/00CC,BarnsleyMBC,29/11/2022,5200078364,800.04,NPOWER LTD,585003,BH,Energy - Electricity,210001
http://statistics.data.gov.uk/doc/local-authority/00CC,BarnsleyMBC,29/11/2022,5200078306,"1,879.32",NPOWER LTD,585003,BH,Energy - Electricity,210001
http://statistics.data.gov.uk/doc/local-authority/00CC,BarnsleyMBC,29/11/2022,5200078298,"1,152.16",NPOWER LTD,585003,BH,Energy - Electricity,210001
http://statistics.data.gov.uk/doc/local-authority/00CC,BarnsleyMBC,29/11/2022,5200078255,644.61,NPOWER LTD,585003,BH,Energy - Electricity,210001
http://statistics.data.gov.uk/doc/local-authority/00CC,BarnsleyMBC,29/11/2022,5200078297,"1,078.61",NPOWER LTD,585003,BH,Energy - Electricity,210001
http://statistics.data.gov.uk/doc/local-authority/00CC,BarnsleyMBC,29/11/2022,5200078296,"3,345.65",NPOWER LTD,585003,BH,Energy - Electricity,210001
http://statistics.data.gov.uk/doc/local-authority/00CC,BarnsleyMBC,29/11/2022,5200078294,768.33,NPOWER LTD,585003,BH,Energy - Electricity,210001
http://statistics.data.gov.uk/doc/local-authority/00CC,BarnsleyMBC,29/11/2022,5200078253,"1,499.25",NPOWER LTD,585003,BH,Energy - Electricity,210001
http://statistics.data.gov.uk/doc/local-authority/00CC,BarnsleyMBC,29/11/2022,5200078257,817.94,NPOWER LTD,585003,BH,Energy - Electricity,210001
http://statistics.data.gov.uk/doc/local-authority/00CC,BarnsleyMBC,29/11/2022,5200078262,870.87,NPOWER LTD,585003,BH,Energy - Electricity,210001
http://statistics.data.gov.uk/doc/local-authority/00CC,BarnsleyMBC,29/11/2022,5200078251,504.35,NPOWER LTD,585003,BH,Energy - Electricity,210001
http://statistics.data.gov.uk/doc/local-authority/00CC,BarnsleyMBC,29/11/2022,5200077621,"12,046.00",NPOWER LTD,585003,BH,Energy - Electricity,210001
http://statistics.data.gov.uk/doc/local-authority/00CC,BarnsleyMBC,29/11/2022,5200077623,"3,555.32",NPOWER LTD,585003,BH,Energy - Electricity,210001
http://statistics.data.gov.uk/doc/local-authority/00CC,BarnsleyMBC,29/11/2022,5200077625,"2,806.23",NPOWER LTD,585003,BH,Energy - Electricity,210001
http://statistics.data.gov.uk/doc/local-authority/00CC,BarnsleyMBC,29/11/2022,5200077627,974.06,NPOWER LTD,585003,BH,Energy - Electricity,210001
http://statistics.data.gov.uk/doc/local-authority/00CC,BarnsleyMBC,29/11/2022,5200077933,845.31,NPOWER LTD,585003,BH,Energy - Electricity,210001
http://statistics.data.gov.uk/doc/local-authority/00CC,BarnsleyMBC,29/11/2022,5200077629,"7,465.59",NPOWER LTD,585003,BH,Energy - Electricity,210001
http://statistics.data.gov.uk/doc/local-authority/00CC,BarnsleyMBC,29/11/2022,5200077631,"1,367.54",NPOWER LTD,585003,BH,Energy - Electricity,210001
http://statistics.data.gov.uk/doc/local-authority/00CC,BarnsleyMBC,29/11/2022,5200077633,"3,207.73",NPOWER LTD,585003,BH,Energy - Electricity,210001
http://statistics.data.gov.uk/doc/local-authority/00CC,BarnsleyMBC,29/11/2022,5200077680,"5,171.65",NPOWER LTD,585003,BH,Energy - Electricity,210001
http://statistics.data.gov.uk/doc/local-authority/00CC,BarnsleyMBC,29/11/2022,5200078137,890.01,NPOWER LTD,585003,BH,Energy - Electricity,210001
http://statistics.data.gov.uk/doc/local-authority/00CC,BarnsleyMBC,29/11/2022,5200078139,"6,307.49",NPOWER LTD,585003,BH,Energy - Electricity,210001
http://statistics.data.gov.uk/doc/local-authority/00CC,BarnsleyMBC,29/11/2022,5200078141,"2,009.07",NPOWER LTD,585003,BH,Energy - Electricity,210001
http://statistics.data.gov.uk/doc/local-authority/00CC,BarnsleyMBC,29/11/2022,5200078143,"3,050.21",NPOWER LTD,585003,BH,Energy - Electricity,210001
http://statistics.data.gov.uk/doc/local-authority/00CC,BarnsleyMBC,29/11/2022,5200078145,"2,827.22",NPOWER LTD,585003,BH,Energy - Electricity,210001
http://statistics.data.gov.uk/doc/local-authority/00CC,BarnsleyMBC,29/11/2022,5200078147,"2,127.29",NPOWER LTD,585003,BH,Energy - Electricity,210001
http://statistics.data.gov.uk/doc/local-authority/00CC,BarnsleyMBC,29/11/2022,5200078149,"6,471.78",NPOWER LTD,585003,BH,Energy - Electricity,210001
http://statistics.data.gov.uk/doc/local-authority/00CC,BarnsleyMBC,29/11/2022,5200078150,"11,288.23",NPOWER LTD,585003,BH,Energy - Electricity,210001
http://statistics.data.gov.uk/doc/local-authority/00CC,BarnsleyMBC,29/11/2022,5200078200,648.38,NPOWER LTD,585003,BH,Energy - Electricity,210001
http://statistics.data.gov.uk/doc/local-authority/00CC,BarnsleyMBC,29/11/2022,5200078204,872.06,NPOWER LTD,585003,BH,Energy - Electricity,210001
http://statistics.data.gov.uk/doc/local-authority/00CC,BarnsleyMBC,29/11/2022,5200078218,638.72,NPOWER LTD,585003,BH,Energy - Electricity,210001
http://statistics.data.gov.uk/doc/local-authority/00CC,BarnsleyMBC,29/11/2022,5200077932,"1,459.76",NPOWER LTD,585003,BH,Energy - Electricity,210001
http://statistics.data.gov.uk/doc/local-authority/00CC,BarnsleyMBC,29/11/2022,5200077931,843.43,NPOWER LTD,585003,BH,Energy - Electricity,210001
http://statistics.data.gov.uk/doc/local-authority/00CC,BarnsleyMBC,29/11/2022,5200078233,616.21,NPOWER LTD,585003,BH,Energy - Electricity,210001
http://statistics.data.gov.uk/doc/local-authority/00CC,BarnsleyMBC,29/11/2022,5200078238,"1,517.26",NPOWER LTD,585003,BH,Energy - Electricity,210001
http://statistics.data.gov.uk/doc/local-authority/00CC,BarnsleyMBC,29/11/2022,5200078239,"1,312.70",NPOWER LTD,585003,BH,Energy - Electricity,210001
http://statistics.data.gov.uk/doc/local-authority/00CC,BarnsleyMBC,29/11/2022,5200078607,"1,632.75",NPOWER LTD,585003,BH,Energy - Electricity,210001
http://statistics.data.gov.uk/doc/local-authority/00CC,BarnsleyMBC,29/11/2022,5200077813,"4,517.40",NPOWER LTD,585003,BH,Energy - Electricity,210001
http://statistics.data.gov.uk/doc/local-authority/00CC,BarnsleyMBC,29/11/2022,5200077815,"5,329.94",NPOWER LTD,585003,BH,Energy - Electricity,210001
http://statistics.data.gov.uk/doc/local-authority/00CC,BarnsleyMBC,29/11/2022,5200077817,"1,399.05",NPOWER LTD,585003,BH,Energy - Electricity,210001
http://statistics.data.gov.uk/doc/local-authority/00CC,BarnsleyMBC,29/11/2022,5200077818,"12,672.98",NPOWER LTD,585003,BH,Energy - Electricity,210001
http://statistics.data.gov.uk/doc/local-authority/00CC,BarnsleyMBC,29/11/2022,5200077820,"2,729.92",NPOWER LTD,585003,BH,Energy - Electricity,210001
http://statistics.data.gov.uk/doc/local-authority/00CC,BarnsleyMBC,29/11/2022,5200077822,867.09,NPOWER LTD,585003,BH,Energy - Electricity,210001
http://statistics.data.gov.uk/doc/local-authority/00CC,BarnsleyMBC,29/11/2022,5200077877,684.64,NPOWER LTD,585003,BH,Energy - Electricity,210001
http://statistics.data.gov.uk/doc/local-authority/00CC,BarnsleyMBC,29/11/2022,5200077890,987.46,NPOWER LTD,585003,BH,Energy - Electricity,210001
http://statistics.data.gov.uk/doc/local-authority/00CC,BarnsleyMBC,29/11/2022,5200077899,651.23,NPOWER LTD,585003,BH,Energy - Electricity,210001
http://statistics.data.gov.uk/doc/local-authority/00CC,BarnsleyMBC,29/11/2022,5200077904,632.04,NPOWER LTD,585003,BH,Energy - Electricity,210001
http://statistics.data.gov.uk/doc/local-authority/00CC,BarnsleyMBC,29/11/2022,5200077911,935.4,NPOWER LTD,585003,BH,Energy - Electricity,210001
http://statistics.data.gov.uk/doc/local-authority/00CC,BarnsleyMBC,29/11/2022,5200077681,530.95,NPOWER LTD,585003,BH,Energy - Electricity,210001
http://statistics.data.gov.uk/doc/local-authority/00CC,BarnsleyMBC,29/11/2022,5200078574,"1,291.57",NPOWER LTD,585003,BH,Energy - Electricity,210001
http://statistics.data.gov.uk/doc/local-authority/00CC,BarnsleyMBC,29/11/2022,5200078569,750.8,NPOWER LTD,585003,BH,Energy - Electricity,210001
http://statistics.data.gov.uk/doc/local-authority/00CC,BarnsleyMBC,29/11/2022,5200078561,891.02,NPOWER LTD,585003,BH,Energy - Electricity,210001
http://statistics.data.gov.uk/doc/local-authority/00CC,BarnsleyMBC,29/11/2022,5200078518,"1,887.56",NPOWER LTD,585003,BH,Energy - Electricity,210001
http://statistics.data.gov.uk/doc/local-authority/00CC,BarnsleyMBC,29/11/2022,5200078515,"2,499.19",NPOWER LTD,585003,BH,Energy - Electricity,210001
http://statistics.data.gov.uk/doc/local-authority/00CC,BarnsleyMBC,29/11/2022,5200078512,"2,384.86",NPOWER LTD,585003,BH,Energy - Electricity,210001
http://statistics.data.gov.uk/doc/local-authority/00CC,BarnsleyMBC,29/11/2022,5200078509,"4,254.30",NPOWER LTD,585003,BH,Energy - Electricity,210001
http://statistics.data.gov.uk/doc/local-authority/00CC,BarnsleyMBC,29/11/2022,5200078506,"4,484.43",NPOWER LTD,585003,BH,Energy - Electricity,210001
http://statistics.data.gov.uk/doc/local-authority/00CC,BarnsleyMBC,29/11/2022,5200078505,"12,548.27",NPOWER LTD,585003,BH,Energy - Electricity,210001
http://statistics.data.gov.uk/doc/local-authority/00CC,BarnsleyMBC,29/11/2022,5200078502,901.56,NPOWER LTD,585003,BH,Energy - Electricity,210001
http://statistics.data.gov.uk/doc/local-authority/00CC,BarnsleyMBC,29/11/2022,5200077811,"1,955.81",NPOWER LTD,585003,BH,Energy - Electricity,210001
http://statistics.data.gov.uk/doc/local-authority/00CC,BarnsleyMBC,29/11/2022,5200077692,856.99,NPOWER LTD,585003,BH,Energy - Electricity,210001
http://statistics.data.gov.uk/doc/local-authority/00CC,BarnsleyMBC,29/11/2022,5200077698,"1,060.63",NPOWER LTD,585003,BH,Energy - Electricity,210001
http://statistics.data.gov.uk/doc/local-authority/00CC,BarnsleyMBC,29/11/2022,5200077711,669.81,NPOWER LTD,585003,BH,Energy - Electricity,210001
http://statistics.data.gov.uk/doc/local-authority/00CC,BarnsleyMBC,29/11/2022,5200077725,"1,616.74",NPOWER LTD,585003,BH,Energy - Electricity,210001
http://statistics.data.gov.uk/doc/local-authority/00CC,BarnsleyMBC,29/11/2022,5200077726,"2,312.28",NPOWER LTD,585003,BH,Energy - Electricity,210001
http://statistics.data.gov.uk/doc/local-authority/00CC,BarnsleyMBC,29/11/2022,5200077741,517.36,NPOWER LTD,585003,BH,Energy - Electricity,210001
http://statistics.data.gov.uk/doc/local-authority/00CC,BarnsleyMBC,29/11/2022,5200077742,505.74,NPOWER LTD,585003,BH,Energy - Electricity,210001
http://statistics.data.gov.uk/doc/local-authority/00CC,BarnsleyMBC,29/11/2022,5200077743,"1,528.86",NPOWER LTD,585003,BH,Energy - Electricity,210001
http://statistics.data.gov.uk/doc/local-authority/00CC,BarnsleyMBC,29/11/2022,5200077745,728.85,NPOWER LTD,585003,BH,Energy - Electricity,210001
http://statistics.data.gov.uk/doc/local-authority/00CC,BarnsleyMBC,29/11/2022,5200077747,928.19,NPOWER LTD,585003,BH,Energy - Electricity,210001
http://statistics.data.gov.uk/doc/local-authority/00CC,BarnsleyMBC,29/11/2022,5200077751,"1,176.47",NPOWER LTD,585003,BH,Energy - Electricity,210001
http://statistics.data.gov.uk/doc/local-authority/00CC,BarnsleyMBC,29/11/2022,5200077752,518,NPOWER LTD,585003,BH,Energy - Electricity,210001
http://statistics.data.gov.uk/doc/local-authority/00CC,BarnsleyMBC,29/11/2022,5200077758,622.16,NPOWER LTD,585003,BH,Energy - Electricity,210001
http://statistics.data.gov.uk/doc/local-authority/00CC,BarnsleyMBC,29/11/2022,5200077786,718.9,NPOWER LTD,585003,BH,Energy - Electricity,210001
http://statistics.data.gov.uk/doc/local-authority/00CC,BarnsleyMBC,29/11/2022,5200077787,"1,242.29",NPOWER LTD,585003,BH,Energy - Electricity,210001
http://statistics.data.gov.uk/doc/local-authority/00CC,BarnsleyMBC,29/11/2022,5200077788,"1,770.39",NPOWER LTD,585003,BH,Energy - Electricity,210001
http://statistics.data.gov.uk/doc/local-authority/00CC,BarnsleyMBC,29/11/2022,5200077791,"1,123.77",NPOWER LTD,585003,BH,Energy - Electricity,210001
http://statistics.data.gov.uk/doc/local-authority/00CC,BarnsleyMBC,29/11/2022,5200077797,"3,381.87",NPOWER LTD,585003,BH,Energy - Electricity,210001
http://statistics.data.gov.uk/doc/local-authority/00CC,BarnsleyMBC,29/11/2022,5200077807,"2,362.93",NPOWER LTD,585003,BH,Energy - Electricity,210001
http://statistics.data.gov.uk/doc/local-authority/00CC,BarnsleyMBC,29/11/2022,5200077809,"2,648.30",NPOWER LTD,585003,BH,Energy - Electricity,210001
http://statistics.data.gov.uk/doc/local-authority/00CC,BarnsleyMBC,29/11/2022,5200078485,"2,260.68",NPOWER LTD,585003,BH,Energy - Electricity,210001
http://statistics.data.gov.uk/doc/local-authority/00CC,BarnsleyMBC,29/11/2022,5200078133,"2,389.99",NPOWER LTD,585003,BH,Energy - Electricity,210001
http://statistics.data.gov.uk/doc/local-authority/00CC,BarnsleyMBC,29/11/2022,5200078483,"2,828.53",NPOWER LTD,585003,BH,Energy - Electricity,210001
http://statistics.data.gov.uk/doc/local-authority/00CC,BarnsleyMBC,29/11/2022,5200078481,"3,021.31",NPOWER LTD,585003,BH,Energy - Electricity,210001
http://statistics.data.gov.uk/doc/local-authority/00CC,BarnsleyMBC,29/11/2022,5200078479,"12,174.79",NPOWER LTD,585003,BH,Energy - Electricity,210001
http://statistics.data.gov.uk/doc/local-authority/00CC,BarnsleyMBC,29/11/2022,5200078473,626.19,NPOWER LTD,585003,BH,Energy - Electricity,210001
http://statistics.data.gov.uk/doc/local-authority/00CC,BarnsleyMBC,29/11/2022,5200078126,"4,291.27",NPOWER LTD,585003,BH,Energy - Electricity,210001
http://statistics.data.gov.uk/doc/local-authority/00CC,BarnsleyMBC,29/11/2022,5200078471,"1,472.43",NPOWER LTD,585003,BH,Energy - Electricity,210001
http://statistics.data.gov.uk/doc/local-authority/00CC,BarnsleyMBC,29/11/2022,5200078465,"2,687.02",NPOWER LTD,585003,BH,Energy - Electricity,210001
http://statistics.data.gov.uk/doc/local-authority/00CC,BarnsleyMBC,29/11/2022,5200078462,"1,170.03",NPOWER LTD,585003,BH,Energy - Electricity,210001
http://statistics.data.gov.uk/doc/local-authority/00CC,BarnsleyMBC,29/11/2022,5200078459,"1,356.35",NPOWER LTD,585003,BH,Energy - Electricity,210001
http://statistics.data.gov.uk/doc/local-authority/00CC,BarnsleyMBC,29/11/2022,5200078458,649.97,NPOWER LTD,585003,BH,Energy - Electricity,210001
http://statistics.data.gov.uk/doc/local-authority/00CC,BarnsleyMBC,29/11/2022,5200078424,520.02,NPOWER LTD,585003,BH,Energy - Electricity,210001
http://statistics.data.gov.uk/doc/local-authority/00CC,BarnsleyMBC,29/11/2022,5200078125,"1,160.33",NPOWER LTD,585003,BH,Energy - Electricity,210001
http://statistics.data.gov.uk/doc/local-authority/00CC,BarnsleyMBC,29/11/2022,5200078423,884.49,NPOWER LTD,585003,BH,Energy - Electricity,210001
http://statistics.data.gov.uk/doc/local-authority/00CC,BarnsleyMBC,29/11/2022,5200078418,867.25,NPOWER LTD,585003,BH,Energy - Electricity,210001
http://statistics.data.gov.uk/doc/local-authority/00CC,BarnsleyMBC,29/11/2022,5200078417,927.4,NPOWER LTD,585003,BH,Energy - Electricity,210001
http://statistics.data.gov.uk/doc/local-authority/00CC,BarnsleyMBC,29/11/2022,5200078416,748.61,NPOWER LTD,585003,BH,Energy - Electricity,210001
http://statistics.data.gov.uk/doc/local-authority/00CC,BarnsleyMBC,29/11/2022,5200078588,628.52,NPOWER LTD,585003,BH,Energy - Electricity,210001
http://statistics.data.gov.uk/doc/local-authority/00CC,BarnsleyMBC,29/11/2022,5200078122,533.59,NPOWER LTD,585003,BH,Energy - Electricity,210001
http://statistics.data.gov.uk/doc/local-authority/00CC,BarnsleyMBC,29/11/2022,5200078120,996.1,NPOWER LTD,585003,BH,Energy - Electricity,210001
http://statistics.data.gov.uk/doc/local-authority/00CC,BarnsleyMBC,29/11/2022,5200078117,"1,697.67",NPOWER LTD,585003,BH,Energy - Electricity,210001
http://statistics.data.gov.uk/doc/local-authority/00CC,BarnsleyMBC,29/11/2022,5200078095,518.86,NPOWER LTD,585003,BH,Energy - Electricity,210001
http://statistics.data.gov.uk/doc/local-authority/00CC,BarnsleyMBC,29/11/2022,5200078094,"1,008.97",NPOWER LTD,585003,BH,Energy - Electricity,210001
http://statistics.data.gov.uk/doc/local-authority/00CC,BarnsleyMBC,29/11/2022,5200078606,"1,122.48",NPOWER LTD,585003,BH,Energy - Electricity,210001
http://statistics.data.gov.uk/doc/local-authority/00CC,BarnsleyMBC,29/11/2022,5200078499,"1,404.55",NPOWER LTD,585003,BH,Energy - Electricity,210001
http://statistics.data.gov.uk/doc/local-authority/00CC,BarnsleyMBC,29/11/2022,5200078496,"2,698.57",NPOWER LTD,585003,BH,Energy - Electricity,210001
http://statistics.data.gov.uk/doc/local-authority/00CC,BarnsleyMBC,29/11/2022,5200078495,"6,641.32",NPOWER LTD,585003,BH,Energy - Electricity,210001
http://statistics.data.gov.uk/doc/local-authority/00CC,BarnsleyMBC,29/11/2022,5200078493,862.14,NPOWER LTD,585003,BH,Energy - Electricity,210001
http://statistics.data.gov.uk/doc/local-authority/00CC,BarnsleyMBC,29/11/2022,5200078491,"5,964.28",NPOWER LTD,585003,BH,Energy - Electricity,210001
http://statistics.data.gov.uk/doc/local-authority/00CC,BarnsleyMBC,29/11/2022,5200078487,"1,366.90",NPOWER LTD,585003,BH,Energy - Electricity,210001
http://statistics.data.gov.uk/doc/local-authority/00CC,BarnsleyMBC,29/11/2022,5200078489,"2,838.88",NPOWER LTD,585003,BH,Energy - Electricity,210001
http://statistics.data.gov.uk/doc/local-authority/00CC,BarnsleyMBC,02/12/2022,5200078776,838.73,NPOWER LTD,585003,BH,Energy - Electricity,210001
http://statistics.data.gov.uk/doc/local-authority/00CC,BarnsleyMBC,17/10/2022,5100329113,"1,194.00",OCEAN MEDIA GROUP LTD,501690,BH,Recruitment - Advertising,113001
http://statistics.data.gov.uk/doc/local-authority/00CC,BarnsleyMBC,05/12/2022,5100331036,"1,308.00",OCEAN MEDIA GROUP LTD,501690,BH,Conference Fees,112003
http://statistics.data.gov.uk/doc/local-authority/00CC,BarnsleyMBC,11/10/2022,5100328802,"28,075.36",ONE CONSULTING & ASSOCIATES LIMITED,539742,BH,ICT Services and Support,426014
http://statistics.data.gov.uk/doc/local-authority/00CC,BarnsleyMBC,11/10/2022,5100328803,"27,702.97",ONE CONSULTING & ASSOCIATES LIMITED,539742,BH,ICT Services and Support,426014
http://statistics.data.gov.uk/doc/local-authority/00CC,BarnsleyMBC,22/11/2022,5100330628,"27,621.20",ONE CONSULTING & ASSOCIATES LIMITED,539742,BH,ICT Services and Support,426014
http://statistics.data.gov.uk/doc/local-authority/00CC,BarnsleyMBC,04/10/2022,1900026057,571,One Time Vendor - Creditors,1000001,BH,Expenses - Compensation Payments,460010
http://statistics.data.gov.uk/doc/local-authority/00CC,BarnsleyMBC,08/11/2022,1900026182,500,One Time Vendor - Creditors,1000001,BH,Expenses - Compensation Payments,460010
http://statistics.data.gov.uk/doc/local-authority/00CC,BarnsleyMBC,16/11/2022,1900026232,655.42,One Time Vendor - Creditors,1000001,BH,Tenants allowances,540009
http://statistics.data.gov.uk/doc/local-authority/00CC,BarnsleyMBC,23/12/2022,1900026356,553.97,One Time Vendor - Creditors,1000001,BH,Expenses - Compensation Payments,460010
http://statistics.data.gov.uk/doc/local-authority/00CC,BarnsleyMBC,17/10/2022,1900026106,"24,480.00",ONE TIME VENDORS - COMPANIES,1000025,BH,Basic pay - Agency Fees,104001
http://statistics.data.gov.uk/doc/local-authority/00CC,BarnsleyMBC,08/11/2022,1900026185,"1,495.00",ONE TIME VENDORS - COMPANIES,1000025,BH,Training Courses,112001
http://statistics.data.gov.uk/doc/local-authority/00CC,BarnsleyMBC,11/11/2022,1900026223,"5,000.00",ONE TIME VENDORS - COMPANIES,1000025,BH,Unascertained Material Group,400008
http://statistics.data.gov.uk/doc/local-authority/00CC,BarnsleyMBC,30/11/2022,5100330920,"2,356.20",ORACLE CORPORATION LTD,502338,BH,Computer Software -  Licenses,426010
http://statistics.data.gov.uk/doc/local-authority/00CC,BarnsleyMBC,25/10/2022,5100329314,"27,307.20",P BIDDLESTONE GROUNDWORKS & MAINT,551078,BH,Main contractor,506011
http://statistics.data.gov.uk/doc/local-authority/00CC,BarnsleyMBC,31/10/2022,5100329770,"75,740.46",P BIDDLESTONE GROUNDWORKS & MAINT,551078,BH,Main contractor,506011
http://statistics.data.gov.uk/doc/local-authority/00CC,BarnsleyMBC,23/12/2022,5100331847,"1,224.00",P BIDDLESTONE GROUNDWORKS & MAINT,551078,BH,Main contractor,506011
http://statistics.data.gov.uk/doc/local-authority/00CC,BarnsleyMBC,07/10/2022,5100328470,"8,800.26",PENNINGTON CHOICES LTD,528871,BH,Main contractor,506011
http://statistics.data.gov.uk/doc/local-authority/00CC,BarnsleyMBC,07/10/2022,5100328387,"1,132.07",PENNINGTON CHOICES LTD,528871,BH,Main contractor,506011
http://statistics.data.gov.uk/doc/local-authority/00CC,BarnsleyMBC,07/10/2022,5100328389,"12,477.06",PENNINGTON CHOICES LTD,528871,BH,Main contractor,506011
http://statistics.data.gov.uk/doc/local-authority/00CC,BarnsleyMBC,11/10/2022,5100328805,"10,870.20",PENNINGTON CHOICES LTD,528871,BH,Basic pay - Agency Fees,104001
http://statistics.data.gov.uk/doc/local-authority/00CC,BarnsleyMBC,18/10/2022,5100329155,"14,901.06",PENNINGTON CHOICES LTD,528871,BH,Main contractor,506011
http://statistics.data.gov.uk/doc/local-authority/00CC,BarnsleyMBC,27/10/2022,5100329640,"4,530.60",PENNINGTON CHOICES LTD,528871,BH,Basic pay - Agency Fees,104001
http://statistics.data.gov.uk/doc/local-authority/00CC,BarnsleyMBC,09/11/2022,5100330081,"1,001.59",PENNINGTON CHOICES LTD,528871,BH,Main contractor,506011
http://statistics.data.gov.uk/doc/local-authority/00CC,BarnsleyMBC,09/11/2022,5100330064,"2,440.69",PENNINGTON CHOICES LTD,528871,BH,Main contractor,506011
http://statistics.data.gov.uk/doc/local-authority/00CC,BarnsleyMBC,14/11/2022,5100330292,"3,632.62",PENNINGTON CHOICES LTD,528871,BH,Main contractor,506011
http://statistics.data.gov.uk/doc/local-authority/00CC,BarnsleyMBC,17/11/2022,5100330532,866.4,PENNINGTON CHOICES LTD,528871,BH,Main contractor,506011
http://statistics.data.gov.uk/doc/local-authority/00CC,BarnsleyMBC,21/12/2022,5100331382,663.16,PENNINGTON CHOICES LTD,528871,BH,Main contractor,506011
http://statistics.data.gov.uk/doc/local-authority/00CC,BarnsleyMBC,17/10/2022,5100328874,"1,080.00",Permaroof UK,540341,BH,Training Courses,112001
http://statistics.data.gov.uk/doc/local-authority/00CC,BarnsleyMBC,06/10/2022,5100328713,"12,000.00",PIMSS DATA SYSTEMS,530902,BH,Project development,430006
http://statistics.data.gov.uk/doc/local-authority/00CC,BarnsleyMBC,22/11/2022,5100330633,570.16,POSTURITE (UK) LTD,502551,BH,Stationery,422004
http://statistics.data.gov.uk/doc/local-authority/00CC,BarnsleyMBC,16/12/2022,5100331491,"1,302.00",POSTURITE (UK) LTD,502551,BH,Stationery,422004
http://statistics.data.gov.uk/doc/local-authority/00CC,BarnsleyMBC,12/10/2022,5100328936,851.99,POWERTECH INDUSTRIAL LTD,502518,BH,Direct - Tools & Parts,403019
http://statistics.data.gov.uk/doc/local-authority/00CC,BarnsleyMBC,12/10/2022,5100328937,-851.99,POWERTECH INDUSTRIAL LTD,502518,BH,Direct - Tools & Parts,403019
http://statistics.data.gov.uk/doc/local-authority/00CC,BarnsleyMBC,14/10/2022,5100328302,851.99,POWERTECH INDUSTRIAL LTD,502518,BH,Direct - Tools & Parts,403019
http://statistics.data.gov.uk/doc/local-authority/00CC,BarnsleyMBC,20/10/2022,5100329345,"1,075.46",POWERTECH INDUSTRIAL LTD,502518,BH,Direct - Tools & Parts,403019
http://statistics.data.gov.uk/doc/local-authority/00CC,BarnsleyMBC,20/10/2022,5100329335,"1,281.60",POWERTECH INDUSTRIAL LTD,502518,BH,Direct - Tools & Parts,403019
http://statistics.data.gov.uk/doc/local-authority/00CC,BarnsleyMBC,21/10/2022,5100329423,523.21,POWERTECH INDUSTRIAL LTD,502518,BH,Equipment - Repair and Maintenance,400003
http://statistics.data.gov.uk/doc/local-authority/00CC,BarnsleyMBC,21/10/2022,5100329347,669.6,POWERTECH INDUSTRIAL LTD,502518,BH,Direct - Tools & Parts,403019
http://statistics.data.gov.uk/doc/local-authority/00CC,BarnsleyMBC,31/10/2022,5100329700,"1,580.40",POWERTECH INDUSTRIAL LTD,502518,BH,,
http://statistics.data.gov.uk/doc/local-authority/00CC,BarnsleyMBC,04/11/2022,5100329808,540.79,POWERTECH INDUSTRIAL LTD,502518,BH,Direct - Tools & Parts,403019
http://statistics.data.gov.uk/doc/local-authority/00CC,BarnsleyMBC,11/11/2022,5100330241,612,POWERTECH INDUSTRIAL LTD,502518,BH,Direct - Tools & Parts,403019
http://statistics.data.gov.uk/doc/local-authority/00CC,BarnsleyMBC,14/11/2022,5100329797,602.48,POWERTECH INDUSTRIAL LTD,502518,BH,Direct - Tools & Parts,403019
http://statistics.data.gov.uk/doc/local-authority/00CC,BarnsleyMBC,17/11/2022,5100330537,"1,236.60",POWERTECH INDUSTRIAL LTD,502518,BH,Direct - Tools & Parts,403019
http://statistics.data.gov.uk/doc/local-authority/00CC,BarnsleyMBC,17/11/2022,5100330481,"1,129.16",POWERTECH INDUSTRIAL LTD,502518,BH,,
http://statistics.data.gov.uk/doc/local-authority/00CC,BarnsleyMBC,17/11/2022,5100330535,"1,236.60",POWERTECH INDUSTRIAL LTD,502518,BH,Direct - Tools & Parts,403019
http://statistics.data.gov.uk/doc/local-authority/00CC,BarnsleyMBC,17/11/2022,5100330536,"1,236.60",POWERTECH INDUSTRIAL LTD,502518,BH,Direct - Tools & Parts,403019
http://statistics.data.gov.uk/doc/local-authority/00CC,BarnsleyMBC,28/11/2022,5100329970,612,POWERTECH INDUSTRIAL LTD,502518,BH,Direct - Tools & Parts,403019
http://statistics.data.gov.uk/doc/local-authority/00CC,BarnsleyMBC,28/11/2022,5100330620,826.8,POWERTECH INDUSTRIAL LTD,502518,BH,Direct - Tools & Parts,403019
http://statistics.data.gov.uk/doc/local-authority/00CC,BarnsleyMBC,30/11/2022,5100330871,558.3,POWERTECH INDUSTRIAL LTD,502518,BH,,
http://statistics.data.gov.uk/doc/local-authority/00CC,BarnsleyMBC,09/12/2022,5100331172,"1,091.04",POWERTECH INDUSTRIAL LTD,502518,BH,Direct - Building Items,403013
http://statistics.data.gov.uk/doc/local-authority/00CC,BarnsleyMBC,20/12/2022,5100331642,"1,794.36",POWERTECH INDUSTRIAL LTD,502518,BH,,
http://statistics.data.gov.uk/doc/local-authority/00CC,BarnsleyMBC,20/12/2022,5100331643,810.17,POWERTECH INDUSTRIAL LTD,502518,BH,,
http://statistics.data.gov.uk/doc/local-authority/00CC,BarnsleyMBC,21/12/2022,5100330985,688,POWERTECH INDUSTRIAL LTD,502518,BH,Direct - Tools & Parts,403019
http://statistics.data.gov.uk/doc/local-authority/00CC,BarnsleyMBC,21/12/2022,5100331749,756.24,POWERTECH INDUSTRIAL LTD,502518,BH,Direct - Tools & Parts,403019
http://statistics.data.gov.uk/doc/local-authority/00CC,BarnsleyMBC,09/12/2022,5100331048,"4,100.70",PRO CARE SHOWER & BATHROOM CENTRE L,540238,BH,Direct - Building Items,403013
http://statistics.data.gov.uk/doc/local-authority/00CC,BarnsleyMBC,06/12/2022,5100330917,"1,584.00",Q1tum Ltd,534191,BH,Training Courses,112001
http://statistics.data.gov.uk/doc/local-authority/00CC,BarnsleyMBC,15/11/2022,5100330390,906,R O S P A,502830,BH,Training Courses,112001
http://statistics.data.gov.uk/doc/local-authority/00CC,BarnsleyMBC,19/10/2022,5200077162,533.95,REED SPECIALIST RECRUITMENT LTD,502689,BH,Basic pay - Agency Fees,104001
http://statistics.data.gov.uk/doc/local-authority/00CC,BarnsleyMBC,19/10/2022,5200077163,520.4,REED SPECIALIST RECRUITMENT LTD,502689,BH,Basic pay - Agency Fees,104001
http://statistics.data.gov.uk/doc/local-authority/00CC,BarnsleyMBC,19/10/2022,5200077164,806.31,REED SPECIALIST RECRUITMENT LTD,502689,BH,Basic pay - Agency Fees,104001
http://statistics.data.gov.uk/doc/local-authority/00CC,BarnsleyMBC,19/10/2022,5200077165,825.65,REED SPECIALIST RECRUITMENT LTD,502689,BH,Basic pay - Agency Fees,104001
http://statistics.data.gov.uk/doc/local-authority/00CC,BarnsleyMBC,19/10/2022,5200077166,668.92,REED SPECIALIST RECRUITMENT LTD,502689,BH,Basic pay - Agency Fees,104001
http://statistics.data.gov.uk/doc/local-authority/00CC,BarnsleyMBC,19/10/2022,5200077167,526.29,REED SPECIALIST RECRUITMENT LTD,502689,BH,Basic pay - Agency Fees,104001
http://statistics.data.gov.uk/doc/local-authority/00CC,BarnsleyMBC,19/10/2022,5200077168,825.65,REED SPECIALIST RECRUITMENT LTD,502689,BH,Basic pay - Agency Fees,104001
http://statistics.data.gov.uk/doc/local-authority/00CC,BarnsleyMBC,19/10/2022,5200077169,806.31,REED SPECIALIST RECRUITMENT LTD,502689,BH,Basic pay - Agency Fees,104001
http://statistics.data.gov.uk/doc/local-authority/00CC,BarnsleyMBC,19/10/2022,5200077170,747.62,REED SPECIALIST RECRUITMENT LTD,502689,BH,Basic pay - Agency Fees,104001
http://statistics.data.gov.uk/doc/local-authority/00CC,BarnsleyMBC,19/10/2022,5200077171,"1,482.78",REED SPECIALIST RECRUITMENT LTD,502689,BH,Basic pay - Agency Fees,104001
http://statistics.data.gov.uk/doc/local-authority/00CC,BarnsleyMBC,19/10/2022,5200077344,502.1,REED SPECIALIST RECRUITMENT LTD,502689,BH,Basic pay - Agency Fees,104001
http://statistics.data.gov.uk/doc/local-authority/00CC,BarnsleyMBC,19/10/2022,5200077345,"1,179.00",REED SPECIALIST RECRUITMENT LTD,502689,BH,Basic pay - Agency Fees,104001
http://statistics.data.gov.uk/doc/local-authority/00CC,BarnsleyMBC,19/10/2022,5200077355,806.31,REED SPECIALIST RECRUITMENT LTD,502689,BH,Basic pay - Agency Fees,104001
http://statistics.data.gov.uk/doc/local-authority/00CC,BarnsleyMBC,19/10/2022,5200077354,909.41,REED SPECIALIST RECRUITMENT LTD,502689,BH,Basic pay - Agency Fees,104001
http://statistics.data.gov.uk/doc/local-authority/00CC,BarnsleyMBC,19/10/2022,5200077353,806.31,REED SPECIALIST RECRUITMENT LTD,502689,BH,Basic pay - Agency Fees,104001
http://statistics.data.gov.uk/doc/local-authority/00CC,BarnsleyMBC,19/10/2022,5200077352,806.31,REED SPECIALIST RECRUITMENT LTD,502689,BH,Basic pay - Agency Fees,104001
http://statistics.data.gov.uk/doc/local-authority/00CC,BarnsleyMBC,19/10/2022,5200077351,617.22,REED SPECIALIST RECRUITMENT LTD,502689,BH,Basic pay - Agency Fees,104001
http://statistics.data.gov.uk/doc/local-authority/00CC,BarnsleyMBC,19/10/2022,5200077350,635.15,REED SPECIALIST RECRUITMENT LTD,502689,BH,Basic pay - Agency Fees,104001
http://statistics.data.gov.uk/doc/local-authority/00CC,BarnsleyMBC,19/10/2022,5200077349,669.47,REED SPECIALIST RECRUITMENT LTD,502689,BH,Basic pay - Agency Fees,104001
http://statistics.data.gov.uk/doc/local-authority/00CC,BarnsleyMBC,19/10/2022,5200077348,515,REED SPECIALIST RECRUITMENT LTD,502689,BH,Basic pay - Agency Fees,104001
http://statistics.data.gov.uk/doc/local-authority/00CC,BarnsleyMBC,19/10/2022,5200077347,970.04,REED SPECIALIST RECRUITMENT LTD,502689,BH,Basic pay - Agency Fees,104001
http://statistics.data.gov.uk/doc/local-authority/00CC,BarnsleyMBC,19/10/2022,5200077346,635.15,REED SPECIALIST RECRUITMENT LTD,502689,BH,Basic pay - Agency Fees,104001
http://statistics.data.gov.uk/doc/local-authority/00CC,BarnsleyMBC,19/10/2022,5200077321,502.1,REED SPECIALIST RECRUITMENT LTD,502689,BH,Basic pay - Agency Fees,104001
http://statistics.data.gov.uk/doc/local-authority/00CC,BarnsleyMBC,19/10/2022,5200077320,747.62,REED SPECIALIST RECRUITMENT LTD,502689,BH,Basic pay - Agency Fees,104001
http://statistics.data.gov.uk/doc/local-authority/00CC,BarnsleyMBC,19/10/2022,5200077319,825.65,REED SPECIALIST RECRUITMENT LTD,502689,BH,Basic pay - Agency Fees,104001
http://statistics.data.gov.uk/doc/local-authority/00CC,BarnsleyMBC,19/10/2022,5200077318,660.03,REED SPECIALIST RECRUITMENT LTD,502689,BH,Basic pay - Agency Fees,104001
http://statistics.data.gov.uk/doc/local-authority/00CC,BarnsleyMBC,19/10/2022,5200077317,838.97,REED SPECIALIST RECRUITMENT LTD,502689,BH,Basic pay - Agency Fees,104001
http://statistics.data.gov.uk/doc/local-authority/00CC,BarnsleyMBC,19/10/2022,5200077316,825.65,REED SPECIALIST RECRUITMENT LTD,502689,BH,Basic pay - Agency Fees,104001
http://statistics.data.gov.uk/doc/local-authority/00CC,BarnsleyMBC,19/10/2022,5200077315,806.31,REED SPECIALIST RECRUITMENT LTD,502689,BH,Basic pay - Agency Fees,104001
http://statistics.data.gov.uk/doc/local-authority/00CC,BarnsleyMBC,19/10/2022,5200077314,520.4,REED SPECIALIST RECRUITMENT LTD,502689,BH,Basic pay - Agency Fees,104001
http://statistics.data.gov.uk/doc/local-authority/00CC,BarnsleyMBC,19/10/2022,5200077313,889.33,REED SPECIALIST RECRUITMENT LTD,502689,BH,Basic pay - Agency Fees,104001
http://statistics.data.gov.uk/doc/local-authority/00CC,BarnsleyMBC,19/10/2022,5200077182,838.97,REED SPECIALIST RECRUITMENT LTD,502689,BH,Basic pay - Agency Fees,104001
http://statistics.data.gov.uk/doc/local-authority/00CC,BarnsleyMBC,19/10/2022,5200077181,725.61,REED SPECIALIST RECRUITMENT LTD,502689,BH,Basic pay - Agency Fees,104001
http://statistics.data.gov.uk/doc/local-authority/00CC,BarnsleyMBC,19/10/2022,5200077180,879.84,REED SPECIALIST RECRUITMENT LTD,502689,BH,Basic pay - Agency Fees,104001
http://statistics.data.gov.uk/doc/local-authority/00CC,BarnsleyMBC,19/10/2022,5200077179,617.22,REED SPECIALIST RECRUITMENT LTD,502689,BH,Basic pay - Agency Fees,104001
http://statistics.data.gov.uk/doc/local-authority/00CC,BarnsleyMBC,19/10/2022,5200077178,635.15,REED SPECIALIST RECRUITMENT LTD,502689,BH,Basic pay - Agency Fees,104001
http://statistics.data.gov.uk/doc/local-authority/00CC,BarnsleyMBC,19/10/2022,5200077177,825.65,REED SPECIALIST RECRUITMENT LTD,502689,BH,Basic pay - Agency Fees,104001
http://statistics.data.gov.uk/doc/local-authority/00CC,BarnsleyMBC,19/10/2022,5200077176,747.62,REED SPECIALIST RECRUITMENT LTD,502689,BH,Basic pay - Agency Fees,104001
http://statistics.data.gov.uk/doc/local-authority/00CC,BarnsleyMBC,19/10/2022,5200077175,747.62,REED SPECIALIST RECRUITMENT LTD,502689,BH,Basic pay - Agency Fees,104001
http://statistics.data.gov.uk/doc/local-authority/00CC,BarnsleyMBC,19/10/2022,5200077327,617.22,REED SPECIALIST RECRUITMENT LTD,502689,BH,Basic pay - Agency Fees,104001
http://statistics.data.gov.uk/doc/local-authority/00CC,BarnsleyMBC,19/10/2022,5200077328,865.03,REED SPECIALIST RECRUITMENT LTD,502689,BH,Basic pay - Agency Fees,104001
http://statistics.data.gov.uk/doc/local-authority/00CC,BarnsleyMBC,19/10/2022,5200077330,889.33,REED SPECIALIST RECRUITMENT LTD,502689,BH,Basic pay - Agency Fees,104001
http://statistics.data.gov.uk/doc/local-authority/00CC,BarnsleyMBC,19/10/2022,5200077331,503.55,REED SPECIALIST RECRUITMENT LTD,502689,BH,Basic pay - Agency Fees,104001
http://statistics.data.gov.uk/doc/local-authority/00CC,BarnsleyMBC,19/10/2022,5200077332,642.46,REED SPECIALIST RECRUITMENT LTD,502689,BH,Basic pay - Agency Fees,104001
http://statistics.data.gov.uk/doc/local-authority/00CC,BarnsleyMBC,19/10/2022,5200077333,642.46,REED SPECIALIST RECRUITMENT LTD,502689,BH,Basic pay - Agency Fees,104001
http://statistics.data.gov.uk/doc/local-authority/00CC,BarnsleyMBC,19/10/2022,5200077334,520.4,REED SPECIALIST RECRUITMENT LTD,502689,BH,Basic pay - Agency Fees,104001
http://statistics.data.gov.uk/doc/local-authority/00CC,BarnsleyMBC,19/10/2022,5200077335,806.31,REED SPECIALIST RECRUITMENT LTD,502689,BH,Basic pay - Agency Fees,104001
http://statistics.data.gov.uk/doc/local-authority/00CC,BarnsleyMBC,19/10/2022,5200077336,825.65,REED SPECIALIST RECRUITMENT LTD,502689,BH,Basic pay - Agency Fees,104001
http://statistics.data.gov.uk/doc/local-authority/00CC,BarnsleyMBC,19/10/2022,5200077337,838.97,REED SPECIALIST RECRUITMENT LTD,502689,BH,Basic pay - Agency Fees,104001
http://statistics.data.gov.uk/doc/local-authority/00CC,BarnsleyMBC,19/10/2022,5200077338,854.83,REED SPECIALIST RECRUITMENT LTD,502689,BH,Basic pay - Agency Fees,104001
http://statistics.data.gov.uk/doc/local-authority/00CC,BarnsleyMBC,19/10/2022,5200077339,660.03,REED SPECIALIST RECRUITMENT LTD,502689,BH,Basic pay - Agency Fees,104001
http://statistics.data.gov.uk/doc/local-authority/00CC,BarnsleyMBC,19/10/2022,5200077340,825.65,REED SPECIALIST RECRUITMENT LTD,502689,BH,Basic pay - Agency Fees,104001
http://statistics.data.gov.uk/doc/local-authority/00CC,BarnsleyMBC,19/10/2022,5200077341,806.31,REED SPECIALIST RECRUITMENT LTD,502689,BH,Basic pay - Agency Fees,104001
http://statistics.data.gov.uk/doc/local-authority/00CC,BarnsleyMBC,19/10/2022,5200077342,806.31,REED SPECIALIST RECRUITMENT LTD,502689,BH,Basic pay - Agency Fees,104001
http://statistics.data.gov.uk/doc/local-authority/00CC,BarnsleyMBC,19/10/2022,5200077343,747.62,REED SPECIALIST RECRUITMENT LTD,502689,BH,Basic pay - Agency Fees,104001
http://statistics.data.gov.uk/doc/local-authority/00CC,BarnsleyMBC,19/10/2022,5200077326,502.1,REED SPECIALIST RECRUITMENT LTD,502689,BH,Basic pay - Agency Fees,104001
http://statistics.data.gov.uk/doc/local-authority/00CC,BarnsleyMBC,19/10/2022,5200077325,515,REED SPECIALIST RECRUITMENT LTD,502689,BH,Basic pay - Agency Fees,104001
http://statistics.data.gov.uk/doc/local-authority/00CC,BarnsleyMBC,19/10/2022,5200077324,"1,660.02",REED SPECIALIST RECRUITMENT LTD,502689,BH,Basic pay - Agency Fees,104001
http://statistics.data.gov.uk/doc/local-authority/00CC,BarnsleyMBC,19/10/2022,5200077323,635.15,REED SPECIALIST RECRUITMENT LTD,502689,BH,Basic pay - Agency Fees,104001
http://statistics.data.gov.uk/doc/local-authority/00CC,BarnsleyMBC,19/10/2022,5200077322,"1,482.78",REED SPECIALIST RECRUITMENT LTD,502689,BH,Basic pay - Agency Fees,104001
http://statistics.data.gov.uk/doc/local-authority/00CC,BarnsleyMBC,19/10/2022,5200077172,635.15,REED SPECIALIST RECRUITMENT LTD,502689,BH,Basic pay - Agency Fees,104001
http://statistics.data.gov.uk/doc/local-authority/00CC,BarnsleyMBC,19/10/2022,5200077173,"1,552.67",REED SPECIALIST RECRUITMENT LTD,502689,BH,Basic pay - Agency Fees,104001
http://statistics.data.gov.uk/doc/local-authority/00CC,BarnsleyMBC,19/10/2022,5200077174,532.17,REED SPECIALIST RECRUITMENT LTD,502689,BH,Basic pay - Agency Fees,104001
http://statistics.data.gov.uk/doc/local-authority/00CC,BarnsleyMBC,26/10/2022,5200077366,504.58,REED SPECIALIST RECRUITMENT LTD,502689,BH,Basic pay - Agency Fees,104001
http://statistics.data.gov.uk/doc/local-authority/00CC,BarnsleyMBC,26/10/2022,5200077365,838.97,REED SPECIALIST RECRUITMENT LTD,502689,BH,Basic pay - Agency Fees,104001
http://statistics.data.gov.uk/doc/local-authority/00CC,BarnsleyMBC,26/10/2022,5200077364,825.65,REED SPECIALIST RECRUITMENT LTD,502689,BH,Basic pay - Agency Fees,104001
http://statistics.data.gov.uk/doc/local-authority/00CC,BarnsleyMBC,26/10/2022,5200077363,806.31,REED SPECIALIST RECRUITMENT LTD,502689,BH,Basic pay - Agency Fees,104001
http://statistics.data.gov.uk/doc/local-authority/00CC,BarnsleyMBC,26/10/2022,5200077362,520.4,REED SPECIALIST RECRUITMENT LTD,502689,BH,Basic pay - Agency Fees,104001
http://statistics.data.gov.uk/doc/local-authority/00CC,BarnsleyMBC,26/10/2022,5200077361,889.33,REED SPECIALIST RECRUITMENT LTD,502689,BH,Basic pay - Agency Fees,104001
http://statistics.data.gov.uk/doc/local-authority/00CC,BarnsleyMBC,26/10/2022,5200077383,838.97,REED SPECIALIST RECRUITMENT LTD,502689,BH,Basic pay - Agency Fees,104001
http://statistics.data.gov.uk/doc/local-authority/00CC,BarnsleyMBC,26/10/2022,5200077380,879.84,REED SPECIALIST RECRUITMENT LTD,502689,BH,Basic pay - Agency Fees,104001
http://statistics.data.gov.uk/doc/local-authority/00CC,BarnsleyMBC,26/10/2022,5200077379,829.47,REED SPECIALIST RECRUITMENT LTD,502689,BH,Basic pay - Agency Fees,104001
http://statistics.data.gov.uk/doc/local-authority/00CC,BarnsleyMBC,26/10/2022,5200077381,806.31,REED SPECIALIST RECRUITMENT LTD,502689,BH,Basic pay - Agency Fees,104001
http://statistics.data.gov.uk/doc/local-authority/00CC,BarnsleyMBC,26/10/2022,5200077378,617.22,REED SPECIALIST RECRUITMENT LTD,502689,BH,Basic pay - Agency Fees,104001
http://statistics.data.gov.uk/doc/local-authority/00CC,BarnsleyMBC,26/10/2022,5200077377,515,REED SPECIALIST RECRUITMENT LTD,502689,BH,Basic pay - Agency Fees,104001
http://statistics.data.gov.uk/doc/local-authority/00CC,BarnsleyMBC,26/10/2022,5200077376,635.98,REED SPECIALIST RECRUITMENT LTD,502689,BH,Basic pay - Agency Fees,104001
http://statistics.data.gov.uk/doc/local-authority/00CC,BarnsleyMBC,26/10/2022,5200077375,"1,660.02",REED SPECIALIST RECRUITMENT LTD,502689,BH,Basic pay - Agency Fees,104001
http://statistics.data.gov.uk/doc/local-authority/00CC,BarnsleyMBC,26/10/2022,5200077368,825.65,REED SPECIALIST RECRUITMENT LTD,502689,BH,Basic pay - Agency Fees,104001
http://statistics.data.gov.uk/doc/local-authority/00CC,BarnsleyMBC,26/10/2022,5200077369,806.31,REED SPECIALIST RECRUITMENT LTD,502689,BH,Basic pay - Agency Fees,104001
http://statistics.data.gov.uk/doc/local-authority/00CC,BarnsleyMBC,26/10/2022,5200077370,642.87,REED SPECIALIST RECRUITMENT LTD,502689,BH,Basic pay - Agency Fees,104001
http://statistics.data.gov.uk/doc/local-authority/00CC,BarnsleyMBC,26/10/2022,5200077371,606.2,REED SPECIALIST RECRUITMENT LTD,502689,BH,Basic pay - Agency Fees,104001
http://statistics.data.gov.uk/doc/local-authority/00CC,BarnsleyMBC,26/10/2022,5200077373,502.1,REED SPECIALIST RECRUITMENT LTD,502689,BH,Basic pay - Agency Fees,104001
http://statistics.data.gov.uk/doc/local-authority/00CC,BarnsleyMBC,26/10/2022,5200077374,635.15,REED SPECIALIST RECRUITMENT LTD,502689,BH,Basic pay - Agency Fees,104001
http://statistics.data.gov.uk/doc/local-authority/00CC,BarnsleyMBC,26/10/2022,5200077372,502.1,REED SPECIALIST RECRUITMENT LTD,502689,BH,Basic pay - Agency Fees,104001
http://statistics.data.gov.uk/doc/local-authority/00CC,BarnsleyMBC,07/11/2022,5200077446,806.31,REED SPECIALIST RECRUITMENT LTD,502689,BH,Basic pay - Agency Fees,104001
http://statistics.data.gov.uk/doc/local-authority/00CC,BarnsleyMBC,07/11/2022,5200077461,635.15,REED SPECIALIST RECRUITMENT LTD,502689,BH,Basic pay - Agency Fees,104001
http://statistics.data.gov.uk/doc/local-authority/00CC,BarnsleyMBC,07/11/2022,5200077463,829.47,REED SPECIALIST RECRUITMENT LTD,502689,BH,Basic pay - Agency Fees,104001
http://statistics.data.gov.uk/doc/local-authority/00CC,BarnsleyMBC,07/11/2022,5200077448,838.97,REED SPECIALIST RECRUITMENT LTD,502689,BH,Basic pay - Agency Fees,104001
http://statistics.data.gov.uk/doc/local-authority/00CC,BarnsleyMBC,07/11/2022,5200077460,825.65,REED SPECIALIST RECRUITMENT LTD,502689,BH,Basic pay - Agency Fees,104001
http://statistics.data.gov.uk/doc/local-authority/00CC,BarnsleyMBC,07/11/2022,5200077464,865.03,REED SPECIALIST RECRUITMENT LTD,502689,BH,Basic pay - Agency Fees,104001
http://statistics.data.gov.uk/doc/local-authority/00CC,BarnsleyMBC,07/11/2022,5200077459,747.62,REED SPECIALIST RECRUITMENT LTD,502689,BH,Basic pay - Agency Fees,104001
http://statistics.data.gov.uk/doc/local-authority/00CC,BarnsleyMBC,07/11/2022,5200077451,825.65,REED SPECIALIST RECRUITMENT LTD,502689,BH,Basic pay - Agency Fees,104001
http://statistics.data.gov.uk/doc/local-authority/00CC,BarnsleyMBC,07/11/2022,5200077465,806.31,REED SPECIALIST RECRUITMENT LTD,502689,BH,Basic pay - Agency Fees,104001
http://statistics.data.gov.uk/doc/local-authority/00CC,BarnsleyMBC,07/11/2022,5200077452,806.31,REED SPECIALIST RECRUITMENT LTD,502689,BH,Basic pay - Agency Fees,104001
http://statistics.data.gov.uk/doc/local-authority/00CC,BarnsleyMBC,07/11/2022,5200077458,515,REED SPECIALIST RECRUITMENT LTD,502689,BH,Basic pay - Agency Fees,104001
http://statistics.data.gov.uk/doc/local-authority/00CC,BarnsleyMBC,07/11/2022,5200077457,"1,660.02",REED SPECIALIST RECRUITMENT LTD,502689,BH,Basic pay - Agency Fees,104001
http://statistics.data.gov.uk/doc/local-authority/00CC,BarnsleyMBC,07/11/2022,5200077456,635.15,REED SPECIALIST RECRUITMENT LTD,502689,BH,Basic pay - Agency Fees,104001
http://statistics.data.gov.uk/doc/local-authority/00CC,BarnsleyMBC,07/11/2022,5200077447,725.26,REED SPECIALIST RECRUITMENT LTD,502689,BH,Basic pay - Agency Fees,104001
http://statistics.data.gov.uk/doc/local-authority/00CC,BarnsleyMBC,07/11/2022,5200077444,889.33,REED SPECIALIST RECRUITMENT LTD,502689,BH,Basic pay - Agency Fees,104001
http://statistics.data.gov.uk/doc/local-authority/00CC,BarnsleyMBC,07/11/2022,5200077453,806.31,REED SPECIALIST RECRUITMENT LTD,502689,BH,Basic pay - Agency Fees,104001
http://statistics.data.gov.uk/doc/local-authority/00CC,BarnsleyMBC,07/11/2022,5200077454,747.62,REED SPECIALIST RECRUITMENT LTD,502689,BH,Basic pay - Agency Fees,104001
http://statistics.data.gov.uk/doc/local-authority/00CC,BarnsleyMBC,07/11/2022,5200077455,"1,482.78",REED SPECIALIST RECRUITMENT LTD,502689,BH,Basic pay - Agency Fees,104001
http://statistics.data.gov.uk/doc/local-authority/00CC,BarnsleyMBC,07/11/2022,5200077445,520.4,REED SPECIALIST RECRUITMENT LTD,502689,BH,Basic pay - Agency Fees,104001
http://statistics.data.gov.uk/doc/local-authority/00CC,BarnsleyMBC,21/11/2022,5200077499,747.62,REED SPECIALIST RECRUITMENT LTD,502689,BH,Basic pay - Agency Fees,104001
http://statistics.data.gov.uk/doc/local-authority/00CC,BarnsleyMBC,21/11/2022,5200077506,838.97,REED SPECIALIST RECRUITMENT LTD,502689,BH,Basic pay - Agency Fees,104001
http://statistics.data.gov.uk/doc/local-authority/00CC,BarnsleyMBC,21/11/2022,5200077498,747.62,REED SPECIALIST RECRUITMENT LTD,502689,BH,Basic pay - Agency Fees,104001
http://statistics.data.gov.uk/doc/local-authority/00CC,BarnsleyMBC,21/11/2022,5200077500,725.26,REED SPECIALIST RECRUITMENT LTD,502689,BH,Basic pay - Agency Fees,104001
http://statistics.data.gov.uk/doc/local-authority/00CC,BarnsleyMBC,21/11/2022,5200077501,635.15,REED SPECIALIST RECRUITMENT LTD,502689,BH,Basic pay - Agency Fees,104001
http://statistics.data.gov.uk/doc/local-authority/00CC,BarnsleyMBC,21/11/2022,5200077502,617.22,REED SPECIALIST RECRUITMENT LTD,502689,BH,Basic pay - Agency Fees,104001
http://statistics.data.gov.uk/doc/local-authority/00CC,BarnsleyMBC,21/11/2022,5200077503,829.47,REED SPECIALIST RECRUITMENT LTD,502689,BH,Basic pay - Agency Fees,104001
http://statistics.data.gov.uk/doc/local-authority/00CC,BarnsleyMBC,21/11/2022,5200077504,872.44,REED SPECIALIST RECRUITMENT LTD,502689,BH,Basic pay - Agency Fees,104001
http://statistics.data.gov.uk/doc/local-authority/00CC,BarnsleyMBC,21/11/2022,5200077505,829.47,REED SPECIALIST RECRUITMENT LTD,502689,BH,Basic pay - Agency Fees,104001
http://statistics.data.gov.uk/doc/local-authority/00CC,BarnsleyMBC,21/11/2022,5200077487,902.03,REED SPECIALIST RECRUITMENT LTD,502689,BH,Basic pay - Agency Fees,104001
http://statistics.data.gov.uk/doc/local-authority/00CC,BarnsleyMBC,21/11/2022,5200077486,838.97,REED SPECIALIST RECRUITMENT LTD,502689,BH,Basic pay - Agency Fees,104001
http://statistics.data.gov.uk/doc/local-authority/00CC,BarnsleyMBC,21/11/2022,5200077485,825.65,REED SPECIALIST RECRUITMENT LTD,502689,BH,Basic pay - Agency Fees,104001
http://statistics.data.gov.uk/doc/local-authority/00CC,BarnsleyMBC,21/11/2022,5200077483,520.4,REED SPECIALIST RECRUITMENT LTD,502689,BH,Basic pay - Agency Fees,104001
http://statistics.data.gov.uk/doc/local-authority/00CC,BarnsleyMBC,21/11/2022,5200077481,889.33,REED SPECIALIST RECRUITMENT LTD,502689,BH,Basic pay - Agency Fees,104001
http://statistics.data.gov.uk/doc/local-authority/00CC,BarnsleyMBC,21/11/2022,5200077488,526.29,REED SPECIALIST RECRUITMENT LTD,502689,BH,Basic pay - Agency Fees,104001
http://statistics.data.gov.uk/doc/local-authority/00CC,BarnsleyMBC,21/11/2022,5200077489,825.65,REED SPECIALIST RECRUITMENT LTD,502689,BH,Basic pay - Agency Fees,104001
http://statistics.data.gov.uk/doc/local-authority/00CC,BarnsleyMBC,21/11/2022,5200077490,806.31,REED SPECIALIST RECRUITMENT LTD,502689,BH,Basic pay - Agency Fees,104001
http://statistics.data.gov.uk/doc/local-authority/00CC,BarnsleyMBC,21/11/2022,5200077491,829.47,REED SPECIALIST RECRUITMENT LTD,502689,BH,Basic pay - Agency Fees,104001
http://statistics.data.gov.uk/doc/local-authority/00CC,BarnsleyMBC,21/11/2022,5200077497,747.62,REED SPECIALIST RECRUITMENT LTD,502689,BH,Basic pay - Agency Fees,104001
http://statistics.data.gov.uk/doc/local-authority/00CC,BarnsleyMBC,21/11/2022,5200077496,515,REED SPECIALIST RECRUITMENT LTD,502689,BH,Basic pay - Agency Fees,104001
http://statistics.data.gov.uk/doc/local-authority/00CC,BarnsleyMBC,21/11/2022,5200077495,"1,660.02",REED SPECIALIST RECRUITMENT LTD,502689,BH,Basic pay - Agency Fees,104001
http://statistics.data.gov.uk/doc/local-authority/00CC,BarnsleyMBC,21/11/2022,5200077494,635.15,REED SPECIALIST RECRUITMENT LTD,502689,BH,Basic pay - Agency Fees,104001
http://statistics.data.gov.uk/doc/local-authority/00CC,BarnsleyMBC,21/11/2022,5200077493,"1,179.00",REED SPECIALIST RECRUITMENT LTD,502689,BH,Basic pay - Agency Fees,104001
http://statistics.data.gov.uk/doc/local-authority/00CC,BarnsleyMBC,21/11/2022,5200077492,747.62,REED SPECIALIST RECRUITMENT LTD,502689,BH,Basic pay - Agency Fees,104001
http://statistics.data.gov.uk/doc/local-authority/00CC,BarnsleyMBC,22/11/2022,5200077573,838.97,REED SPECIALIST RECRUITMENT LTD,502689,BH,Basic pay - Agency Fees,104001
http://statistics.data.gov.uk/doc/local-authority/00CC,BarnsleyMBC,22/11/2022,5200077566,"1,660.02",REED SPECIALIST RECRUITMENT LTD,502689,BH,Basic pay - Agency Fees,104001
http://statistics.data.gov.uk/doc/local-authority/00CC,BarnsleyMBC,22/11/2022,5200077565,515,REED SPECIALIST RECRUITMENT LTD,502689,BH,Basic pay - Agency Fees,104001
http://statistics.data.gov.uk/doc/local-authority/00CC,BarnsleyMBC,22/11/2022,5200077564,"1,475.08",REED SPECIALIST RECRUITMENT LTD,502689,BH,Basic pay - Agency Fees,104001
http://statistics.data.gov.uk/doc/local-authority/00CC,BarnsleyMBC,22/11/2022,5200077563,502.1,REED SPECIALIST RECRUITMENT LTD,502689,BH,Basic pay - Agency Fees,104001
http://statistics.data.gov.uk/doc/local-authority/00CC,BarnsleyMBC,22/11/2022,5200077562,502.1,REED SPECIALIST RECRUITMENT LTD,502689,BH,Basic pay - Agency Fees,104001
http://statistics.data.gov.uk/doc/local-authority/00CC,BarnsleyMBC,22/11/2022,5200077561,502.1,REED SPECIALIST RECRUITMENT LTD,502689,BH,Basic pay - Agency Fees,104001
http://statistics.data.gov.uk/doc/local-authority/00CC,BarnsleyMBC,22/11/2022,5200077560,747.62,REED SPECIALIST RECRUITMENT LTD,502689,BH,Basic pay - Agency Fees,104001
http://statistics.data.gov.uk/doc/local-authority/00CC,BarnsleyMBC,22/11/2022,5200077559,829.47,REED SPECIALIST RECRUITMENT LTD,502689,BH,Basic pay - Agency Fees,104001
http://statistics.data.gov.uk/doc/local-authority/00CC,BarnsleyMBC,22/11/2022,5200077558,829.47,REED SPECIALIST RECRUITMENT LTD,502689,BH,Basic pay - Agency Fees,104001
http://statistics.data.gov.uk/doc/local-authority/00CC,BarnsleyMBC,22/11/2022,5200077557,825.65,REED SPECIALIST RECRUITMENT LTD,502689,BH,Basic pay - Agency Fees,104001
http://statistics.data.gov.uk/doc/local-authority/00CC,BarnsleyMBC,22/11/2022,5200077556,660.03,REED SPECIALIST RECRUITMENT LTD,502689,BH,Basic pay - Agency Fees,104001
http://statistics.data.gov.uk/doc/local-authority/00CC,BarnsleyMBC,22/11/2022,5200077555,894.63,REED SPECIALIST RECRUITMENT LTD,502689,BH,Basic pay - Agency Fees,104001
http://statistics.data.gov.uk/doc/local-authority/00CC,BarnsleyMBC,22/11/2022,5200077554,838.97,REED SPECIALIST RECRUITMENT LTD,502689,BH,Basic pay - Agency Fees,104001
http://statistics.data.gov.uk/doc/local-authority/00CC,BarnsleyMBC,22/11/2022,5200077553,825.65,REED SPECIALIST RECRUITMENT LTD,502689,BH,Basic pay - Agency Fees,104001
http://statistics.data.gov.uk/doc/local-authority/00CC,BarnsleyMBC,22/11/2022,5200077552,661.34,REED SPECIALIST RECRUITMENT LTD,502689,BH,Basic pay - Agency Fees,104001
http://statistics.data.gov.uk/doc/local-authority/00CC,BarnsleyMBC,22/11/2022,5200077551,520.4,REED SPECIALIST RECRUITMENT LTD,502689,BH,Basic pay - Agency Fees,104001
http://statistics.data.gov.uk/doc/local-authority/00CC,BarnsleyMBC,22/11/2022,5200077550,764.05,REED SPECIALIST RECRUITMENT LTD,502689,BH,Basic pay - Agency Fees,104001
http://statistics.data.gov.uk/doc/local-authority/00CC,BarnsleyMBC,22/11/2022,5200077549,889.33,REED SPECIALIST RECRUITMENT LTD,502689,BH,Basic pay - Agency Fees,104001
http://statistics.data.gov.uk/doc/local-authority/00CC,BarnsleyMBC,22/11/2022,5200077569,635.15,REED SPECIALIST RECRUITMENT LTD,502689,BH,Basic pay - Agency Fees,104001
http://statistics.data.gov.uk/doc/local-authority/00CC,BarnsleyMBC,22/11/2022,5200077570,829.47,REED SPECIALIST RECRUITMENT LTD,502689,BH,Basic pay - Agency Fees,104001
http://statistics.data.gov.uk/doc/local-authority/00CC,BarnsleyMBC,22/11/2022,5200077571,909.41,REED SPECIALIST RECRUITMENT LTD,502689,BH,Basic pay - Agency Fees,104001
http://statistics.data.gov.uk/doc/local-authority/00CC,BarnsleyMBC,22/11/2022,5200077572,829.47,REED SPECIALIST RECRUITMENT LTD,502689,BH,Basic pay - Agency Fees,104001
http://statistics.data.gov.uk/doc/local-authority/00CC,BarnsleyMBC,22/11/2022,5200077567,825.65,REED SPECIALIST RECRUITMENT LTD,502689,BH,Basic pay - Agency Fees,104001
http://statistics.data.gov.uk/doc/local-authority/00CC,BarnsleyMBC,22/11/2022,5200077568,635.15,REED SPECIALIST RECRUITMENT LTD,502689,BH,Basic pay - Agency Fees,104001
http://statistics.data.gov.uk/doc/local-authority/00CC,BarnsleyMBC,28/11/2022,5200077616,924.23,REED SPECIALIST RECRUITMENT LTD,502689,BH,Basic pay - Agency Fees,104001
http://statistics.data.gov.uk/doc/local-authority/00CC,BarnsleyMBC,28/11/2022,5200077588,889.33,REED SPECIALIST RECRUITMENT LTD,502689,BH,Basic pay - Agency Fees,104001
http://statistics.data.gov.uk/doc/local-authority/00CC,BarnsleyMBC,28/11/2022,5200077589,764.05,REED SPECIALIST RECRUITMENT LTD,502689,BH,Basic pay - Agency Fees,104001
http://statistics.data.gov.uk/doc/local-authority/00CC,BarnsleyMBC,28/11/2022,5200077602,747.62,REED SPECIALIST RECRUITMENT LTD,502689,BH,Basic pay - Agency Fees,104001
http://statistics.data.gov.uk/doc/local-authority/00CC,BarnsleyMBC,28/11/2022,5200077607,515,REED SPECIALIST RECRUITMENT LTD,502689,BH,Basic pay - Agency Fees,104001
http://statistics.data.gov.uk/doc/local-authority/00CC,BarnsleyMBC,28/11/2022,5200077615,829.47,REED SPECIALIST RECRUITMENT LTD,502689,BH,Basic pay - Agency Fees,104001
http://statistics.data.gov.uk/doc/local-authority/00CC,BarnsleyMBC,28/11/2022,5200077606,515,REED SPECIALIST RECRUITMENT LTD,502689,BH,Basic pay - Agency Fees,104001
http://statistics.data.gov.uk/doc/local-authority/00CC,BarnsleyMBC,28/11/2022,5200077598,825.65,REED SPECIALIST RECRUITMENT LTD,502689,BH,Basic pay - Agency Fees,104001
http://statistics.data.gov.uk/doc/local-authority/00CC,BarnsleyMBC,28/11/2022,5200077614,635.15,REED SPECIALIST RECRUITMENT LTD,502689,BH,Basic pay - Agency Fees,104001
http://statistics.data.gov.uk/doc/local-authority/00CC,BarnsleyMBC,28/11/2022,5200077617,829.47,REED SPECIALIST RECRUITMENT LTD,502689,BH,Basic pay - Agency Fees,104001
http://statistics.data.gov.uk/doc/local-authority/00CC,BarnsleyMBC,28/11/2022,5200077599,540.31,REED SPECIALIST RECRUITMENT LTD,502689,BH,Basic pay - Agency Fees,104001
http://statistics.data.gov.uk/doc/local-authority/00CC,BarnsleyMBC,28/11/2022,5200077618,793.63,REED SPECIALIST RECRUITMENT LTD,502689,BH,Basic pay - Agency Fees,104001
http://statistics.data.gov.uk/doc/local-authority/00CC,BarnsleyMBC,28/11/2022,5200077608,747.62,REED SPECIALIST RECRUITMENT LTD,502689,BH,Basic pay - Agency Fees,104001
http://statistics.data.gov.uk/doc/local-authority/00CC,BarnsleyMBC,28/11/2022,5200077609,596.08,REED SPECIALIST RECRUITMENT LTD,502689,BH,Basic pay - Agency Fees,104001
http://statistics.data.gov.uk/doc/local-authority/00CC,BarnsleyMBC,28/11/2022,5200077601,829.47,REED SPECIALIST RECRUITMENT LTD,502689,BH,Basic pay - Agency Fees,104001
http://statistics.data.gov.uk/doc/local-authority/00CC,BarnsleyMBC,28/11/2022,5200077610,747.62,REED SPECIALIST RECRUITMENT LTD,502689,BH,Basic pay - Agency Fees,104001
http://statistics.data.gov.uk/doc/local-authority/00CC,BarnsleyMBC,28/11/2022,5200077611,825.65,REED SPECIALIST RECRUITMENT LTD,502689,BH,Basic pay - Agency Fees,104001
http://statistics.data.gov.uk/doc/local-authority/00CC,BarnsleyMBC,28/11/2022,5200077612,833.31,REED SPECIALIST RECRUITMENT LTD,502689,BH,Basic pay - Agency Fees,104001
http://statistics.data.gov.uk/doc/local-authority/00CC,BarnsleyMBC,28/11/2022,5200077613,635.15,REED SPECIALIST RECRUITMENT LTD,502689,BH,Basic pay - Agency Fees,104001
http://statistics.data.gov.uk/doc/local-authority/00CC,BarnsleyMBC,28/11/2022,5200077600,"1,034.04",REED SPECIALIST RECRUITMENT LTD,502689,BH,Basic pay - Agency Fees,104001
http://statistics.data.gov.uk/doc/local-authority/00CC,BarnsleyMBC,28/11/2022,5200077592,825.65,REED SPECIALIST RECRUITMENT LTD,502689,BH,Basic pay - Agency Fees,104001
http://statistics.data.gov.uk/doc/local-authority/00CC,BarnsleyMBC,28/11/2022,5200077591,"1,062.16",REED SPECIALIST RECRUITMENT LTD,502689,BH,Basic pay - Agency Fees,104001
http://statistics.data.gov.uk/doc/local-authority/00CC,BarnsleyMBC,28/11/2022,5200077590,520.4,REED SPECIALIST RECRUITMENT LTD,502689,BH,Basic pay - Agency Fees,104001
http://statistics.data.gov.uk/doc/local-authority/00CC,BarnsleyMBC,28/11/2022,5200077593,618.11,REED SPECIALIST RECRUITMENT LTD,502689,BH,Basic pay - Agency Fees,104001
http://statistics.data.gov.uk/doc/local-authority/00CC,BarnsleyMBC,28/11/2022,5200077594,618.11,REED SPECIALIST RECRUITMENT LTD,502689,BH,Basic pay - Agency Fees,104001
http://statistics.data.gov.uk/doc/local-authority/00CC,BarnsleyMBC,28/11/2022,5200077603,"1,595.94",REED SPECIALIST RECRUITMENT LTD,502689,BH,Basic pay - Agency Fees,104001
http://statistics.data.gov.uk/doc/local-authority/00CC,BarnsleyMBC,28/11/2022,5200077604,635.15,REED SPECIALIST RECRUITMENT LTD,502689,BH,Basic pay - Agency Fees,104001
http://statistics.data.gov.uk/doc/local-authority/00CC,BarnsleyMBC,28/11/2022,5200077595,838.97,REED SPECIALIST RECRUITMENT LTD,502689,BH,Basic pay - Agency Fees,104001
http://statistics.data.gov.uk/doc/local-authority/00CC,BarnsleyMBC,28/11/2022,5200077605,"1,307.36",REED SPECIALIST RECRUITMENT LTD,502689,BH,Basic pay - Agency Fees,104001
http://statistics.data.gov.uk/doc/local-authority/00CC,BarnsleyMBC,28/11/2022,5200077596,924.23,REED SPECIALIST RECRUITMENT LTD,502689,BH,Basic pay - Agency Fees,104001
http://statistics.data.gov.uk/doc/local-authority/00CC,BarnsleyMBC,28/11/2022,5200077597,526.29,REED SPECIALIST RECRUITMENT LTD,502689,BH,Basic pay - Agency Fees,104001
http://statistics.data.gov.uk/doc/local-authority/00CC,BarnsleyMBC,05/12/2022,5200078803,894.63,REED SPECIALIST RECRUITMENT LTD,502689,BH,Basic pay - Agency Fees,104001
http://statistics.data.gov.uk/doc/local-authority/00CC,BarnsleyMBC,05/12/2022,5200078777,721.08,REED SPECIALIST RECRUITMENT LTD,502689,BH,Basic pay - Agency Fees,104001
http://statistics.data.gov.uk/doc/local-authority/00CC,BarnsleyMBC,05/12/2022,5200078778,520.4,REED SPECIALIST RECRUITMENT LTD,502689,BH,Basic pay - Agency Fees,104001
http://statistics.data.gov.uk/doc/local-authority/00CC,BarnsleyMBC,05/12/2022,5200078794,635.15,REED SPECIALIST RECRUITMENT LTD,502689,BH,Basic pay - Agency Fees,104001
http://statistics.data.gov.uk/doc/local-authority/00CC,BarnsleyMBC,05/12/2022,5200078779,841.3,REED SPECIALIST RECRUITMENT LTD,502689,BH,Basic pay - Agency Fees,104001
http://statistics.data.gov.uk/doc/local-authority/00CC,BarnsleyMBC,05/12/2022,5200078780,825.65,REED SPECIALIST RECRUITMENT LTD,502689,BH,Basic pay - Agency Fees,104001
http://statistics.data.gov.uk/doc/local-authority/00CC,BarnsleyMBC,05/12/2022,5200078781,618.11,REED SPECIALIST RECRUITMENT LTD,502689,BH,Basic pay - Agency Fees,104001
http://statistics.data.gov.uk/doc/local-authority/00CC,BarnsleyMBC,05/12/2022,5200078782,838.97,REED SPECIALIST RECRUITMENT LTD,502689,BH,Basic pay - Agency Fees,104001
http://statistics.data.gov.uk/doc/local-authority/00CC,BarnsleyMBC,05/12/2022,5200078783,894.63,REED SPECIALIST RECRUITMENT LTD,502689,BH,Basic pay - Agency Fees,104001
http://statistics.data.gov.uk/doc/local-authority/00CC,BarnsleyMBC,05/12/2022,5200078785,692.57,REED SPECIALIST RECRUITMENT LTD,502689,BH,Basic pay - Agency Fees,104001
http://statistics.data.gov.uk/doc/local-authority/00CC,BarnsleyMBC,05/12/2022,5200078793,"1,481.42",REED SPECIALIST RECRUITMENT LTD,502689,BH,Basic pay - Agency Fees,104001
http://statistics.data.gov.uk/doc/local-authority/00CC,BarnsleyMBC,05/12/2022,5200078792,502.1,REED SPECIALIST RECRUITMENT LTD,502689,BH,Basic pay - Agency Fees,104001
http://statistics.data.gov.uk/doc/local-authority/00CC,BarnsleyMBC,05/12/2022,5200078786,855,REED SPECIALIST RECRUITMENT LTD,502689,BH,Basic pay - Agency Fees,104001
http://statistics.data.gov.uk/doc/local-authority/00CC,BarnsleyMBC,05/12/2022,5200078788,857.76,REED SPECIALIST RECRUITMENT LTD,502689,BH,Basic pay - Agency Fees,104001
http://statistics.data.gov.uk/doc/local-authority/00CC,BarnsleyMBC,05/12/2022,5200078789,672.54,REED SPECIALIST RECRUITMENT LTD,502689,BH,Basic pay - Agency Fees,104001
http://statistics.data.gov.uk/doc/local-authority/00CC,BarnsleyMBC,05/12/2022,5200078790,747.62,REED SPECIALIST RECRUITMENT LTD,502689,BH,Basic pay - Agency Fees,104001
http://statistics.data.gov.uk/doc/local-authority/00CC,BarnsleyMBC,05/12/2022,5200078791,502.1,REED SPECIALIST RECRUITMENT LTD,502689,BH,Basic pay - Agency Fees,104001
http://statistics.data.gov.uk/doc/local-authority/00CC,BarnsleyMBC,05/12/2022,5200078801,635.15,REED SPECIALIST RECRUITMENT LTD,502689,BH,Basic pay - Agency Fees,104001
http://statistics.data.gov.uk/doc/local-authority/00CC,BarnsleyMBC,05/12/2022,5200078800,506.44,REED SPECIALIST RECRUITMENT LTD,502689,BH,Basic pay - Agency Fees,104001
http://statistics.data.gov.uk/doc/local-authority/00CC,BarnsleyMBC,05/12/2022,5200078799,833.31,REED SPECIALIST RECRUITMENT LTD,502689,BH,Basic pay - Agency Fees,104001
http://statistics.data.gov.uk/doc/local-authority/00CC,BarnsleyMBC,05/12/2022,5200078798,825.65,REED SPECIALIST RECRUITMENT LTD,502689,BH,Basic pay - Agency Fees,104001
http://statistics.data.gov.uk/doc/local-authority/00CC,BarnsleyMBC,05/12/2022,5200078802,829.47,REED SPECIALIST RECRUITMENT LTD,502689,BH,Basic pay - Agency Fees,104001
http://statistics.data.gov.uk/doc/local-authority/00CC,BarnsleyMBC,05/12/2022,5200078804,661.34,REED SPECIALIST RECRUITMENT LTD,502689,BH,Basic pay - Agency Fees,104001
http://statistics.data.gov.uk/doc/local-authority/00CC,BarnsleyMBC,05/12/2022,5200078795,862.69,REED SPECIALIST RECRUITMENT LTD,502689,BH,Basic pay - Agency Fees,104001
http://statistics.data.gov.uk/doc/local-authority/00CC,BarnsleyMBC,05/12/2022,5200078796,515,REED SPECIALIST RECRUITMENT LTD,502689,BH,Basic pay - Agency Fees,104001
http://statistics.data.gov.uk/doc/local-authority/00CC,BarnsleyMBC,05/12/2022,5200078797,636.51,REED SPECIALIST RECRUITMENT LTD,502689,BH,Basic pay - Agency Fees,104001
http://statistics.data.gov.uk/doc/local-authority/00CC,BarnsleyMBC,05/12/2022,5200078805,759.61,REED SPECIALIST RECRUITMENT LTD,502689,BH,Basic pay - Agency Fees,104001
http://statistics.data.gov.uk/doc/local-authority/00CC,BarnsleyMBC,05/12/2022,5200078806,758.29,REED SPECIALIST RECRUITMENT LTD,502689,BH,Basic pay - Agency Fees,104001
http://statistics.data.gov.uk/doc/local-authority/00CC,BarnsleyMBC,09/12/2022,5200078837,989.72,REED SPECIALIST RECRUITMENT LTD,502689,BH,Basic pay - Agency Fees,104001
http://statistics.data.gov.uk/doc/local-authority/00CC,BarnsleyMBC,09/12/2022,5200078836,793.63,REED SPECIALIST RECRUITMENT LTD,502689,BH,Basic pay - Agency Fees,104001
http://statistics.data.gov.uk/doc/local-authority/00CC,BarnsleyMBC,09/12/2022,5200078835,985.87,REED SPECIALIST RECRUITMENT LTD,502689,BH,Basic pay - Agency Fees,104001
http://statistics.data.gov.uk/doc/local-authority/00CC,BarnsleyMBC,09/12/2022,5200078834,"16,549.90",REED SPECIALIST RECRUITMENT LTD,502689,BH,Basic pay - Agency Fees,104001
http://statistics.data.gov.uk/doc/local-authority/00CC,BarnsleyMBC,09/12/2022,5200078833,985.87,REED SPECIALIST RECRUITMENT LTD,502689,BH,Basic pay - Agency Fees,104001
http://statistics.data.gov.uk/doc/local-authority/00CC,BarnsleyMBC,09/12/2022,5200078832,791.56,REED SPECIALIST RECRUITMENT LTD,502689,BH,Basic pay - Agency Fees,104001
http://statistics.data.gov.uk/doc/local-authority/00CC,BarnsleyMBC,09/12/2022,5200078831,791.56,REED SPECIALIST RECRUITMENT LTD,502689,BH,Basic pay - Agency Fees,104001
http://statistics.data.gov.uk/doc/local-authority/00CC,BarnsleyMBC,09/12/2022,5200078830,651.89,REED SPECIALIST RECRUITMENT LTD,502689,BH,Basic pay - Agency Fees,104001
http://statistics.data.gov.uk/doc/local-authority/00CC,BarnsleyMBC,09/12/2022,5200078829,814.71,REED SPECIALIST RECRUITMENT LTD,502689,BH,Basic pay - Agency Fees,104001
http://statistics.data.gov.uk/doc/local-authority/00CC,BarnsleyMBC,09/12/2022,5200078828,671.4,REED SPECIALIST RECRUITMENT LTD,502689,BH,Basic pay - Agency Fees,104001
http://statistics.data.gov.uk/doc/local-authority/00CC,BarnsleyMBC,09/12/2022,5200078827,671.4,REED SPECIALIST RECRUITMENT LTD,502689,BH,Basic pay - Agency Fees,104001
http://statistics.data.gov.uk/doc/local-authority/00CC,BarnsleyMBC,09/12/2022,5200078826,"1,019.08",REED SPECIALIST RECRUITMENT LTD,502689,BH,Basic pay - Agency Fees,104001
http://statistics.data.gov.uk/doc/local-authority/00CC,BarnsleyMBC,09/12/2022,5200078825,791.56,REED SPECIALIST RECRUITMENT LTD,502689,BH,Basic pay - Agency Fees,104001
http://statistics.data.gov.uk/doc/local-authority/00CC,BarnsleyMBC,09/12/2022,5200078824,"1,601.42",REED SPECIALIST RECRUITMENT LTD,502689,BH,Basic pay - Agency Fees,104001
http://statistics.data.gov.uk/doc/local-authority/00CC,BarnsleyMBC,09/12/2022,5200078823,825.65,REED SPECIALIST RECRUITMENT LTD,502689,BH,Basic pay - Agency Fees,104001
http://statistics.data.gov.uk/doc/local-authority/00CC,BarnsleyMBC,09/12/2022,5200078822,600.94,REED SPECIALIST RECRUITMENT LTD,502689,BH,Basic pay - Agency Fees,104001
http://statistics.data.gov.uk/doc/local-authority/00CC,BarnsleyMBC,09/12/2022,5200078821,817.75,REED SPECIALIST RECRUITMENT LTD,502689,BH,Basic pay - Agency Fees,104001
http://statistics.data.gov.uk/doc/local-authority/00CC,BarnsleyMBC,09/12/2022,5200078820,"1,234.98",REED SPECIALIST RECRUITMENT LTD,502689,BH,Basic pay - Agency Fees,104001
http://statistics.data.gov.uk/doc/local-authority/00CC,BarnsleyMBC,09/12/2022,5200078819,920.46,REED SPECIALIST RECRUITMENT LTD,502689,BH,Basic pay - Agency Fees,104001
http://statistics.data.gov.uk/doc/local-authority/00CC,BarnsleyMBC,09/12/2022,5200078818,982.06,REED SPECIALIST RECRUITMENT LTD,502689,BH,Basic pay - Agency Fees,104001
http://statistics.data.gov.uk/doc/local-authority/00CC,BarnsleyMBC,09/12/2022,5200078817,989.72,REED SPECIALIST RECRUITMENT LTD,502689,BH,Basic pay - Agency Fees,104001
http://statistics.data.gov.uk/doc/local-authority/00CC,BarnsleyMBC,09/12/2022,5200078816,"16,300.51",REED SPECIALIST RECRUITMENT LTD,502689,BH,Basic pay - Agency Fees,104001
http://statistics.data.gov.uk/doc/local-authority/00CC,BarnsleyMBC,09/12/2022,5200078815,"32,190.39",REED SPECIALIST RECRUITMENT LTD,502689,BH,Basic pay - Agency Fees,104001
http://statistics.data.gov.uk/doc/local-authority/00CC,BarnsleyMBC,09/12/2022,5200078814,"16,479.47",REED SPECIALIST RECRUITMENT LTD,502689,BH,Basic pay - Agency Fees,104001
http://statistics.data.gov.uk/doc/local-authority/00CC,BarnsleyMBC,09/12/2022,5200078813,774.51,REED SPECIALIST RECRUITMENT LTD,502689,BH,Basic pay - Agency Fees,104001
http://statistics.data.gov.uk/doc/local-authority/00CC,BarnsleyMBC,09/12/2022,5200078812,"1,070.06",REED SPECIALIST RECRUITMENT LTD,502689,BH,Basic pay - Agency Fees,104001
http://statistics.data.gov.uk/doc/local-authority/00CC,BarnsleyMBC,09/12/2022,5200078811,997.69,REED SPECIALIST RECRUITMENT LTD,502689,BH,Basic pay - Agency Fees,104001
http://statistics.data.gov.uk/doc/local-authority/00CC,BarnsleyMBC,09/12/2022,5200078810,"16,160.90",REED SPECIALIST RECRUITMENT LTD,502689,BH,Basic pay - Agency Fees,104001
http://statistics.data.gov.uk/doc/local-authority/00CC,BarnsleyMBC,08/12/2022,5100331104,"7,200.00",RightTrack Learning,539251,BH,Training Courses,112001
http://statistics.data.gov.uk/doc/local-authority/00CC,BarnsleyMBC,21/12/2022,5100331759,"2,400.00",Robertson Bell Ltd,540632,BH,Basic pay - Agency Fees,104001
http://statistics.data.gov.uk/doc/local-authority/00CC,BarnsleyMBC,21/12/2022,5100331758,"2,400.00",Robertson Bell Ltd,540632,BH,Basic pay - Agency Fees,104001
http://statistics.data.gov.uk/doc/local-authority/00CC,BarnsleyMBC,21/12/2022,5100331760,"2,400.00",Robertson Bell Ltd,540632,BH,Basic pay - Agency Fees,104001
http://statistics.data.gov.uk/doc/local-authority/00CC,BarnsleyMBC,21/12/2022,5100331761,"4,800.00",Robertson Bell Ltd,540632,BH,Basic pay - Agency Fees,104001
http://statistics.data.gov.uk/doc/local-authority/00CC,BarnsleyMBC,21/12/2022,5100331762,"2,400.00",Robertson Bell Ltd,540632,BH,Basic pay - Agency Fees,104001
http://statistics.data.gov.uk/doc/local-authority/00CC,BarnsleyMBC,21/12/2022,5100331757,"2,400.00",Robertson Bell Ltd,540632,BH,Basic pay - Agency Fees,104001
http://statistics.data.gov.uk/doc/local-authority/00CC,BarnsleyMBC,21/12/2022,5100331755,"2,400.00",Robertson Bell Ltd,540632,BH,Basic pay - Agency Fees,104001
http://statistics.data.gov.uk/doc/local-authority/00CC,BarnsleyMBC,21/12/2022,5100331754,"2,400.00",Robertson Bell Ltd,540632,BH,Basic pay - Agency Fees,104001
http://statistics.data.gov.uk/doc/local-authority/00CC,BarnsleyMBC,24/10/2022,5100329468,"4,500.00",ROBUST MANAGEMENT SOLUTIONS LTD,540285,BH,Consultants Fees,424007
http://statistics.data.gov.uk/doc/local-authority/00CC,BarnsleyMBC,20/10/2022,5100329313,"1,246.32",ROY IBBOTSON TRAINING,539100,BH,Training Courses,112001
